Workbook

Sheet Data
A1: Backlinks Count | B1: Referring Domain | C1: ТИЦ | D1: "Бесплатные" | E1: "Вечные" | F1: "Арендные" | G1: Error
A2: 4 | B2: site.ru | C2: 10 | D2: =IFERROR(VLOOKUP(B2,FreeSite!$A$2:$B$1000,2,0),"") ->  | E2: =IF(D2=1,"",IFERROR(IF(Config!$C$2="Арендные + Вечные",IF(Config!$C$3="Считать как вечную",VLOOKUP(B2,'Все вечные'!$A$2:$H$30000,7,0),IF(VLOOKUP(B2,'Все вечные'!$A$2:$H$30000,8,0)=1,"",VLOOKUP(B2,'Все вечные'!$A$2:$H$30000,7,0))),""),"")) ->  | F2: =IF(D2=1,"",IF(ISTEXT(E2)=TRUE,IFERROR(VLOOKUP(C2,Links!$E$2:$H$100,IF(Config!$C$9="Медиана",3,4),0)*IF(Config!$C$8="Одну",1,IF(Config!$C$8="Две",2,A2)),""),"")) -> 6.60 | G2: =IF(AND(ISTEXT(D2),ISTEXT(E2),ISTEXT(F2))=TRUE,1,"") -> 

Sheet Config
B2: Бюджет по схеме: | C2: Арендные + Вечные
B3: Если сайт и в "автобиржах" и в "вечных": | C3: Считать как вечную
B4: Из GGL брать стоимость: | C4: Максимальная
B5: Из RotaPost брать стоимость: | C5: Минимальная
B6: Из Pr.Sape брать стоимость: | C6: Минимальная
B7: Итоговую для вечных брать: | C7: Средняя
B8: Для "арендных" с 1 сайта учитывать ссылок: | C8: Две
B9: Для "арендных" цена на основе: | C9: Медиана
B11: Ссылается сайтов: | C11: =COUNT(Data!A:A) -> 1
B12: Как "вечные" будем считать: | C12: =COUNT(Data!E:E) -> 0
B13: Как "арендные" будем считать: | C13: =C11-C12-C14-C15 -> 1
B14: В списке "точно бесплатных" сайтов: | C14: =COUNT(Data!D:D) -> 0
B15: Не удалось посчитать сайтов: | C15: =COUNT(Data!G:G) -> 0
B17: На "вечные" разово придется потратить (руб): | C17: =SUM(Data!E:E) -> 0.00
B18: На "арендные" в месяц придется тратить (руб): | C18: =SUM(Data!F:F) -> 6.60
B20: Автор: Игорь Бакалов | C20: Версия: 1.1
B21: Руководство и обновления: | C21: http://bakalov.info/

Sheet Links
A1: URL | B1: тИЦ | C1: Цена | E1: тИЦ | F1: Сайтов с тИЦ: | G1: Цена: медиана | H1: Цена: среднее зн
A2: аарвоздух.рф | B2: 10 | C2: 3.3 | E2: 0 | F2: =COUNTIF($B$2:$B$30000,E2) -> 4273 | G2: =MEDIAN(IF(E2=B$2:B$30000,C$2:C$30000)) -> 1.98 | H2: =AVERAGE(IF(E2=B$2:B$30000,C$2:C$30000)) -> 5.23
A3: абком-сервис.рф | B3: 10 | C3: 2.42 | E3: 10 | F3: =COUNTIF($B$2:$B$30000,E3) -> 7215 | G3: =MEDIAN(IF(E3=B$2:B$30000,C$2:C$30000)) -> 3.30 | H3: =AVERAGE(IF(E3=B$2:B$30000,C$2:C$30000)) -> 12.10
A4: абм-спб.рф | B4: 10 | C4: 2.42 | E4: 20 | F4: 2024 | G4: =MEDIAN(IF(E4=B$2:B$30000,C$2:C$30000)) -> 3.85 | H4: =AVERAGE(IF(E4=B$2:B$30000,C$2:C$30000)) -> 10.85
A5: авангард-южно-сахалинск.рф | B5: 10 | C5: 58.96 | E5: 30 | F5: 2442 | G5: =MEDIAN(IF(E5=B$2:B$30000,C$2:C$30000)) -> 3.96 | H5: =AVERAGE(IF(E5=B$2:B$30000,C$2:C$30000)) -> 14.74
A6: авантажстрой.рф | B6: 10 | C6: 3.3 | E6: 40 | F6: 1615 | G6: =MEDIAN(IF(E6=B$2:B$30000,C$2:C$30000)) -> 3.98 | H6: =AVERAGE(IF(E6=B$2:B$30000,C$2:C$30000)) -> 14.35
A7: автоагенство134.рф | B7: 10 | C7: 7.04 | E7: 50 | F7: 1089 | G7: =MEDIAN(IF(E7=B$2:B$30000,C$2:C$30000)) -> 4.42 | H7: =AVERAGE(IF(E7=B$2:B$30000,C$2:C$30000)) -> 15.27
A8: автоакссеары.рф | B8: 10 | C8: 3.17 | E8: 60 | F8: 867 | G8: =MEDIAN(IF(E8=B$2:B$30000,C$2:C$30000)) -> 4.95 | H8: =AVERAGE(IF(E8=B$2:B$30000,C$2:C$30000)) -> 15.66
A9: автобукет.рф | B9: 10 | C9: 3.28 | E9: 70 | F9: 987 | G9: =MEDIAN(IF(E9=B$2:B$30000,C$2:C$30000)) -> 3.96 | H9: =AVERAGE(IF(E9=B$2:B$30000,C$2:C$30000)) -> 10.64
A10: автодиагностика-34.рф | B10: 10 | C10: 24.09 | E10: 80 | F10: 820 | G10: =MEDIAN(IF(E10=B$2:B$30000,C$2:C$30000)) -> 4.40 | H10: =AVERAGE(IF(E10=B$2:B$30000,C$2:C$30000)) -> 12.49
A11: автозапчасти-екатеринбург.рф | B11: 10 | C11: 3.67 | E11: 90 | F11: 681 | G11: =MEDIAN(IF(E11=B$2:B$30000,C$2:C$30000)) -> 4.40 | H11: =AVERAGE(IF(E11=B$2:B$30000,C$2:C$30000)) -> 14.50
A12: автозапчасти-тюмени.рф | B12: 10 | C12: 2.42 | E12: 100 | F12: 594 | G12: =MEDIAN(IF(E12=B$2:B$30000,C$2:C$30000)) -> 4.95 | H12: =AVERAGE(IF(E12=B$2:B$30000,C$2:C$30000)) -> 14.54
A13: автокрепеж-ирк.рф | B13: 10 | C13: 2.2 | E13: 110 | F13: 474 | G13: =MEDIAN(IF(E13=B$2:B$30000,C$2:C$30000)) -> 4.49 | H13: =AVERAGE(IF(E13=B$2:B$30000,C$2:C$30000)) -> 11.89
A14: автолавка-нсо.рф | B14: 10 | C14: 2.24 | E14: 120 | F14: 402 | G14: =MEDIAN(IF(E14=B$2:B$30000,C$2:C$30000)) -> 6.04 | H14: =AVERAGE(IF(E14=B$2:B$30000,C$2:C$30000)) -> 27.04
A15: автолайф-хаб.рф | B15: 10 | C15: 2.42 | E15: 130 | F15: 373 | G15: =MEDIAN(IF(E15=B$2:B$30000,C$2:C$30000)) -> 5.56 | H15: =AVERAGE(IF(E15=B$2:B$30000,C$2:C$30000)) -> 16.77
A16: автолига-казань.рф | B16: 20 | C16: 113.34 | E16: 140 | F16: 324 | G16: =MEDIAN(IF(E16=B$2:B$30000,C$2:C$30000)) -> 6.39 | H16: =AVERAGE(IF(E16=B$2:B$30000,C$2:C$30000)) -> 16.86
A17: автоломбард-галактика.рф | B17: 10 | C17: 3.96 | E17: 150 | F17: 308 | G17: =MEDIAN(IF(E17=B$2:B$30000,C$2:C$30000)) -> 5.94 | H17: =AVERAGE(IF(E17=B$2:B$30000,C$2:C$30000)) -> 18.46
A18: автомобильныесайты.рф | B18: 10 | C18: 1.79 | E18: 160 | F18: 269 | G18: =MEDIAN(IF(E18=B$2:B$30000,C$2:C$30000)) -> 6.60 | H18: =AVERAGE(IF(E18=B$2:B$30000,C$2:C$30000)) -> 20.00
A19: автом1.рф | B19: 10 | C19: 6.6 | E19: 170 | F19: 228 | G19: =MEDIAN(IF(E19=B$2:B$30000,C$2:C$30000)) -> 6.27 | H19: =AVERAGE(IF(E19=B$2:B$30000,C$2:C$30000)) -> 19.58
A20: автонагаз.рф | B20: 10 | C20: 25.3 | E20: 180 | F20: 209 | G20: =MEDIAN(IF(E20=B$2:B$30000,C$2:C$30000)) -> 5.94 | H20: =AVERAGE(IF(E20=B$2:B$30000,C$2:C$30000)) -> 22.33
A21: автонк.рф | B21: 10 | C21: 3.17 | E21: 190 | F21: 204 | G21: =MEDIAN(IF(E21=B$2:B$30000,C$2:C$30000)) -> 6.49 | H21: =AVERAGE(IF(E21=B$2:B$30000,C$2:C$30000)) -> 11.34
A22: автопомощь48.рф | B22: 10 | C22: 5.24 | E22: 200 | F22: 181 | G22: =MEDIAN(IF(E22=B$2:B$30000,C$2:C$30000)) -> 6.09 | H22: =AVERAGE(IF(E22=B$2:B$30000,C$2:C$30000)) -> 25.01
A23: автосевен.рф | B23: 10 | C23: 48.4 | E23: 210 | F23: 181 | G23: =MEDIAN(IF(E23=B$2:B$30000,C$2:C$30000)) -> 7.80 | H23: =AVERAGE(IF(E23=B$2:B$30000,C$2:C$30000)) -> 26.99
A24: автосуши34.рф | B24: 10 | C24: 2.97 | E24: 220 | F24: 154 | G24: =MEDIAN(IF(E24=B$2:B$30000,C$2:C$30000)) -> 7.48 | H24: =AVERAGE(IF(E24=B$2:B$30000,C$2:C$30000)) -> 27.28
A25: автотрейд72.рф | B25: 10 | C25: 21.52 | E25: 230 | F25: 142 | G25: =MEDIAN(IF(E25=B$2:B$30000,C$2:C$30000)) -> 6.16 | H25: =AVERAGE(IF(E25=B$2:B$30000,C$2:C$30000)) -> 17.55
A26: автотюнинг26.рф | B26: 10 | C26: 21.52 | E26: 240 | F26: 131 | G26: =MEDIAN(IF(E26=B$2:B$30000,C$2:C$30000)) -> 6.99 | H26: =AVERAGE(IF(E26=B$2:B$30000,C$2:C$30000)) -> 16.34
A27: автофургон24.рф | B27: 10 | C27: 3.17 | E27: 250 | F27: 214 | G27: =MEDIAN(IF(E27=B$2:B$30000,C$2:C$30000)) -> 6.75 | H27: =AVERAGE(IF(E27=B$2:B$30000,C$2:C$30000)) -> 19.55
A28: автошкола-симон.рф | B28: 10 | C28: 29.7 | E28: 275 | F28: 247 | G28: =MEDIAN(IF(E28=B$2:B$30000,C$2:C$30000)) -> 7.10 | H28: =AVERAGE(IF(E28=B$2:B$30000,C$2:C$30000)) -> 14.63
A29: автоэкипаж.рф | B29: 10 | C29: 48.4 | E29: 300 | F29: 207 | G29: =MEDIAN(IF(E29=B$2:B$30000,C$2:C$30000)) -> 7.66 | H29: =AVERAGE(IF(E29=B$2:B$30000,C$2:C$30000)) -> 18.77
A30: автоюрист34.рф | B30: 10 | C30: 44.92 | E30: 325 | F30: 216 | G30: =MEDIAN(IF(E30=B$2:B$30000,C$2:C$30000)) -> 7.76 | H30: =AVERAGE(IF(E30=B$2:B$30000,C$2:C$30000)) -> 26.14
A31: автоюрист70.рф | B31: 10 | C31: 7.23 | E31: 350 | F31: 173 | G31: =MEDIAN(IF(E31=B$2:B$30000,C$2:C$30000)) -> 6.77 | H31: =AVERAGE(IF(E31=B$2:B$30000,C$2:C$30000)) -> 32.28
A32: авто-запчасти-спб.рф | B32: 10 | C32: 2.97 | E32: 375 | F32: 142 | G32: =MEDIAN(IF(E32=B$2:B$30000,C$2:C$30000)) -> 6.59 | H32: =AVERAGE(IF(E32=B$2:B$30000,C$2:C$30000)) -> 13.54
A33: авто-сектор.рф | B33: 10 | C33: 7.02 | E33: 400 | F33: 122 | G33: =MEDIAN(IF(E33=B$2:B$30000,C$2:C$30000)) -> 8.31 | H33: =AVERAGE(IF(E33=B$2:B$30000,C$2:C$30000)) -> 34.48
A34: авто-экс.рф | B34: 10 | C34: 2.42 | E34: 425 | F34: 117 | G34: =MEDIAN(IF(E34=B$2:B$30000,C$2:C$30000)) -> 7.70 | H34: =AVERAGE(IF(E34=B$2:B$30000,C$2:C$30000)) -> 18.52
A35: авто-я.рф | B35: 10 | C35: 21.52 | E35: 450 | F35: 115 | G35: =MEDIAN(IF(E35=B$2:B$30000,C$2:C$30000)) -> 7.09 | H35: =AVERAGE(IF(E35=B$2:B$30000,C$2:C$30000)) -> 18.56
A36: агроавто.рф | B36: 10 | C36: 7.06 | E36: 475 | F36: 107 | G36: =MEDIAN(IF(E36=B$2:B$30000,C$2:C$30000)) -> 7.70 | H36: =AVERAGE(IF(E36=B$2:B$30000,C$2:C$30000)) -> 14.88
A37: адвокат-дубровин.рф | B37: 10 | C37: 60.61 | E37: 500 | F37: 128 | G37: =MEDIAN(IF(E37=B$2:B$30000,C$2:C$30000)) -> 8.25 | H37: =AVERAGE(IF(E37=B$2:B$30000,C$2:C$30000)) -> 19.84
A38: адвокат-татарстан.рф | B38: 10 | C38: 3.3 | E38: 550 | F38: 139 | G38: =MEDIAN(IF(E38=B$2:B$30000,C$2:C$30000)) -> 7.07 | H38: =AVERAGE(IF(E38=B$2:B$30000,C$2:C$30000)) -> 19.16
A39: адвокат-78рус.рф | B39: 10 | C39: 3.67 | E39: 600 | F39: 130 | G39: =MEDIAN(IF(E39=B$2:B$30000,C$2:C$30000)) -> 8.23 | H39: =AVERAGE(IF(E39=B$2:B$30000,C$2:C$30000)) -> 17.13
A40: аделиясалонкрасоты.рф | B40: 10 | C40: 28.71 | E40: 650 | F40: 103 | G40: =MEDIAN(IF(E40=B$2:B$30000,C$2:C$30000)) -> 7.70 | H40: =AVERAGE(IF(E40=B$2:B$30000,C$2:C$30000)) -> 13.66
A41: аза-зель.рф | B41: 20 | C41: 48.4 | E41: 700 | F41: 100 | G41: =MEDIAN(IF(E41=B$2:B$30000,C$2:C$30000)) -> 9.90 | H41: =AVERAGE(IF(E41=B$2:B$30000,C$2:C$30000)) -> 20.46
A42: айсайт.рф | B42: 10 | C42: 31.11 | E42: 750 | F42: 87 | G42: =MEDIAN(IF(E42=B$2:B$30000,C$2:C$30000)) -> 8.80 | H42: =AVERAGE(IF(E42=B$2:B$30000,C$2:C$30000)) -> 43.74
A43: айфон9.рф | B43: 10 | C43: 23.25 | E43: 800 | F43: 63 | G43: =MEDIAN(IF(E43=B$2:B$30000,C$2:C$30000)) -> 9.79 | H43: =AVERAGE(IF(E43=B$2:B$30000,C$2:C$30000)) -> 17.72
A44: айыртау-дюкфп.рф | B44: 10 | C44: 2.97 | E44: 850 | F44: 56 | G44: =MEDIAN(IF(E44=B$2:B$30000,C$2:C$30000)) -> 9.74 | H44: =AVERAGE(IF(E44=B$2:B$30000,C$2:C$30000)) -> 31.29
A45: акак.рф | B45: 20 | C45: 7.15 | E45: 900 | F45: 62 | G45: =MEDIAN(IF(E45=B$2:B$30000,C$2:C$30000)) -> 8.67 | H45: =AVERAGE(IF(E45=B$2:B$30000,C$2:C$30000)) -> 27.17
A46: аквагрим74.рф | B46: 10 | C46: 79.2 | E46: 950 | F46: 44 | G46: =MEDIAN(IF(E46=B$2:B$30000,C$2:C$30000)) -> 9.90 | H46: =AVERAGE(IF(E46=B$2:B$30000,C$2:C$30000)) -> 19.91
A47: аквапласт-28.рф | B47: 10 | C47: 57 | E47: 1000 | F47: 63 | G47: =MEDIAN(IF(E47=B$2:B$30000,C$2:C$30000)) -> 10.78 | H47: =AVERAGE(IF(E47=B$2:B$30000,C$2:C$30000)) -> 17.75
A48: аксессуары-для-телефона.рф | B48: 10 | C48: 1.98 | E48: 1100 | F48: 72 | G48: =MEDIAN(IF(E48=B$2:B$30000,C$2:C$30000)) -> 8.80 | H48: =AVERAGE(IF(E48=B$2:B$30000,C$2:C$30000)) -> 22.09
A49: актерм.рф | B49: 10 | C49: 29.7 | E49: 1200 | F49: 54 | G49: =MEDIAN(IF(E49=B$2:B$30000,C$2:C$30000)) -> 9.08 | H49: =AVERAGE(IF(E49=B$2:B$30000,C$2:C$30000)) -> 11.85
A50: актиффпро.рф | B50: 10 | C50: 3.96 | E50: 1300 | F50: 51 | G50: =MEDIAN(IF(E50=B$2:B$30000,C$2:C$30000)) -> 8.66 | H50: =AVERAGE(IF(E50=B$2:B$30000,C$2:C$30000)) -> 12.52
A51: акцент-на-шторы.рф | B51: 10 | C51: 2.97 | E51: 1400 | F51: 39 | G51: =MEDIAN(IF(E51=B$2:B$30000,C$2:C$30000)) -> 8.58 | H51: =AVERAGE(IF(E51=B$2:B$30000,C$2:C$30000)) -> 18.12
A52: алапаевскаяцгб.рф | B52: 10 | C52: 2.97 | E52: 1500 | F52: 29 | G52: =MEDIAN(IF(E52=B$2:B$30000,C$2:C$30000)) -> 7.76 | H52: =AVERAGE(IF(E52=B$2:B$30000,C$2:C$30000)) -> 13.71
A53: алаприма.рф | B53: 10 | C53: 5.5 | E53: 1600 | F53: 24 | G53: =MEDIAN(IF(E53=B$2:B$30000,C$2:C$30000)) -> 11.74 | H53: =AVERAGE(IF(E53=B$2:B$30000,C$2:C$30000)) -> 16.01
A54: алексгранд.рф | B54: 10 | C54: 7.06 | E54: 1700 | F54: 24 | G54: =MEDIAN(IF(E54=B$2:B$30000,C$2:C$30000)) -> 9.91 | H54: =AVERAGE(IF(E54=B$2:B$30000,C$2:C$30000)) -> 16.40
A55: алкиона.рф | B55: 10 | C55: 3.28 | E55: 1800 | F55: 26 | G55: =MEDIAN(IF(E55=B$2:B$30000,C$2:C$30000)) -> 9.17 | H55: =AVERAGE(IF(E55=B$2:B$30000,C$2:C$30000)) -> 20.95
A56: алтай-мед.рф | B56: 10 | C56: 3.17 | E56: 1900 | F56: 19 | G56: =MEDIAN(IF(E56=B$2:B$30000,C$2:C$30000)) -> 14.85 | H56: =AVERAGE(IF(E56=B$2:B$30000,C$2:C$30000)) -> 14.45
A57: альфастрой-сеть.рф | B57: 10 | C57: 21.52 | E57: 2000 | F57: 16 | G57: =MEDIAN(IF(E57=B$2:B$30000,C$2:C$30000)) -> 8.64 | H57: =AVERAGE(IF(E57=B$2:B$30000,C$2:C$30000)) -> 15.52
A58: альфа-н.рф | B58: 20 | C58: 2.97 | E58: 2100 | F58: 12 | G58: =MEDIAN(IF(E58=B$2:B$30000,C$2:C$30000)) -> 9.39 | H58: =AVERAGE(IF(E58=B$2:B$30000,C$2:C$30000)) -> 10.92
A59: амк-энерго.рф | B59: 10 | C59: 3.96 | E59: 2200 | F59: 8 | G59: =MEDIAN(IF(E59=B$2:B$30000,C$2:C$30000)) -> 7.48 | H59: =AVERAGE(IF(E59=B$2:B$30000,C$2:C$30000)) -> 10.58
A60: ампир-металл.рф | B60: 10 | C60: 92.62 | E60: 2300 | F60: 10 | G60: =MEDIAN(IF(E60=B$2:B$30000,C$2:C$30000)) -> 8.84 | H60: =AVERAGE(IF(E60=B$2:B$30000,C$2:C$30000)) -> 9.14
A61: аникс-эль.рф | B61: 10 | C61: 2.2 | E61: 2400 | F61: 7 | G61: =MEDIAN(IF(E61=B$2:B$30000,C$2:C$30000)) -> 8.87 | H61: =AVERAGE(IF(E61=B$2:B$30000,C$2:C$30000)) -> 26.68
A62: ансант-строй.рф | B62: 10 | C62: 24.09 | E62: 2500 | F62: 6 | G62: =MEDIAN(IF(E62=B$2:B$30000,C$2:C$30000)) -> 9.90 | H62: =AVERAGE(IF(E62=B$2:B$30000,C$2:C$30000)) -> 17.30
A63: анти-бренд.рф | B63: 0 | C63: 0.77 | E63: 2600 | F63: 13 | G63: =MEDIAN(IF(E63=B$2:B$30000,C$2:C$30000)) -> 8.14 | H63: =AVERAGE(IF(E63=B$2:B$30000,C$2:C$30000)) -> 14.19
A64: апбстройпроект.рф | B64: 10 | C64: 48.4 | E64: 2700 | F64: 9 | G64: =MEDIAN(IF(E64=B$2:B$30000,C$2:C$30000)) -> 8.84 | H64: =AVERAGE(IF(E64=B$2:B$30000,C$2:C$30000)) -> 26.75
A65: апельсинка74.рф | B65: 10 | C65: 48.4 | E65: 2800 | F65: 5 | G65: =MEDIAN(IF(E65=B$2:B$30000,C$2:C$30000)) -> 13.86 | H65: =AVERAGE(IF(E65=B$2:B$30000,C$2:C$30000)) -> 17.14
A66: априори-клуб.рф | B66: 10 | C66: 21.52 | E66: 2900 | F66: 4 | G66: =MEDIAN(IF(E66=B$2:B$30000,C$2:C$30000)) -> 18.65 | H66: =AVERAGE(IF(E66=B$2:B$30000,C$2:C$30000)) -> 26.65
A67: арахиспаста.рф | B67: 10 | C67: 49.94 | E67: 3000 | F67: =COUNTIF($B$2:$B$30000,E67) -> 6 | G67: =MEDIAN(IF(E67=B$2:B$30000,C$2:C$30000)) -> 10.17 | H67: =AVERAGE(IF(E67=B$2:B$30000,C$2:C$30000)) -> 13.40
A68: арбай-сад.рф | B68: 10 | C68: 48.4 | E68: 3100 | F68: 4 | G68: =MEDIAN(IF(E68=B$2:B$30000,C$2:C$30000)) -> 9.12 | H68: =AVERAGE(IF(E68=B$2:B$30000,C$2:C$30000)) -> 10.88
A69: арендаремонт.рф | B69: 10 | C69: 1.79 | E69: 3200 | F69: 2 | G69: =MEDIAN(IF(E69=B$2:B$30000,C$2:C$30000)) -> 12.94 | H69: =AVERAGE(IF(E69=B$2:B$30000,C$2:C$30000)) -> 12.94
A70: аренда-инструмент.рф | B70: 20 | C70: 3.3 | E70: 3300 | F70: 4 | G70: =MEDIAN(IF(E70=B$2:B$30000,C$2:C$30000)) -> 12.22 | H70: =AVERAGE(IF(E70=B$2:B$30000,C$2:C$30000)) -> 13.23
A71: арко-самара.рф | B71: 10 | C71: 2.86 | E71: 3400 | F71: 5 | G71: =MEDIAN(IF(E71=B$2:B$30000,C$2:C$30000)) -> 12.47 | H71: =AVERAGE(IF(E71=B$2:B$30000,C$2:C$30000)) -> 17.78
A72: артдом-нн.рф | B72: 10 | C72: 3.17 | E72: 3500 | F72: 4 | G72: =MEDIAN(IF(E72=B$2:B$30000,C$2:C$30000)) -> 12.87 | H72: =AVERAGE(IF(E72=B$2:B$30000,C$2:C$30000)) -> 14.38
A73: артмедиа-нв.рф | B73: 10 | C73: 3.23 | E73: 3600 | F73: 5 | G73: =MEDIAN(IF(E73=B$2:B$30000,C$2:C$30000)) -> 19.97 | H73: =AVERAGE(IF(E73=B$2:B$30000,C$2:C$30000)) -> 22.43
A74: артпанорама.su | B74: 10 | C74: 1.98 | E74: 3700 | F74: 3 | G74: =MEDIAN(IF(E74=B$2:B$30000,C$2:C$30000)) -> 16.94 | H74: =AVERAGE(IF(E74=B$2:B$30000,C$2:C$30000)) -> 16.15
A75: артроскопия.рф | B75: 60 | C75: 20.23 | E75: 3800 | F75: 1 | G75: =MEDIAN(IF(E75=B$2:B$30000,C$2:C$30000)) -> 9.90 | H75: =AVERAGE(IF(E75=B$2:B$30000,C$2:C$30000)) -> 9.90
A76: арт-байкал.рф | B76: 10 | C76: 21.52 | E76: 3900 | F76: 3 | G76: =MEDIAN(IF(E76=B$2:B$30000,C$2:C$30000)) -> 15.13 | H76: =AVERAGE(IF(E76=B$2:B$30000,C$2:C$30000)) -> 17.88
A77: архимедики.рф | B77: 10 | C77: 6.99 | E77: 4000 | F77: 2 | G77: =MEDIAN(IF(E77=B$2:B$30000,C$2:C$30000)) -> 19.80 | H77: =AVERAGE(IF(E77=B$2:B$30000,C$2:C$30000)) -> 19.80
A78: архитектурная.рф | B78: 0 | C78: 1.1 | E78: 4100 | F78: 4 | G78: =MEDIAN(IF(E78=B$2:B$30000,C$2:C$30000)) -> 12.52 | H78: =AVERAGE(IF(E78=B$2:B$30000,C$2:C$30000)) -> 18.00
A79: асг-ирк.рф | B79: 10 | C79: 3.28 | E79: 4200 | F79: 2 | G79: =MEDIAN(IF(E79=B$2:B$30000,C$2:C$30000)) -> 63.09 | H79: =AVERAGE(IF(E79=B$2:B$30000,C$2:C$30000)) -> 63.09
A80: асминпринт.рф | B80: 10 | C80: 1.79 | E80: 4300 | F80: 1 | G80: =MEDIAN(IF(E80=B$2:B$30000,C$2:C$30000)) -> 13.59 | H80: =AVERAGE(IF(E80=B$2:B$30000,C$2:C$30000)) -> 13.59
A81: ассинский-карьер.рф | B81: 10 | C81: 31.11 | E81: 4400 | F81: 2 | G81: =MEDIAN(IF(E81=B$2:B$30000,C$2:C$30000)) -> 50.33 | H81: =AVERAGE(IF(E81=B$2:B$30000,C$2:C$30000)) -> 50.33
A82: асском.рф | B82: 10 | C82: 7.04 | E82: 4500 | F82: 3 | G82: =MEDIAN(IF(E82=B$2:B$30000,C$2:C$30000)) -> 24.78 | H82: =AVERAGE(IF(E82=B$2:B$30000,C$2:C$30000)) -> 20.15
A83: астафьев56.рф | B83: 10 | C83: 6.86 | E83: 4600 | F83: 1 | G83: =MEDIAN(IF(E83=B$2:B$30000,C$2:C$30000)) -> 21.45 | H83: =AVERAGE(IF(E83=B$2:B$30000,C$2:C$30000)) -> 21.45
A84: ателье-свао.рф | B84: 20 | C84: 48.4 | E84: 5100 | F84: 1 | G84: =MEDIAN(IF(E84=B$2:B$30000,C$2:C$30000)) -> 22.00 | H84: =AVERAGE(IF(E84=B$2:B$30000,C$2:C$30000)) -> 22.00
A85: аудит-сервис-тула.рф | B85: 10 | C85: 2.31 | E85: 5200 | F85: 2 | G85: =MEDIAN(IF(E85=B$2:B$30000,C$2:C$30000)) -> 44.06 | H85: =AVERAGE(IF(E85=B$2:B$30000,C$2:C$30000)) -> 44.06
A86: аура-вип.рф | B86: 10 | C86: 3.96 | E86: 5400 | F86: 3 | G86: =MEDIAN(IF(E86=B$2:B$30000,C$2:C$30000)) -> 8.86 | H86: =AVERAGE(IF(E86=B$2:B$30000,C$2:C$30000)) -> 11.18
A87: афото.рф | B87: 10 | C87: 48.4 | E87: 5600 | F87: 1 | G87: =MEDIAN(IF(E87=B$2:B$30000,C$2:C$30000)) -> 20.42 | H87: =AVERAGE(IF(E87=B$2:B$30000,C$2:C$30000)) -> 20.42
A88: афродита-щелково.рф | B88: 10 | C88: 21.52 | E88: 5900 | F88: 1 | G88: =MEDIAN(IF(E88=B$2:B$30000,C$2:C$30000)) -> 26.87 | H88: =AVERAGE(IF(E88=B$2:B$30000,C$2:C$30000)) -> 26.87
A89: аффтомойка.рф | B89: 10 | C89: 2.43 | E89: 7800 | F89: 1 | G89: =MEDIAN(IF(E89=B$2:B$30000,C$2:C$30000)) -> 14.30 | H89: =AVERAGE(IF(E89=B$2:B$30000,C$2:C$30000)) -> 14.30
A90: ахмедов-фон.рф | B90: 10 | C90: 2.42 | E90: 9700 | F90: 1 | G90: =MEDIAN(IF(E90=B$2:B$30000,C$2:C$30000)) -> 12.10 | H90: =AVERAGE(IF(E90=B$2:B$30000,C$2:C$30000)) -> 12.10
A91: ацэид-нн.рф | B91: 10 | C91: 3.17 | E91: 12000 | F91: 1 | G91: =MEDIAN(IF(E91=B$2:B$30000,C$2:C$30000)) -> 9.57 | H91: =AVERAGE(IF(E91=B$2:B$30000,C$2:C$30000)) -> 9.57
A92: аэродизайн-нн.рф | B92: 10 | C92: 3.3
A93: а-триз.рф | B93: 10 | C93: 56.12
A94: а37.рф | B94: 10 | C94: 3.16
A95: базарецептов.рф | B95: 0 | C95: 0.55
A96: база-рускеала.рф | B96: 10 | C96: 6.86
A97: байдазар-2012.рф | B97: 10 | C97: 89.67
A98: байт-уроки-21регион.рф | B98: 10 | C98: 21.52
A99: балаково.рф | B99: 10 | C99: 0.55
A100: бал-фаберлик.рф | B100: 10 | C100: 48.4
A101: бамбуксчастья.рф | B101: 10 | C101: 2.2
A102: банкинтернета.рф | B102: 10 | C102: 1.65
A103: барельеф-рф.рф | B103: 10 | C103: 3.28
A104: барнео-кмв.рф | B104: 10 | C104: 21.52
A105: башмачок74.рф | B105: 20 | C105: 79.2
A106: ба-бах.рф | B106: 10 | C106: 2.13
A107: белюрсервис.рф | B107: 10 | C107: 21.52
A108: берегите-близких.рф | B108: 10 | C108: 25.3
A109: березка74.рф | B109: 10 | C109: 3.3
A110: березовый-уголь.рф | B110: 10 | C110: 2.13
A111: беседки-спб.рф | B111: 10 | C111: 48.4
A112: бетоносмеситель-мик.рф | B112: 10 | C112: 3.28
A113: бигмир.рф | B113: 10 | C113: 3.3
A114: биг-бег-нн.рф | B114: 10 | C114: 31.11
A115: бизнесахтари.рф | B115: 10 | C115: 3.59
A116: бизнес-кемерово.рф | B116: 10 | C116: 2.31
A117: бизнес-курган.рф | B117: 10 | C117: 2.31
A118: бизнес-студия.рф | B118: 10 | C118: 2.42
A119: бизнес2012.рф | B119: 10 | C119: 21.52
A120: биоблок.рф | B120: 10 | C120: 3.28
A121: биокамины-пермь.рф | B121: 10 | C121: 21.52
A122: биомедис-универсал.рф | B122: 10 | C122: 3.3
A123: бионика-екб.рф | B123: 10 | C123: 7.06
A124: биржинет.рф | B124: 0 | C124: 2.42
A125: битс-опт.рф | B125: 10 | C125: 48.4
A126: благосостояниедуха.рф | B126: 10 | C126: 3.96
A127: блоки-гост.рф | B127: 10 | C127: 23.06
A128: бмо-уфа.рф | B128: 10 | C128: 82.72
A129: боевой-спорт.рф | B129: 10 | C129: 3.3
A130: бокситогорский-полимер.рф | B130: 10 | C130: 7.06
A131: бокс-фомин.рф | B131: 10 | C131: 23.25
A132: болгариа.рф | B132: 0 | C132: 3.96
A133: большаяуря.рф | B133: 10 | C133: 44.92
A134: борисовскиймкдоу.рф | B134: 10 | C134: 3.28
A135: брокеры-россии.рф | B135: 10 | C135: 3.17
A136: бсм-шебекино.рф | B136: 10 | C136: 31.11
A137: бтм-пермь.рф | B137: 10 | C137: 4.4
A138: будь-здоров-не-кашляй.рф | B138: 30 | C138: 2.67
A139: буйносов.рф | B139: 10 | C139: 3.17
A140: булочка-ек.рф | B140: 10 | C140: 2.97
A141: буратино74.рф | B141: 10 | C141: 3.3
A142: буревестник-спорт.рф | B142: 10 | C142: 2.42
A143: бухгалтерплюс.рф | B143: 10 | C143: 28.62
A144: быстрошкафф.рф | B144: 10 | C144: 1.98
A145: бэгикап.рф | B145: 10 | C145: 48.46
A146: бэстэп-офис.рф | B146: 10 | C146: 3.28
A147: бюро-надежда.рф | B147: 10 | C147: 31.11
A148: вагонмашкомплект.рф | B148: 10 | C148: 21.52
A149: важуреомск.рф | B149: 10 | C149: 2.2
A150: валентина-викторовна.рф | B150: 10 | C150: 3.3
A151: валентина45.рф | B151: 10 | C151: 2.35
A152: вашастолярнаямастерская.рф | B152: 10 | C152: 25.3
A153: ваша-уютная-квартира.рф | B153: 10 | C153: 48.4
A154: вашсн.рф | B154: 10 | C154: 2.13
A155: вашювелир.рф | B155: 10 | C155: 2.97
A156: веломото196.рф | B156: 10 | C156: 2.97
A157: венский-штрудель.рф | B157: 10 | C157: 48.4
A158: венск.рф | B158: 10 | C158: 2.62
A159: верхотурье.рф | B159: 10 | C159: 4.95
A160: веськрасноярск.рф | B160: 10 | C160: 3.17
A161: весьтоп.рф | B161: 20 | C161: 440
A162: ветлан.рф | B162: 10 | C162: 3.3
A163: вибропресс74.рф | B163: 10 | C163: 3.3
A164: видео-32.рф | B164: 10 | C164: 3.28
A165: визитка52.рф | B165: 10 | C165: 7.06
A166: вип-халява.рф | B166: 10 | C166: 3.17
A167: вкрыму.com | B167: 10 | C167: 1.54
A168: вкусдетствасамара.рф | B168: 10 | C168: 21.52
A169: вкусный-торт.рф | B169: 0 | C169: 1.1
A170: вместесмамой-сочи.рф | B170: 10 | C170: 3.3
A171: вместе-и-навсегда.рф | B171: 10 | C171: 21.52
A172: вновостях.net | B172: 20 | C172: 4.71
A173: водасдоставкой.рф | B173: 20 | C173: 7.93
A174: водопад-по-стеклу.рф | B174: 10 | C174: 3.96
A175: воздушныйпарк.рф | B175: 10 | C175: 2.97
A176: волжане-мэл.рф | B176: 10 | C176: 2.22
A177: волок-сад9.рф | B177: 10 | C177: 3.96
A178: волшебные-ночи.рф | B178: 10 | C178: 28.71
A179: вольты.рф | B179: 10 | C179: 3.26
A180: вордпрессия.рф | B180: 0 | C180: 1.1
A181: ворота-авто.рф | B181: 10 | C181: 2.42
A182: восадуливогороде.рф | B182: 60 | C182: 3.96
A183: врачпсихоневролог.рф | B183: 10 | C183: 48.4
A184: врублике.рф | B184: 10 | C184: 23.06
A185: всевновости.рф | B185: 10 | C185: 1.65
A186: вседлябанисп.рф | B186: 10 | C186: 3.17
A187: всеос.рф | B187: 30 | C187: 1.9
A188: все-монеты.рф | B188: 10 | C188: 2.22
A189: вславянке.рф | B189: 10 | C189: 25.3
A190: всёперевезем.рф | B190: 10 | C190: 2.42
A191: всё-для-кондитера.рф | B191: 10 | C191: 1.98
A192: всё-мыло.рф | B192: 10 | C192: 25.3
A193: втеме61.рф | B193: 10 | C193: 2.2
A194: вхпу19грицев.рф | B194: 10 | C194: 2.86
A195: вязаныйпиджак.рф | B195: 10 | C195: 3.17
A196: в-настроении.рф | B196: 10 | C196: 1.98
A197: в-спортике.рф | B197: 10 | C197: 3.3
A198: газель-для-вас.рф | B198: 10 | C198: 2.2
A199: галерея-саратов.рф | B199: 10 | C199: 31.11
A200: гараж124.рф | B200: 10 | C200: 28.62
... 29124 more rows

Sheet Все вечные
A1: Домен | B1: GGL | C1: GetGoodLinks | D1: RotaPost | E1: PR.Sape | F1: Miralinks | G1: Итоговая для сайта | H1: Есть в "автобиржах"
A2: аастюнинг.рф | B2: =IFERROR(VLOOKUP(A2,GGL!$A$2:$D$20000,4,0),"") ->  | C2: =IFERROR(VLOOKUP(A2,GetGoodLinks!$A$2:$B$20000,2,0),"") ->  | D2: =IFERROR(VLOOKUP(A2,RotaPost!$A$2:$E$20000,5,0),"") -> 30 | E2: =IFERROR(VLOOKUP(A2,PR.Sape!$A$2:$F$20000,6,0),"") ->  | F2: =IFERROR(VLOOKUP(A2,Miralinks!$A$2:$B$20000,2,0),"") ->  | G2: =IF(Config!$C$7="Минимальная",MIN(IF(B2:F2<>0,B2:F2,"")),IF(Config!$C$7="Максимальная",MAX(B2:F2),AVERAGE(B2:F2))) -> 30.0 | H2: =IFERROR(VLOOKUP(A2,'В автобиржах'!$A$2:$B$20000,2,0),"") -> 
A3: авто-диалог.рф | B3: =IFERROR(VLOOKUP(A3,GGL!$A$2:$D$20000,4,0),"") ->  | C3: =IFERROR(VLOOKUP(A3,GetGoodLinks!$A$2:$B$20000,2,0),"") ->  | D3: =IFERROR(VLOOKUP(A3,RotaPost!$A$2:$E$20000,5,0),"") -> 30 | E3: =IFERROR(VLOOKUP(A3,PR.Sape!$A$2:$F$20000,6,0),"") ->  | F3: =IFERROR(VLOOKUP(A3,Miralinks!$A$2:$B$20000,2,0),"") ->  | G3: =IF(Config!$C$7="Минимальная",MIN(IF(B3:F3<>0,B3:F3,"")),IF(Config!$C$7="Максимальная",MAX(B3:F3),AVERAGE(B3:F3))) -> 30.0 | H3: =IFERROR(VLOOKUP(A3,'В автобиржах'!$A$2:$B$20000,2,0),"") -> 
A4: айподарок.рф | B4: =IFERROR(VLOOKUP(A4,GGL!$A$2:$D$20000,4,0),"") ->  | C4: =IFERROR(VLOOKUP(A4,GetGoodLinks!$A$2:$B$20000,2,0),"") ->  | D4: =IFERROR(VLOOKUP(A4,RotaPost!$A$2:$E$20000,5,0),"") -> 70 | E4: =IFERROR(VLOOKUP(A4,PR.Sape!$A$2:$F$20000,6,0),"") ->  | F4: =IFERROR(VLOOKUP(A4,Miralinks!$A$2:$B$20000,2,0),"") ->  | G4: =IF(Config!$C$7="Минимальная",MIN(IF(B4:F4<>0,B4:F4,"")),IF(Config!$C$7="Максимальная",MAX(B4:F4),AVERAGE(B4:F4))) -> 70.0 | H4: =IFERROR(VLOOKUP(A4,'В автобиржах'!$A$2:$B$20000,2,0),"") -> 
A5: акак.рф | B5: =IFERROR(VLOOKUP(A5,GGL!$A$2:$D$20000,4,0),"") -> 170.5 | C5: =IFERROR(VLOOKUP(A5,GetGoodLinks!$A$2:$B$20000,2,0),"") ->  | D5: =IFERROR(VLOOKUP(A5,RotaPost!$A$2:$E$20000,5,0),"") ->  | E5: =IFERROR(VLOOKUP(A5,PR.Sape!$A$2:$F$20000,6,0),"") -> 140.56 | F5: =IFERROR(VLOOKUP(A5,Miralinks!$A$2:$B$20000,2,0),"") -> 75 | G5: =IF(Config!$C$7="Минимальная",MIN(IF(B5:F5<>0,B5:F5,"")),IF(Config!$C$7="Максимальная",MAX(B5:F5),AVERAGE(B5:F5))) -> 128.7 | H5: =IFERROR(VLOOKUP(A5,'В автобиржах'!$A$2:$B$20000,2,0),"") -> 
A6: аквамаринмитино.рф | B6: =IFERROR(VLOOKUP(A6,GGL!$A$2:$D$20000,4,0),"") ->  | C6: =IFERROR(VLOOKUP(A6,GetGoodLinks!$A$2:$B$20000,2,0),"") ->  | D6: =IFERROR(VLOOKUP(A6,RotaPost!$A$2:$E$20000,5,0),"") -> 44 | E6: =IFERROR(VLOOKUP(A6,PR.Sape!$A$2:$F$20000,6,0),"") ->  | F6: =IFERROR(VLOOKUP(A6,Miralinks!$A$2:$B$20000,2,0),"") ->  | G6: =IF(Config!$C$7="Минимальная",MIN(IF(B6:F6<>0,B6:F6,"")),IF(Config!$C$7="Максимальная",MAX(B6:F6),AVERAGE(B6:F6))) -> 44.0 | H6: =IFERROR(VLOOKUP(A6,'В автобиржах'!$A$2:$B$20000,2,0),"") -> 
A7: аниме-мир.рф | B7: =IFERROR(VLOOKUP(A7,GGL!$A$2:$D$20000,4,0),"") ->  | C7: =IFERROR(VLOOKUP(A7,GetGoodLinks!$A$2:$B$20000,2,0),"") ->  | D7: =IFERROR(VLOOKUP(A7,RotaPost!$A$2:$E$20000,5,0),"") -> 100 | E7: =IFERROR(VLOOKUP(A7,PR.Sape!$A$2:$F$20000,6,0),"") -> 134.44 | F7: =IFERROR(VLOOKUP(A7,Miralinks!$A$2:$B$20000,2,0),"") ->  | G7: =IF(Config!$C$7="Минимальная",MIN(IF(B7:F7<>0,B7:F7,"")),IF(Config!$C$7="Максимальная",MAX(B7:F7),AVERAGE(B7:F7))) -> 117.2 | H7: =IFERROR(VLOOKUP(A7,'В автобиржах'!$A$2:$B$20000,2,0),"") -> 
A8: ательеуюта.рф | B8: =IFERROR(VLOOKUP(A8,GGL!$A$2:$D$20000,4,0),"") ->  | C8: =IFERROR(VLOOKUP(A8,GetGoodLinks!$A$2:$B$20000,2,0),"") ->  | D8: =IFERROR(VLOOKUP(A8,RotaPost!$A$2:$E$20000,5,0),"") -> 44 | E8: =IFERROR(VLOOKUP(A8,PR.Sape!$A$2:$F$20000,6,0),"") -> 48.89 | F8: =IFERROR(VLOOKUP(A8,Miralinks!$A$2:$B$20000,2,0),"") ->  | G8: =IF(Config!$C$7="Минимальная",MIN(IF(B8:F8<>0,B8:F8,"")),IF(Config!$C$7="Максимальная",MAX(B8:F8),AVERAGE(B8:F8))) -> 46.4 | H8: =IFERROR(VLOOKUP(A8,'В автобиржах'!$A$2:$B$20000,2,0),"") -> 
A9: ауди80.рф | B9: =IFERROR(VLOOKUP(A9,GGL!$A$2:$D$20000,4,0),"") ->  | C9: =IFERROR(VLOOKUP(A9,GetGoodLinks!$A$2:$B$20000,2,0),"") ->  | D9: =IFERROR(VLOOKUP(A9,RotaPost!$A$2:$E$20000,5,0),"") -> 44 | E9: =IFERROR(VLOOKUP(A9,PR.Sape!$A$2:$F$20000,6,0),"") -> 48.89 | F9: =IFERROR(VLOOKUP(A9,Miralinks!$A$2:$B$20000,2,0),"") ->  | G9: =IF(Config!$C$7="Минимальная",MIN(IF(B9:F9<>0,B9:F9,"")),IF(Config!$C$7="Максимальная",MAX(B9:F9),AVERAGE(B9:F9))) -> 46.4 | H9: =IFERROR(VLOOKUP(A9,'В автобиржах'!$A$2:$B$20000,2,0),"") -> 
A10: аукцион74.рф | B10: =IFERROR(VLOOKUP(A10,GGL!$A$2:$D$20000,4,0),"") ->  | C10: =IFERROR(VLOOKUP(A10,GetGoodLinks!$A$2:$B$20000,2,0),"") ->  | D10: =IFERROR(VLOOKUP(A10,RotaPost!$A$2:$E$20000,5,0),"") ->  | E10: =IFERROR(VLOOKUP(A10,PR.Sape!$A$2:$F$20000,6,0),"") -> 244.44 | F10: =IFERROR(VLOOKUP(A10,Miralinks!$A$2:$B$20000,2,0),"") ->  | G10: =IF(Config!$C$7="Минимальная",MIN(IF(B10:F10<>0,B10:F10,"")),IF(Config!$C$7="Максимальная",MAX(B10:F10),AVERAGE(B10:F10))) -> 244.4 | H10: =IFERROR(VLOOKUP(A10,'В автобиржах'!$A$2:$B$20000,2,0),"") -> 
A11: байтрик.рф | B11: =IFERROR(VLOOKUP(A11,GGL!$A$2:$D$20000,4,0),"") ->  | C11: =IFERROR(VLOOKUP(A11,GetGoodLinks!$A$2:$B$20000,2,0),"") ->  | D11: =IFERROR(VLOOKUP(A11,RotaPost!$A$2:$E$20000,5,0),"") -> 44 | E11: =IFERROR(VLOOKUP(A11,PR.Sape!$A$2:$F$20000,6,0),"") -> 48.89 | F11: =IFERROR(VLOOKUP(A11,Miralinks!$A$2:$B$20000,2,0),"") ->  | G11: =IF(Config!$C$7="Минимальная",MIN(IF(B11:F11<>0,B11:F11,"")),IF(Config!$C$7="Максимальная",MAX(B11:F11),AVERAGE(B11:F11))) -> 46.4 | H11: =IFERROR(VLOOKUP(A11,'В автобиржах'!$A$2:$B$20000,2,0),"") -> 
A12: бегущий.рф | B12: =IFERROR(VLOOKUP(A12,GGL!$A$2:$D$20000,4,0),"") ->  | C12: =IFERROR(VLOOKUP(A12,GetGoodLinks!$A$2:$B$20000,2,0),"") ->  | D12: =IFERROR(VLOOKUP(A12,RotaPost!$A$2:$E$20000,5,0),"") ->  | E12: =IFERROR(VLOOKUP(A12,PR.Sape!$A$2:$F$20000,6,0),"") -> 61.11 | F12: =IFERROR(VLOOKUP(A12,Miralinks!$A$2:$B$20000,2,0),"") ->  | G12: =IF(Config!$C$7="Минимальная",MIN(IF(B12:F12<>0,B12:F12,"")),IF(Config!$C$7="Максимальная",MAX(B12:F12),AVERAGE(B12:F12))) -> 61.1 | H12: =IFERROR(VLOOKUP(A12,'В автобиржах'!$A$2:$B$20000,2,0),"") -> 1
A13: блогсоветов.рф | B13: =IFERROR(VLOOKUP(A13,GGL!$A$2:$D$20000,4,0),"") ->  | C13: =IFERROR(VLOOKUP(A13,GetGoodLinks!$A$2:$B$20000,2,0),"") ->  | D13: =IFERROR(VLOOKUP(A13,RotaPost!$A$2:$E$20000,5,0),"") -> 100 | E13: =IFERROR(VLOOKUP(A13,PR.Sape!$A$2:$F$20000,6,0),"") ->  | F13: =IFERROR(VLOOKUP(A13,Miralinks!$A$2:$B$20000,2,0),"") ->  | G13: =IF(Config!$C$7="Минимальная",MIN(IF(B13:F13<>0,B13:F13,"")),IF(Config!$C$7="Максимальная",MAX(B13:F13),AVERAGE(B13:F13))) -> 100.0 | H13: =IFERROR(VLOOKUP(A13,'В автобиржах'!$A$2:$B$20000,2,0),"") -> 1
A14: будь-здоров-не-кашляй.рф | B14: =IFERROR(VLOOKUP(A14,GGL!$A$2:$D$20000,4,0),"") ->  | C14: =IFERROR(VLOOKUP(A14,GetGoodLinks!$A$2:$B$20000,2,0),"") ->  | D14: =IFERROR(VLOOKUP(A14,RotaPost!$A$2:$E$20000,5,0),"") -> 140 | E14: =IFERROR(VLOOKUP(A14,PR.Sape!$A$2:$F$20000,6,0),"") -> 171.11 | F14: =IFERROR(VLOOKUP(A14,Miralinks!$A$2:$B$20000,2,0),"") -> 100 | G14: =IF(Config!$C$7="Минимальная",MIN(IF(B14:F14<>0,B14:F14,"")),IF(Config!$C$7="Максимальная",MAX(B14:F14),AVERAGE(B14:F14))) -> 137.0 | H14: =IFERROR(VLOOKUP(A14,'В автобиржах'!$A$2:$B$20000,2,0),"") -> 1
A15: вебкритик.рф | B15: =IFERROR(VLOOKUP(A15,GGL!$A$2:$D$20000,4,0),"") -> 166.1 | C15: =IFERROR(VLOOKUP(A15,GetGoodLinks!$A$2:$B$20000,2,0),"") ->  | D15: =IFERROR(VLOOKUP(A15,RotaPost!$A$2:$E$20000,5,0),"") ->  | E15: =IFERROR(VLOOKUP(A15,PR.Sape!$A$2:$F$20000,6,0),"") ->  | F15: =IFERROR(VLOOKUP(A15,Miralinks!$A$2:$B$20000,2,0),"") ->  | G15: =IF(Config!$C$7="Минимальная",MIN(IF(B15:F15<>0,B15:F15,"")),IF(Config!$C$7="Максимальная",MAX(B15:F15),AVERAGE(B15:F15))) -> 166.1 | H15: =IFERROR(VLOOKUP(A15,'В автобиржах'!$A$2:$B$20000,2,0),"") -> 
A16: веб-майна.рф | B16: =IFERROR(VLOOKUP(A16,GGL!$A$2:$D$20000,4,0),"") ->  | C16: =IFERROR(VLOOKUP(A16,GetGoodLinks!$A$2:$B$20000,2,0),"") ->  | D16: =IFERROR(VLOOKUP(A16,RotaPost!$A$2:$E$20000,5,0),"") -> 80 | E16: =IFERROR(VLOOKUP(A16,PR.Sape!$A$2:$F$20000,6,0),"") ->  | F16: =IFERROR(VLOOKUP(A16,Miralinks!$A$2:$B$20000,2,0),"") ->  | G16: =IF(Config!$C$7="Минимальная",MIN(IF(B16:F16<>0,B16:F16,"")),IF(Config!$C$7="Максимальная",MAX(B16:F16),AVERAGE(B16:F16))) -> 80.0 | H16: =IFERROR(VLOOKUP(A16,'В автобиржах'!$A$2:$B$20000,2,0),"") -> 
A17: вечность.su | B17: =IFERROR(VLOOKUP(A17,GGL!$A$2:$D$20000,4,0),"") ->  | C17: =IFERROR(VLOOKUP(A17,GetGoodLinks!$A$2:$B$20000,2,0),"") ->  | D17: =IFERROR(VLOOKUP(A17,RotaPost!$A$2:$E$20000,5,0),"") -> 70 | E17: =IFERROR(VLOOKUP(A17,PR.Sape!$A$2:$F$20000,6,0),"") ->  | F17: =IFERROR(VLOOKUP(A17,Miralinks!$A$2:$B$20000,2,0),"") ->  | G17: =IF(Config!$C$7="Минимальная",MIN(IF(B17:F17<>0,B17:F17,"")),IF(Config!$C$7="Максимальная",MAX(B17:F17),AVERAGE(B17:F17))) -> 70.0 | H17: =IFERROR(VLOOKUP(A17,'В автобиржах'!$A$2:$B$20000,2,0),"") -> 
A18: взож.рф | B18: =IFERROR(VLOOKUP(A18,GGL!$A$2:$D$20000,4,0),"") -> 242 | C18: =IFERROR(VLOOKUP(A18,GetGoodLinks!$A$2:$B$20000,2,0),"") ->  | D18: =IFERROR(VLOOKUP(A18,RotaPost!$A$2:$E$20000,5,0),"") ->  | E18: =IFERROR(VLOOKUP(A18,PR.Sape!$A$2:$F$20000,6,0),"") ->  | F18: =IFERROR(VLOOKUP(A18,Miralinks!$A$2:$B$20000,2,0),"") ->  | G18: =IF(Config!$C$7="Минимальная",MIN(IF(B18:F18<>0,B18:F18,"")),IF(Config!$C$7="Максимальная",MAX(B18:F18),AVERAGE(B18:F18))) -> 242.0 | H18: =IFERROR(VLOOKUP(A18,'В автобиржах'!$A$2:$B$20000,2,0),"") -> 
A19: вилла-фортуна.рф | B19: =IFERROR(VLOOKUP(A19,GGL!$A$2:$D$20000,4,0),"") ->  | C19: =IFERROR(VLOOKUP(A19,GetGoodLinks!$A$2:$B$20000,2,0),"") ->  | D19: =IFERROR(VLOOKUP(A19,RotaPost!$A$2:$E$20000,5,0),"") -> 80 | E19: =IFERROR(VLOOKUP(A19,PR.Sape!$A$2:$F$20000,6,0),"") -> 107.56 | F19: =IFERROR(VLOOKUP(A19,Miralinks!$A$2:$B$20000,2,0),"") ->  | G19: =IF(Config!$C$7="Минимальная",MIN(IF(B19:F19<>0,B19:F19,"")),IF(Config!$C$7="Максимальная",MAX(B19:F19),AVERAGE(B19:F19))) -> 93.8 | H19: =IFERROR(VLOOKUP(A19,'В автобиржах'!$A$2:$B$20000,2,0),"") -> 
A20: волгодонскгород.рф | B20: =IFERROR(VLOOKUP(A20,GGL!$A$2:$D$20000,4,0),"") ->  | C20: =IFERROR(VLOOKUP(A20,GetGoodLinks!$A$2:$B$20000,2,0),"") ->  | D20: =IFERROR(VLOOKUP(A20,RotaPost!$A$2:$E$20000,5,0),"") -> 100 | E20: =IFERROR(VLOOKUP(A20,PR.Sape!$A$2:$F$20000,6,0),"") ->  | F20: =IFERROR(VLOOKUP(A20,Miralinks!$A$2:$B$20000,2,0),"") ->  | G20: =IF(Config!$C$7="Минимальная",MIN(IF(B20:F20<>0,B20:F20,"")),IF(Config!$C$7="Максимальная",MAX(B20:F20),AVERAGE(B20:F20))) -> 100.0 | H20: =IFERROR(VLOOKUP(A20,'В автобиржах'!$A$2:$B$20000,2,0),"") -> 1
A21: вордпрессия.рф | B21: =IFERROR(VLOOKUP(A21,GGL!$A$2:$D$20000,4,0),"") ->  | C21: =IFERROR(VLOOKUP(A21,GetGoodLinks!$A$2:$B$20000,2,0),"") ->  | D21: =IFERROR(VLOOKUP(A21,RotaPost!$A$2:$E$20000,5,0),"") -> 45 | E21: =IFERROR(VLOOKUP(A21,PR.Sape!$A$2:$F$20000,6,0),"") ->  | F21: =IFERROR(VLOOKUP(A21,Miralinks!$A$2:$B$20000,2,0),"") ->  | G21: =IF(Config!$C$7="Минимальная",MIN(IF(B21:F21<>0,B21:F21,"")),IF(Config!$C$7="Максимальная",MAX(B21:F21),AVERAGE(B21:F21))) -> 45.0 | H21: =IFERROR(VLOOKUP(A21,'В автобиржах'!$A$2:$B$20000,2,0),"") -> 1
A22: воронеж-кухня.рф | B22: =IFERROR(VLOOKUP(A22,GGL!$A$2:$D$20000,4,0),"") ->  | C22: =IFERROR(VLOOKUP(A22,GetGoodLinks!$A$2:$B$20000,2,0),"") ->  | D22: =IFERROR(VLOOKUP(A22,RotaPost!$A$2:$E$20000,5,0),"") -> 58 | E22: =IFERROR(VLOOKUP(A22,PR.Sape!$A$2:$F$20000,6,0),"") -> 48.89 | F22: =IFERROR(VLOOKUP(A22,Miralinks!$A$2:$B$20000,2,0),"") ->  | G22: =IF(Config!$C$7="Минимальная",MIN(IF(B22:F22<>0,B22:F22,"")),IF(Config!$C$7="Максимальная",MAX(B22:F22),AVERAGE(B22:F22))) -> 53.4 | H22: =IFERROR(VLOOKUP(A22,'В автобиржах'!$A$2:$B$20000,2,0),"") -> 
A23: все-на-халяву.рф | B23: =IFERROR(VLOOKUP(A23,GGL!$A$2:$D$20000,4,0),"") ->  | C23: =IFERROR(VLOOKUP(A23,GetGoodLinks!$A$2:$B$20000,2,0),"") ->  | D23: =IFERROR(VLOOKUP(A23,RotaPost!$A$2:$E$20000,5,0),"") -> 58 | E23: =IFERROR(VLOOKUP(A23,PR.Sape!$A$2:$F$20000,6,0),"") ->  | F23: =IFERROR(VLOOKUP(A23,Miralinks!$A$2:$B$20000,2,0),"") ->  | G23: =IF(Config!$C$7="Минимальная",MIN(IF(B23:F23<>0,B23:F23,"")),IF(Config!$C$7="Максимальная",MAX(B23:F23),AVERAGE(B23:F23))) -> 58.0 | H23: =IFERROR(VLOOKUP(A23,'В автобиржах'!$A$2:$B$20000,2,0),"") -> 
A24: всястройкатут.рф | B24: =IFERROR(VLOOKUP(A24,GGL!$A$2:$D$20000,4,0),"") ->  | C24: =IFERROR(VLOOKUP(A24,GetGoodLinks!$A$2:$B$20000,2,0),"") ->  | D24: =IFERROR(VLOOKUP(A24,RotaPost!$A$2:$E$20000,5,0),"") -> 40 | E24: =IFERROR(VLOOKUP(A24,PR.Sape!$A$2:$F$20000,6,0),"") ->  | F24: =IFERROR(VLOOKUP(A24,Miralinks!$A$2:$B$20000,2,0),"") ->  | G24: =IF(Config!$C$7="Минимальная",MIN(IF(B24:F24<>0,B24:F24,"")),IF(Config!$C$7="Максимальная",MAX(B24:F24),AVERAGE(B24:F24))) -> 40.0 | H24: =IFERROR(VLOOKUP(A24,'В автобиржах'!$A$2:$B$20000,2,0),"") -> 
A25: всё-интересно.рф | B25: =IFERROR(VLOOKUP(A25,GGL!$A$2:$D$20000,4,0),"") ->  | C25: =IFERROR(VLOOKUP(A25,GetGoodLinks!$A$2:$B$20000,2,0),"") ->  | D25: =IFERROR(VLOOKUP(A25,RotaPost!$A$2:$E$20000,5,0),"") -> 95 | E25: =IFERROR(VLOOKUP(A25,PR.Sape!$A$2:$F$20000,6,0),"") ->  | F25: =IFERROR(VLOOKUP(A25,Miralinks!$A$2:$B$20000,2,0),"") ->  | G25: =IF(Config!$C$7="Минимальная",MIN(IF(B25:F25<>0,B25:F25,"")),IF(Config!$C$7="Максимальная",MAX(B25:F25),AVERAGE(B25:F25))) -> 95.0 | H25: =IFERROR(VLOOKUP(A25,'В автобиржах'!$A$2:$B$20000,2,0),"") -> 
A26: выберипетербург.рф | B26: =IFERROR(VLOOKUP(A26,GGL!$A$2:$D$20000,4,0),"") ->  | C26: =IFERROR(VLOOKUP(A26,GetGoodLinks!$A$2:$B$20000,2,0),"") ->  | D26: =IFERROR(VLOOKUP(A26,RotaPost!$A$2:$E$20000,5,0),"") -> 58 | E26: =IFERROR(VLOOKUP(A26,PR.Sape!$A$2:$F$20000,6,0),"") -> 48.89 | F26: =IFERROR(VLOOKUP(A26,Miralinks!$A$2:$B$20000,2,0),"") ->  | G26: =IF(Config!$C$7="Минимальная",MIN(IF(B26:F26<>0,B26:F26,"")),IF(Config!$C$7="Максимальная",MAX(B26:F26),AVERAGE(B26:F26))) -> 53.4 | H26: =IFERROR(VLOOKUP(A26,'В автобиржах'!$A$2:$B$20000,2,0),"") -> 
A27: выбираюсочи.рф | B27: =IFERROR(VLOOKUP(A27,GGL!$A$2:$D$20000,4,0),"") ->  | C27: =IFERROR(VLOOKUP(A27,GetGoodLinks!$A$2:$B$20000,2,0),"") ->  | D27: =IFERROR(VLOOKUP(A27,RotaPost!$A$2:$E$20000,5,0),"") ->  | E27: =IFERROR(VLOOKUP(A27,PR.Sape!$A$2:$F$20000,6,0),"") -> 48.89 | F27: =IFERROR(VLOOKUP(A27,Miralinks!$A$2:$B$20000,2,0),"") ->  | G27: =IF(Config!$C$7="Минимальная",MIN(IF(B27:F27<>0,B27:F27,"")),IF(Config!$C$7="Максимальная",MAX(B27:F27),AVERAGE(B27:F27))) -> 48.9 | H27: =IFERROR(VLOOKUP(A27,'В автобиржах'!$A$2:$B$20000,2,0),"") -> 
A28: выбрать-прическу.рф | B28: =IFERROR(VLOOKUP(A28,GGL!$A$2:$D$20000,4,0),"") ->  | C28: =IFERROR(VLOOKUP(A28,GetGoodLinks!$A$2:$B$20000,2,0),"") ->  | D28: =IFERROR(VLOOKUP(A28,RotaPost!$A$2:$E$20000,5,0),"") -> 124 | E28: =IFERROR(VLOOKUP(A28,PR.Sape!$A$2:$F$20000,6,0),"") ->  | F28: =IFERROR(VLOOKUP(A28,Miralinks!$A$2:$B$20000,2,0),"") -> 106 | G28: =IF(Config!$C$7="Минимальная",MIN(IF(B28:F28<>0,B28:F28,"")),IF(Config!$C$7="Максимальная",MAX(B28:F28),AVERAGE(B28:F28))) -> 115.0 | H28: =IFERROR(VLOOKUP(A28,'В автобиржах'!$A$2:$B$20000,2,0),"") -> 
A29: гитаршкола.рф | B29: =IFERROR(VLOOKUP(A29,GGL!$A$2:$D$20000,4,0),"") -> 110 | C29: =IFERROR(VLOOKUP(A29,GetGoodLinks!$A$2:$B$20000,2,0),"") ->  | D29: =IFERROR(VLOOKUP(A29,RotaPost!$A$2:$E$20000,5,0),"") ->  | E29: =IFERROR(VLOOKUP(A29,PR.Sape!$A$2:$F$20000,6,0),"") ->  | F29: =IFERROR(VLOOKUP(A29,Miralinks!$A$2:$B$20000,2,0),"") ->  | G29: =IF(Config!$C$7="Минимальная",MIN(IF(B29:F29<>0,B29:F29,"")),IF(Config!$C$7="Максимальная",MAX(B29:F29),AVERAGE(B29:F29))) -> 110.0 | H29: =IFERROR(VLOOKUP(A29,'В автобиржах'!$A$2:$B$20000,2,0),"") -> 
A30: городок-мам.рф | B30: =IFERROR(VLOOKUP(A30,GGL!$A$2:$D$20000,4,0),"") -> 165 | C30: =IFERROR(VLOOKUP(A30,GetGoodLinks!$A$2:$B$20000,2,0),"") ->  | D30: =IFERROR(VLOOKUP(A30,RotaPost!$A$2:$E$20000,5,0),"") ->  | E30: =IFERROR(VLOOKUP(A30,PR.Sape!$A$2:$F$20000,6,0),"") ->  | F30: =IFERROR(VLOOKUP(A30,Miralinks!$A$2:$B$20000,2,0),"") ->  | G30: =IF(Config!$C$7="Минимальная",MIN(IF(B30:F30<>0,B30:F30,"")),IF(Config!$C$7="Максимальная",MAX(B30:F30),AVERAGE(B30:F30))) -> 165.0 | H30: =IFERROR(VLOOKUP(A30,'В автобиржах'!$A$2:$B$20000,2,0),"") -> 
A31: дачаткачева.рф | B31: =IFERROR(VLOOKUP(A31,GGL!$A$2:$D$20000,4,0),"") ->  | C31: =IFERROR(VLOOKUP(A31,GetGoodLinks!$A$2:$B$20000,2,0),"") ->  | D31: =IFERROR(VLOOKUP(A31,RotaPost!$A$2:$E$20000,5,0),"") -> 89 | E31: =IFERROR(VLOOKUP(A31,PR.Sape!$A$2:$F$20000,6,0),"") -> 117.94 | F31: =IFERROR(VLOOKUP(A31,Miralinks!$A$2:$B$20000,2,0),"") ->  | G31: =IF(Config!$C$7="Минимальная",MIN(IF(B31:F31<>0,B31:F31,"")),IF(Config!$C$7="Максимальная",MAX(B31:F31),AVERAGE(B31:F31))) -> 103.5 | H31: =IFERROR(VLOOKUP(A31,'В автобиржах'!$A$2:$B$20000,2,0),"") -> 
A32: двери-ннов.рф | B32: =IFERROR(VLOOKUP(A32,GGL!$A$2:$D$20000,4,0),"") ->  | C32: =IFERROR(VLOOKUP(A32,GetGoodLinks!$A$2:$B$20000,2,0),"") ->  | D32: =IFERROR(VLOOKUP(A32,RotaPost!$A$2:$E$20000,5,0),"") -> 44 | E32: =IFERROR(VLOOKUP(A32,PR.Sape!$A$2:$F$20000,6,0),"") -> 48.89 | F32: =IFERROR(VLOOKUP(A32,Miralinks!$A$2:$B$20000,2,0),"") ->  | G32: =IF(Config!$C$7="Минимальная",MIN(IF(B32:F32<>0,B32:F32,"")),IF(Config!$C$7="Максимальная",MAX(B32:F32),AVERAGE(B32:F32))) -> 46.4 | H32: =IFERROR(VLOOKUP(A32,'В автобиржах'!$A$2:$B$20000,2,0),"") -> 
A33: деловар.рф | B33: =IFERROR(VLOOKUP(A33,GGL!$A$2:$D$20000,4,0),"") ->  | C33: =IFERROR(VLOOKUP(A33,GetGoodLinks!$A$2:$B$20000,2,0),"") ->  | D33: =IFERROR(VLOOKUP(A33,RotaPost!$A$2:$E$20000,5,0),"") -> 45 | E33: =IFERROR(VLOOKUP(A33,PR.Sape!$A$2:$F$20000,6,0),"") ->  | F33: =IFERROR(VLOOKUP(A33,Miralinks!$A$2:$B$20000,2,0),"") ->  | G33: =IF(Config!$C$7="Минимальная",MIN(IF(B33:F33<>0,B33:F33,"")),IF(Config!$C$7="Максимальная",MAX(B33:F33),AVERAGE(B33:F33))) -> 45.0 | H33: =IFERROR(VLOOKUP(A33,'В автобиржах'!$A$2:$B$20000,2,0),"") -> 1
A34: дельфин.org | B34: =IFERROR(VLOOKUP(A34,GGL!$A$2:$D$20000,4,0),"") ->  | C34: =IFERROR(VLOOKUP(A34,GetGoodLinks!$A$2:$B$20000,2,0),"") ->  | D34: =IFERROR(VLOOKUP(A34,RotaPost!$A$2:$E$20000,5,0),"") -> 100 | E34: =IFERROR(VLOOKUP(A34,PR.Sape!$A$2:$F$20000,6,0),"") ->  | F34: =IFERROR(VLOOKUP(A34,Miralinks!$A$2:$B$20000,2,0),"") ->  | G34: =IF(Config!$C$7="Минимальная",MIN(IF(B34:F34<>0,B34:F34,"")),IF(Config!$C$7="Максимальная",MAX(B34:F34),AVERAGE(B34:F34))) -> 100.0 | H34: =IFERROR(VLOOKUP(A34,'В автобиржах'!$A$2:$B$20000,2,0),"") -> 
A35: диоптрика.рф | B35: =IFERROR(VLOOKUP(A35,GGL!$A$2:$D$20000,4,0),"") ->  | C35: =IFERROR(VLOOKUP(A35,GetGoodLinks!$A$2:$B$20000,2,0),"") ->  | D35: =IFERROR(VLOOKUP(A35,RotaPost!$A$2:$E$20000,5,0),"") -> 44 | E35: =IFERROR(VLOOKUP(A35,PR.Sape!$A$2:$F$20000,6,0),"") ->  | F35: =IFERROR(VLOOKUP(A35,Miralinks!$A$2:$B$20000,2,0),"") ->  | G35: =IF(Config!$C$7="Минимальная",MIN(IF(B35:F35<>0,B35:F35,"")),IF(Config!$C$7="Максимальная",MAX(B35:F35),AVERAGE(B35:F35))) -> 44.0 | H35: =IFERROR(VLOOKUP(A35,'В автобиржах'!$A$2:$B$20000,2,0),"") -> 
A36: дитис24.рф | B36: =IFERROR(VLOOKUP(A36,GGL!$A$2:$D$20000,4,0),"") ->  | C36: =IFERROR(VLOOKUP(A36,GetGoodLinks!$A$2:$B$20000,2,0),"") ->  | D36: =IFERROR(VLOOKUP(A36,RotaPost!$A$2:$E$20000,5,0),"") -> 44 | E36: =IFERROR(VLOOKUP(A36,PR.Sape!$A$2:$F$20000,6,0),"") -> 48.89 | F36: =IFERROR(VLOOKUP(A36,Miralinks!$A$2:$B$20000,2,0),"") ->  | G36: =IF(Config!$C$7="Минимальная",MIN(IF(B36:F36<>0,B36:F36,"")),IF(Config!$C$7="Максимальная",MAX(B36:F36),AVERAGE(B36:F36))) -> 46.4 | H36: =IFERROR(VLOOKUP(A36,'В автобиржах'!$A$2:$B$20000,2,0),"") -> 
A37: доктор-эндокринолог.рф | B37: =IFERROR(VLOOKUP(A37,GGL!$A$2:$D$20000,4,0),"") ->  | C37: =IFERROR(VLOOKUP(A37,GetGoodLinks!$A$2:$B$20000,2,0),"") ->  | D37: =IFERROR(VLOOKUP(A37,RotaPost!$A$2:$E$20000,5,0),"") ->  | E37: =IFERROR(VLOOKUP(A37,PR.Sape!$A$2:$F$20000,6,0),"") -> 64.78 | F37: =IFERROR(VLOOKUP(A37,Miralinks!$A$2:$B$20000,2,0),"") ->  | G37: =IF(Config!$C$7="Минимальная",MIN(IF(B37:F37<>0,B37:F37,"")),IF(Config!$C$7="Максимальная",MAX(B37:F37),AVERAGE(B37:F37))) -> 64.8 | H37: =IFERROR(VLOOKUP(A37,'В автобиржах'!$A$2:$B$20000,2,0),"") -> 
A38: домаизбруса24.рф | B38: =IFERROR(VLOOKUP(A38,GGL!$A$2:$D$20000,4,0),"") ->  | C38: =IFERROR(VLOOKUP(A38,GetGoodLinks!$A$2:$B$20000,2,0),"") ->  | D38: =IFERROR(VLOOKUP(A38,RotaPost!$A$2:$E$20000,5,0),"") -> 58 | E38: =IFERROR(VLOOKUP(A38,PR.Sape!$A$2:$F$20000,6,0),"") -> 48.89 | F38: =IFERROR(VLOOKUP(A38,Miralinks!$A$2:$B$20000,2,0),"") ->  | G38: =IF(Config!$C$7="Минимальная",MIN(IF(B38:F38<>0,B38:F38,"")),IF(Config!$C$7="Максимальная",MAX(B38:F38),AVERAGE(B38:F38))) -> 53.4 | H38: =IFERROR(VLOOKUP(A38,'В автобиржах'!$A$2:$B$20000,2,0),"") -> 
A39: жнвлп.рф | B39: =IFERROR(VLOOKUP(A39,GGL!$A$2:$D$20000,4,0),"") ->  | C39: =IFERROR(VLOOKUP(A39,GetGoodLinks!$A$2:$B$20000,2,0),"") ->  | D39: =IFERROR(VLOOKUP(A39,RotaPost!$A$2:$E$20000,5,0),"") -> 95 | E39: =IFERROR(VLOOKUP(A39,PR.Sape!$A$2:$F$20000,6,0),"") -> 127.11 | F39: =IFERROR(VLOOKUP(A39,Miralinks!$A$2:$B$20000,2,0),"") -> 150 | G39: =IF(Config!$C$7="Минимальная",MIN(IF(B39:F39<>0,B39:F39,"")),IF(Config!$C$7="Максимальная",MAX(B39:F39),AVERAGE(B39:F39))) -> 124.0 | H39: =IFERROR(VLOOKUP(A39,'В автобиржах'!$A$2:$B$20000,2,0),"") -> 
A40: зазсаратов.рф | B40: =IFERROR(VLOOKUP(A40,GGL!$A$2:$D$20000,4,0),"") ->  | C40: =IFERROR(VLOOKUP(A40,GetGoodLinks!$A$2:$B$20000,2,0),"") ->  | D40: =IFERROR(VLOOKUP(A40,RotaPost!$A$2:$E$20000,5,0),"") ->  | E40: =IFERROR(VLOOKUP(A40,PR.Sape!$A$2:$F$20000,6,0),"") -> 611.11 | F40: =IFERROR(VLOOKUP(A40,Miralinks!$A$2:$B$20000,2,0),"") ->  | G40: =IF(Config!$C$7="Минимальная",MIN(IF(B40:F40<>0,B40:F40,"")),IF(Config!$C$7="Максимальная",MAX(B40:F40),AVERAGE(B40:F40))) -> 611.1 | H40: =IFERROR(VLOOKUP(A40,'В автобиржах'!$A$2:$B$20000,2,0),"") -> 
A41: заработать-в-интернете.com.ua | B41: =IFERROR(VLOOKUP(A41,GGL!$A$2:$D$20000,4,0),"") ->  | C41: =IFERROR(VLOOKUP(A41,GetGoodLinks!$A$2:$B$20000,2,0),"") ->  | D41: =IFERROR(VLOOKUP(A41,RotaPost!$A$2:$E$20000,5,0),"") ->  | E41: =IFERROR(VLOOKUP(A41,PR.Sape!$A$2:$F$20000,6,0),"") -> 85.56 | F41: =IFERROR(VLOOKUP(A41,Miralinks!$A$2:$B$20000,2,0),"") ->  | G41: =IF(Config!$C$7="Минимальная",MIN(IF(B41:F41<>0,B41:F41,"")),IF(Config!$C$7="Максимальная",MAX(B41:F41),AVERAGE(B41:F41))) -> 85.6 | H41: =IFERROR(VLOOKUP(A41,'В автобиржах'!$A$2:$B$20000,2,0),"") -> 
A42: здоровый-пупс.рф | B42: =IFERROR(VLOOKUP(A42,GGL!$A$2:$D$20000,4,0),"") -> 165 | C42: =IFERROR(VLOOKUP(A42,GetGoodLinks!$A$2:$B$20000,2,0),"") ->  | D42: =IFERROR(VLOOKUP(A42,RotaPost!$A$2:$E$20000,5,0),"") ->  | E42: =IFERROR(VLOOKUP(A42,PR.Sape!$A$2:$F$20000,6,0),"") ->  | F42: =IFERROR(VLOOKUP(A42,Miralinks!$A$2:$B$20000,2,0),"") ->  | G42: =IF(Config!$C$7="Минимальная",MIN(IF(B42:F42<>0,B42:F42,"")),IF(Config!$C$7="Максимальная",MAX(B42:F42),AVERAGE(B42:F42))) -> 165.0 | H42: =IFERROR(VLOOKUP(A42,'В автобиржах'!$A$2:$B$20000,2,0),"") -> 
A43: зклин.рф | B43: =IFERROR(VLOOKUP(A43,GGL!$A$2:$D$20000,4,0),"") ->  | C43: =IFERROR(VLOOKUP(A43,GetGoodLinks!$A$2:$B$20000,2,0),"") ->  | D43: =IFERROR(VLOOKUP(A43,RotaPost!$A$2:$E$20000,5,0),"") -> 44 | E43: =IFERROR(VLOOKUP(A43,PR.Sape!$A$2:$F$20000,6,0),"") ->  | F43: =IFERROR(VLOOKUP(A43,Miralinks!$A$2:$B$20000,2,0),"") ->  | G43: =IF(Config!$C$7="Минимальная",MIN(IF(B43:F43<>0,B43:F43,"")),IF(Config!$C$7="Максимальная",MAX(B43:F43),AVERAGE(B43:F43))) -> 44.0 | H43: =IFERROR(VLOOKUP(A43,'В автобиржах'!$A$2:$B$20000,2,0),"") -> 
A44: знаменитости-вконтакте.рф | B44: =IFERROR(VLOOKUP(A44,GGL!$A$2:$D$20000,4,0),"") ->  | C44: =IFERROR(VLOOKUP(A44,GetGoodLinks!$A$2:$B$20000,2,0),"") ->  | D44: =IFERROR(VLOOKUP(A44,RotaPost!$A$2:$E$20000,5,0),"") -> 44 | E44: =IFERROR(VLOOKUP(A44,PR.Sape!$A$2:$F$20000,6,0),"") ->  | F44: =IFERROR(VLOOKUP(A44,Miralinks!$A$2:$B$20000,2,0),"") ->  | G44: =IF(Config!$C$7="Минимальная",MIN(IF(B44:F44<>0,B44:F44,"")),IF(Config!$C$7="Максимальная",MAX(B44:F44),AVERAGE(B44:F44))) -> 44.0 | H44: =IFERROR(VLOOKUP(A44,'В автобиржах'!$A$2:$B$20000,2,0),"") -> 1
A45: зооврачи.рф | B45: =IFERROR(VLOOKUP(A45,GGL!$A$2:$D$20000,4,0),"") ->  | C45: =IFERROR(VLOOKUP(A45,GetGoodLinks!$A$2:$B$20000,2,0),"") ->  | D45: =IFERROR(VLOOKUP(A45,RotaPost!$A$2:$E$20000,5,0),"") -> 58 | E45: =IFERROR(VLOOKUP(A45,PR.Sape!$A$2:$F$20000,6,0),"") ->  | F45: =IFERROR(VLOOKUP(A45,Miralinks!$A$2:$B$20000,2,0),"") ->  | G45: =IF(Config!$C$7="Минимальная",MIN(IF(B45:F45<>0,B45:F45,"")),IF(Config!$C$7="Максимальная",MAX(B45:F45),AVERAGE(B45:F45))) -> 58.0 | H45: =IFERROR(VLOOKUP(A45,'В автобиржах'!$A$2:$B$20000,2,0),"") -> 
A46: игрорадуга.рф | B46: =IFERROR(VLOOKUP(A46,GGL!$A$2:$D$20000,4,0),"") ->  | C46: =IFERROR(VLOOKUP(A46,GetGoodLinks!$A$2:$B$20000,2,0),"") ->  | D46: =IFERROR(VLOOKUP(A46,RotaPost!$A$2:$E$20000,5,0),"") -> 44 | E46: =IFERROR(VLOOKUP(A46,PR.Sape!$A$2:$F$20000,6,0),"") ->  | F46: =IFERROR(VLOOKUP(A46,Miralinks!$A$2:$B$20000,2,0),"") ->  | G46: =IF(Config!$C$7="Минимальная",MIN(IF(B46:F46<>0,B46:F46,"")),IF(Config!$C$7="Максимальная",MAX(B46:F46),AVERAGE(B46:F46))) -> 44.0 | H46: =IFERROR(VLOOKUP(A46,'В автобиржах'!$A$2:$B$20000,2,0),"") -> 
A47: империал-интерьер.рф | B47: =IFERROR(VLOOKUP(A47,GGL!$A$2:$D$20000,4,0),"") ->  | C47: =IFERROR(VLOOKUP(A47,GetGoodLinks!$A$2:$B$20000,2,0),"") ->  | D47: =IFERROR(VLOOKUP(A47,RotaPost!$A$2:$E$20000,5,0),"") -> 44 | E47: =IFERROR(VLOOKUP(A47,PR.Sape!$A$2:$F$20000,6,0),"") ->  | F47: =IFERROR(VLOOKUP(A47,Miralinks!$A$2:$B$20000,2,0),"") ->  | G47: =IF(Config!$C$7="Минимальная",MIN(IF(B47:F47<>0,B47:F47,"")),IF(Config!$C$7="Максимальная",MAX(B47:F47),AVERAGE(B47:F47))) -> 44.0 | H47: =IFERROR(VLOOKUP(A47,'В автобиржах'!$A$2:$B$20000,2,0),"") -> 
A48: интеркамень.рф | B48: =IFERROR(VLOOKUP(A48,GGL!$A$2:$D$20000,4,0),"") ->  | C48: =IFERROR(VLOOKUP(A48,GetGoodLinks!$A$2:$B$20000,2,0),"") ->  | D48: =IFERROR(VLOOKUP(A48,RotaPost!$A$2:$E$20000,5,0),"") ->  | E48: =IFERROR(VLOOKUP(A48,PR.Sape!$A$2:$F$20000,6,0),"") -> 53.78 | F48: =IFERROR(VLOOKUP(A48,Miralinks!$A$2:$B$20000,2,0),"") ->  | G48: =IF(Config!$C$7="Минимальная",MIN(IF(B48:F48<>0,B48:F48,"")),IF(Config!$C$7="Максимальная",MAX(B48:F48),AVERAGE(B48:F48))) -> 53.8 | H48: =IFERROR(VLOOKUP(A48,'В автобиржах'!$A$2:$B$20000,2,0),"") -> 
A49: интурсервис.рф | B49: =IFERROR(VLOOKUP(A49,GGL!$A$2:$D$20000,4,0),"") ->  | C49: =IFERROR(VLOOKUP(A49,GetGoodLinks!$A$2:$B$20000,2,0),"") ->  | D49: =IFERROR(VLOOKUP(A49,RotaPost!$A$2:$E$20000,5,0),"") -> 44 | E49: =IFERROR(VLOOKUP(A49,PR.Sape!$A$2:$F$20000,6,0),"") ->  | F49: =IFERROR(VLOOKUP(A49,Miralinks!$A$2:$B$20000,2,0),"") ->  | G49: =IF(Config!$C$7="Минимальная",MIN(IF(B49:F49<>0,B49:F49,"")),IF(Config!$C$7="Максимальная",MAX(B49:F49),AVERAGE(B49:F49))) -> 44.0 | H49: =IFERROR(VLOOKUP(A49,'В автобиржах'!$A$2:$B$20000,2,0),"") -> 
A50: ислам-россия.рф | B50: =IFERROR(VLOOKUP(A50,GGL!$A$2:$D$20000,4,0),"") ->  | C50: =IFERROR(VLOOKUP(A50,GetGoodLinks!$A$2:$B$20000,2,0),"") ->  | D50: =IFERROR(VLOOKUP(A50,RotaPost!$A$2:$E$20000,5,0),"") ->  | E50: =IFERROR(VLOOKUP(A50,PR.Sape!$A$2:$F$20000,6,0),"") -> 53.17 | F50: =IFERROR(VLOOKUP(A50,Miralinks!$A$2:$B$20000,2,0),"") ->  | G50: =IF(Config!$C$7="Минимальная",MIN(IF(B50:F50<>0,B50:F50,"")),IF(Config!$C$7="Максимальная",MAX(B50:F50),AVERAGE(B50:F50))) -> 53.2 | H50: =IFERROR(VLOOKUP(A50,'В автобиржах'!$A$2:$B$20000,2,0),"") -> 
A51: каксделатьсвоимируками.рф | B51: =IFERROR(VLOOKUP(A51,GGL!$A$2:$D$20000,4,0),"") ->  | C51: =IFERROR(VLOOKUP(A51,GetGoodLinks!$A$2:$B$20000,2,0),"") ->  | D51: =IFERROR(VLOOKUP(A51,RotaPost!$A$2:$E$20000,5,0),"") ->  | E51: =IFERROR(VLOOKUP(A51,PR.Sape!$A$2:$F$20000,6,0),"") -> 231 | F51: =IFERROR(VLOOKUP(A51,Miralinks!$A$2:$B$20000,2,0),"") ->  | G51: =IF(Config!$C$7="Минимальная",MIN(IF(B51:F51<>0,B51:F51,"")),IF(Config!$C$7="Максимальная",MAX(B51:F51),AVERAGE(B51:F51))) -> 231.0 | H51: =IFERROR(VLOOKUP(A51,'В автобиржах'!$A$2:$B$20000,2,0),"") -> 
A52: кар-авто.рф | B52: =IFERROR(VLOOKUP(A52,GGL!$A$2:$D$20000,4,0),"") ->  | C52: =IFERROR(VLOOKUP(A52,GetGoodLinks!$A$2:$B$20000,2,0),"") ->  | D52: =IFERROR(VLOOKUP(A52,RotaPost!$A$2:$E$20000,5,0),"") -> 65 | E52: =IFERROR(VLOOKUP(A52,PR.Sape!$A$2:$F$20000,6,0),"") ->  | F52: =IFERROR(VLOOKUP(A52,Miralinks!$A$2:$B$20000,2,0),"") ->  | G52: =IF(Config!$C$7="Минимальная",MIN(IF(B52:F52<>0,B52:F52,"")),IF(Config!$C$7="Максимальная",MAX(B52:F52),AVERAGE(B52:F52))) -> 65.0 | H52: =IFERROR(VLOOKUP(A52,'В автобиржах'!$A$2:$B$20000,2,0),"") -> 
A53: кафе-эдем.рф | B53: =IFERROR(VLOOKUP(A53,GGL!$A$2:$D$20000,4,0),"") ->  | C53: =IFERROR(VLOOKUP(A53,GetGoodLinks!$A$2:$B$20000,2,0),"") ->  | D53: =IFERROR(VLOOKUP(A53,RotaPost!$A$2:$E$20000,5,0),"") ->  | E53: =IFERROR(VLOOKUP(A53,PR.Sape!$A$2:$F$20000,6,0),"") -> 48.89 | F53: =IFERROR(VLOOKUP(A53,Miralinks!$A$2:$B$20000,2,0),"") ->  | G53: =IF(Config!$C$7="Минимальная",MIN(IF(B53:F53<>0,B53:F53,"")),IF(Config!$C$7="Максимальная",MAX(B53:F53),AVERAGE(B53:F53))) -> 48.9 | H53: =IFERROR(VLOOKUP(A53,'В автобиржах'!$A$2:$B$20000,2,0),"") -> 
A54: кимры-пресса.рф | B54: =IFERROR(VLOOKUP(A54,GGL!$A$2:$D$20000,4,0),"") ->  | C54: =IFERROR(VLOOKUP(A54,GetGoodLinks!$A$2:$B$20000,2,0),"") ->  | D54: =IFERROR(VLOOKUP(A54,RotaPost!$A$2:$E$20000,5,0),"") -> 55 | E54: =IFERROR(VLOOKUP(A54,PR.Sape!$A$2:$F$20000,6,0),"") ->  | F54: =IFERROR(VLOOKUP(A54,Miralinks!$A$2:$B$20000,2,0),"") ->  | G54: =IF(Config!$C$7="Минимальная",MIN(IF(B54:F54<>0,B54:F54,"")),IF(Config!$C$7="Максимальная",MAX(B54:F54),AVERAGE(B54:F54))) -> 55.0 | H54: =IFERROR(VLOOKUP(A54,'В автобиржах'!$A$2:$B$20000,2,0),"") -> 
A55: кинотанец.рф | B55: =IFERROR(VLOOKUP(A55,GGL!$A$2:$D$20000,4,0),"") ->  | C55: =IFERROR(VLOOKUP(A55,GetGoodLinks!$A$2:$B$20000,2,0),"") ->  | D55: =IFERROR(VLOOKUP(A55,RotaPost!$A$2:$E$20000,5,0),"") -> 44 | E55: =IFERROR(VLOOKUP(A55,PR.Sape!$A$2:$F$20000,6,0),"") -> 48.89 | F55: =IFERROR(VLOOKUP(A55,Miralinks!$A$2:$B$20000,2,0),"") ->  | G55: =IF(Config!$C$7="Минимальная",MIN(IF(B55:F55<>0,B55:F55,"")),IF(Config!$C$7="Максимальная",MAX(B55:F55),AVERAGE(B55:F55))) -> 46.4 | H55: =IFERROR(VLOOKUP(A55,'В автобиржах'!$A$2:$B$20000,2,0),"") -> 
A56: класс-продаж.рф | B56: =IFERROR(VLOOKUP(A56,GGL!$A$2:$D$20000,4,0),"") ->  | C56: =IFERROR(VLOOKUP(A56,GetGoodLinks!$A$2:$B$20000,2,0),"") ->  | D56: =IFERROR(VLOOKUP(A56,RotaPost!$A$2:$E$20000,5,0),"") -> 58 | E56: =IFERROR(VLOOKUP(A56,PR.Sape!$A$2:$F$20000,6,0),"") -> 48.89 | F56: =IFERROR(VLOOKUP(A56,Miralinks!$A$2:$B$20000,2,0),"") ->  | G56: =IF(Config!$C$7="Минимальная",MIN(IF(B56:F56<>0,B56:F56,"")),IF(Config!$C$7="Максимальная",MAX(B56:F56),AVERAGE(B56:F56))) -> 53.4 | H56: =IFERROR(VLOOKUP(A56,'В автобиржах'!$A$2:$B$20000,2,0),"") -> 
A57: кмв-ремонт.рф | B57: =IFERROR(VLOOKUP(A57,GGL!$A$2:$D$20000,4,0),"") ->  | C57: =IFERROR(VLOOKUP(A57,GetGoodLinks!$A$2:$B$20000,2,0),"") ->  | D57: =IFERROR(VLOOKUP(A57,RotaPost!$A$2:$E$20000,5,0),"") ->  | E57: =IFERROR(VLOOKUP(A57,PR.Sape!$A$2:$F$20000,6,0),"") -> 122.22 | F57: =IFERROR(VLOOKUP(A57,Miralinks!$A$2:$B$20000,2,0),"") ->  | G57: =IF(Config!$C$7="Минимальная",MIN(IF(B57:F57<>0,B57:F57,"")),IF(Config!$C$7="Максимальная",MAX(B57:F57),AVERAGE(B57:F57))) -> 122.2 | H57: =IFERROR(VLOOKUP(A57,'В автобиржах'!$A$2:$B$20000,2,0),"") -> 
A58: коркодил.рф | B58: =IFERROR(VLOOKUP(A58,GGL!$A$2:$D$20000,4,0),"") ->  | C58: =IFERROR(VLOOKUP(A58,GetGoodLinks!$A$2:$B$20000,2,0),"") ->  | D58: =IFERROR(VLOOKUP(A58,RotaPost!$A$2:$E$20000,5,0),"") -> 500 | E58: =IFERROR(VLOOKUP(A58,PR.Sape!$A$2:$F$20000,6,0),"") ->  | F58: =IFERROR(VLOOKUP(A58,Miralinks!$A$2:$B$20000,2,0),"") ->  | G58: =IF(Config!$C$7="Минимальная",MIN(IF(B58:F58<>0,B58:F58,"")),IF(Config!$C$7="Максимальная",MAX(B58:F58),AVERAGE(B58:F58))) -> 500.0 | H58: =IFERROR(VLOOKUP(A58,'В автобиржах'!$A$2:$B$20000,2,0),"") -> 
A59: красносельск-арм.рф | B59: =IFERROR(VLOOKUP(A59,GGL!$A$2:$D$20000,4,0),"") ->  | C59: =IFERROR(VLOOKUP(A59,GetGoodLinks!$A$2:$B$20000,2,0),"") ->  | D59: =IFERROR(VLOOKUP(A59,RotaPost!$A$2:$E$20000,5,0),"") ->  | E59: =IFERROR(VLOOKUP(A59,PR.Sape!$A$2:$F$20000,6,0),"") -> 61.11 | F59: =IFERROR(VLOOKUP(A59,Miralinks!$A$2:$B$20000,2,0),"") ->  | G59: =IF(Config!$C$7="Минимальная",MIN(IF(B59:F59<>0,B59:F59,"")),IF(Config!$C$7="Максимальная",MAX(B59:F59),AVERAGE(B59:F59))) -> 61.1 | H59: =IFERROR(VLOOKUP(A59,'В автобиржах'!$A$2:$B$20000,2,0),"") -> 
A60: красныйша.рф | B60: =IFERROR(VLOOKUP(A60,GGL!$A$2:$D$20000,4,0),"") ->  | C60: =IFERROR(VLOOKUP(A60,GetGoodLinks!$A$2:$B$20000,2,0),"") ->  | D60: =IFERROR(VLOOKUP(A60,RotaPost!$A$2:$E$20000,5,0),"") -> 26 | E60: =IFERROR(VLOOKUP(A60,PR.Sape!$A$2:$F$20000,6,0),"") ->  | F60: =IFERROR(VLOOKUP(A60,Miralinks!$A$2:$B$20000,2,0),"") ->  | G60: =IF(Config!$C$7="Минимальная",MIN(IF(B60:F60<>0,B60:F60,"")),IF(Config!$C$7="Максимальная",MAX(B60:F60),AVERAGE(B60:F60))) -> 26.0 | H60: =IFERROR(VLOOKUP(A60,'В автобиржах'!$A$2:$B$20000,2,0),"") -> 
A61: круизыпобайкалу.рф | B61: =IFERROR(VLOOKUP(A61,GGL!$A$2:$D$20000,4,0),"") ->  | C61: =IFERROR(VLOOKUP(A61,GetGoodLinks!$A$2:$B$20000,2,0),"") ->  | D61: =IFERROR(VLOOKUP(A61,RotaPost!$A$2:$E$20000,5,0),"") -> 44 | E61: =IFERROR(VLOOKUP(A61,PR.Sape!$A$2:$F$20000,6,0),"") -> 48.89 | F61: =IFERROR(VLOOKUP(A61,Miralinks!$A$2:$B$20000,2,0),"") ->  | G61: =IF(Config!$C$7="Минимальная",MIN(IF(B61:F61<>0,B61:F61,"")),IF(Config!$C$7="Максимальная",MAX(B61:F61),AVERAGE(B61:F61))) -> 46.4 | H61: =IFERROR(VLOOKUP(A61,'В автобиржах'!$A$2:$B$20000,2,0),"") -> 
A62: лекарственные-растения.рф | B62: =IFERROR(VLOOKUP(A62,GGL!$A$2:$D$20000,4,0),"") ->  | C62: =IFERROR(VLOOKUP(A62,GetGoodLinks!$A$2:$B$20000,2,0),"") ->  | D62: =IFERROR(VLOOKUP(A62,RotaPost!$A$2:$E$20000,5,0),"") ->  | E62: =IFERROR(VLOOKUP(A62,PR.Sape!$A$2:$F$20000,6,0),"") -> 73.33 | F62: =IFERROR(VLOOKUP(A62,Miralinks!$A$2:$B$20000,2,0),"") ->  | G62: =IF(Config!$C$7="Минимальная",MIN(IF(B62:F62<>0,B62:F62,"")),IF(Config!$C$7="Максимальная",MAX(B62:F62),AVERAGE(B62:F62))) -> 73.3 | H62: =IFERROR(VLOOKUP(A62,'В автобиржах'!$A$2:$B$20000,2,0),"") -> 
A63: лучший.su | B63: =IFERROR(VLOOKUP(A63,GGL!$A$2:$D$20000,4,0),"") ->  | C63: =IFERROR(VLOOKUP(A63,GetGoodLinks!$A$2:$B$20000,2,0),"") ->  | D63: =IFERROR(VLOOKUP(A63,RotaPost!$A$2:$E$20000,5,0),"") -> 98 | E63: =IFERROR(VLOOKUP(A63,PR.Sape!$A$2:$F$20000,6,0),"") -> 144.22 | F63: =IFERROR(VLOOKUP(A63,Miralinks!$A$2:$B$20000,2,0),"") ->  | G63: =IF(Config!$C$7="Минимальная",MIN(IF(B63:F63<>0,B63:F63,"")),IF(Config!$C$7="Максимальная",MAX(B63:F63),AVERAGE(B63:F63))) -> 121.1 | H63: =IFERROR(VLOOKUP(A63,'В автобиржах'!$A$2:$B$20000,2,0),"") -> 
A64: любимая-диета.рф | B64: =IFERROR(VLOOKUP(A64,GGL!$A$2:$D$20000,4,0),"") ->  | C64: =IFERROR(VLOOKUP(A64,GetGoodLinks!$A$2:$B$20000,2,0),"") ->  | D64: =IFERROR(VLOOKUP(A64,RotaPost!$A$2:$E$20000,5,0),"") -> 120 | E64: =IFERROR(VLOOKUP(A64,PR.Sape!$A$2:$F$20000,6,0),"") ->  | F64: =IFERROR(VLOOKUP(A64,Miralinks!$A$2:$B$20000,2,0),"") ->  | G64: =IF(Config!$C$7="Минимальная",MIN(IF(B64:F64<>0,B64:F64,"")),IF(Config!$C$7="Максимальная",MAX(B64:F64),AVERAGE(B64:F64))) -> 120.0 | H64: =IFERROR(VLOOKUP(A64,'В автобиржах'!$A$2:$B$20000,2,0),"") -> 
A65: максстройинвест.рф | B65: =IFERROR(VLOOKUP(A65,GGL!$A$2:$D$20000,4,0),"") ->  | C65: =IFERROR(VLOOKUP(A65,GetGoodLinks!$A$2:$B$20000,2,0),"") ->  | D65: =IFERROR(VLOOKUP(A65,RotaPost!$A$2:$E$20000,5,0),"") -> 70 | E65: =IFERROR(VLOOKUP(A65,PR.Sape!$A$2:$F$20000,6,0),"") ->  | F65: =IFERROR(VLOOKUP(A65,Miralinks!$A$2:$B$20000,2,0),"") ->  | G65: =IF(Config!$C$7="Минимальная",MIN(IF(B65:F65<>0,B65:F65,"")),IF(Config!$C$7="Максимальная",MAX(B65:F65),AVERAGE(B65:F65))) -> 70.0 | H65: =IFERROR(VLOOKUP(A65,'В автобиржах'!$A$2:$B$20000,2,0),"") -> 
A66: малая-вишера.рф | B66: =IFERROR(VLOOKUP(A66,GGL!$A$2:$D$20000,4,0),"") ->  | C66: =IFERROR(VLOOKUP(A66,GetGoodLinks!$A$2:$B$20000,2,0),"") ->  | D66: =IFERROR(VLOOKUP(A66,RotaPost!$A$2:$E$20000,5,0),"") -> 30 | E66: =IFERROR(VLOOKUP(A66,PR.Sape!$A$2:$F$20000,6,0),"") ->  | F66: =IFERROR(VLOOKUP(A66,Miralinks!$A$2:$B$20000,2,0),"") ->  | G66: =IF(Config!$C$7="Минимальная",MIN(IF(B66:F66<>0,B66:F66,"")),IF(Config!$C$7="Максимальная",MAX(B66:F66),AVERAGE(B66:F66))) -> 30.0 | H66: =IFERROR(VLOOKUP(A66,'В автобиржах'!$A$2:$B$20000,2,0),"") -> 
A67: малое-предпринимательство.рф | B67: =IFERROR(VLOOKUP(A67,GGL!$A$2:$D$20000,4,0),"") ->  | C67: =IFERROR(VLOOKUP(A67,GetGoodLinks!$A$2:$B$20000,2,0),"") ->  | D67: =IFERROR(VLOOKUP(A67,RotaPost!$A$2:$E$20000,5,0),"") ->  | E67: =IFERROR(VLOOKUP(A67,PR.Sape!$A$2:$F$20000,6,0),"") -> 183.33 | F67: =IFERROR(VLOOKUP(A67,Miralinks!$A$2:$B$20000,2,0),"") ->  | G67: =IF(Config!$C$7="Минимальная",MIN(IF(B67:F67<>0,B67:F67,"")),IF(Config!$C$7="Максимальная",MAX(B67:F67),AVERAGE(B67:F67))) -> 183.3 | H67: =IFERROR(VLOOKUP(A67,'В автобиржах'!$A$2:$B$20000,2,0),"") -> 1
A68: мастер-портал.рф | B68: =IFERROR(VLOOKUP(A68,GGL!$A$2:$D$20000,4,0),"") ->  | C68: =IFERROR(VLOOKUP(A68,GetGoodLinks!$A$2:$B$20000,2,0),"") ->  | D68: =IFERROR(VLOOKUP(A68,RotaPost!$A$2:$E$20000,5,0),"") ->  | E68: =IFERROR(VLOOKUP(A68,PR.Sape!$A$2:$F$20000,6,0),"") -> 122.22 | F68: =IFERROR(VLOOKUP(A68,Miralinks!$A$2:$B$20000,2,0),"") ->  | G68: =IF(Config!$C$7="Минимальная",MIN(IF(B68:F68<>0,B68:F68,"")),IF(Config!$C$7="Максимальная",MAX(B68:F68),AVERAGE(B68:F68))) -> 122.2 | H68: =IFERROR(VLOOKUP(A68,'В автобиржах'!$A$2:$B$20000,2,0),"") -> 1
A69: мегавебстудия.рф | B69: =IFERROR(VLOOKUP(A69,GGL!$A$2:$D$20000,4,0),"") ->  | C69: =IFERROR(VLOOKUP(A69,GetGoodLinks!$A$2:$B$20000,2,0),"") ->  | D69: =IFERROR(VLOOKUP(A69,RotaPost!$A$2:$E$20000,5,0),"") ->  | E69: =IFERROR(VLOOKUP(A69,PR.Sape!$A$2:$F$20000,6,0),"") -> 48.89 | F69: =IFERROR(VLOOKUP(A69,Miralinks!$A$2:$B$20000,2,0),"") ->  | G69: =IF(Config!$C$7="Минимальная",MIN(IF(B69:F69<>0,B69:F69,"")),IF(Config!$C$7="Максимальная",MAX(B69:F69),AVERAGE(B69:F69))) -> 48.9 | H69: =IFERROR(VLOOKUP(A69,'В автобиржах'!$A$2:$B$20000,2,0),"") -> 
A70: мегадикобраз.рф | B70: =IFERROR(VLOOKUP(A70,GGL!$A$2:$D$20000,4,0),"") ->  | C70: =IFERROR(VLOOKUP(A70,GetGoodLinks!$A$2:$B$20000,2,0),"") ->  | D70: =IFERROR(VLOOKUP(A70,RotaPost!$A$2:$E$20000,5,0),"") ->  | E70: =IFERROR(VLOOKUP(A70,PR.Sape!$A$2:$F$20000,6,0),"") -> 53.78 | F70: =IFERROR(VLOOKUP(A70,Miralinks!$A$2:$B$20000,2,0),"") ->  | G70: =IF(Config!$C$7="Минимальная",MIN(IF(B70:F70<>0,B70:F70,"")),IF(Config!$C$7="Максимальная",MAX(B70:F70),AVERAGE(B70:F70))) -> 53.8 | H70: =IFERROR(VLOOKUP(A70,'В автобиржах'!$A$2:$B$20000,2,0),"") -> 
A71: мегапочему.рф | B71: =IFERROR(VLOOKUP(A71,GGL!$A$2:$D$20000,4,0),"") -> 242 | C71: =IFERROR(VLOOKUP(A71,GetGoodLinks!$A$2:$B$20000,2,0),"") ->  | D71: =IFERROR(VLOOKUP(A71,RotaPost!$A$2:$E$20000,5,0),"") ->  | E71: =IFERROR(VLOOKUP(A71,PR.Sape!$A$2:$F$20000,6,0),"") ->  | F71: =IFERROR(VLOOKUP(A71,Miralinks!$A$2:$B$20000,2,0),"") -> 150 | G71: =IF(Config!$C$7="Минимальная",MIN(IF(B71:F71<>0,B71:F71,"")),IF(Config!$C$7="Максимальная",MAX(B71:F71),AVERAGE(B71:F71))) -> 196.0 | H71: =IFERROR(VLOOKUP(A71,'В автобиржах'!$A$2:$B$20000,2,0),"") -> 
A72: мегасейф.рф | B72: =IFERROR(VLOOKUP(A72,GGL!$A$2:$D$20000,4,0),"") ->  | C72: =IFERROR(VLOOKUP(A72,GetGoodLinks!$A$2:$B$20000,2,0),"") ->  | D72: =IFERROR(VLOOKUP(A72,RotaPost!$A$2:$E$20000,5,0),"") ->  | E72: =IFERROR(VLOOKUP(A72,PR.Sape!$A$2:$F$20000,6,0),"") -> 48.89 | F72: =IFERROR(VLOOKUP(A72,Miralinks!$A$2:$B$20000,2,0),"") ->  | G72: =IF(Config!$C$7="Минимальная",MIN(IF(B72:F72<>0,B72:F72,"")),IF(Config!$C$7="Максимальная",MAX(B72:F72),AVERAGE(B72:F72))) -> 48.9 | H72: =IFERROR(VLOOKUP(A72,'В автобиржах'!$A$2:$B$20000,2,0),"") -> 
A73: мегасумки.рф | B73: =IFERROR(VLOOKUP(A73,GGL!$A$2:$D$20000,4,0),"") ->  | C73: =IFERROR(VLOOKUP(A73,GetGoodLinks!$A$2:$B$20000,2,0),"") ->  | D73: =IFERROR(VLOOKUP(A73,RotaPost!$A$2:$E$20000,5,0),"") ->  | E73: =IFERROR(VLOOKUP(A73,PR.Sape!$A$2:$F$20000,6,0),"") -> 48.89 | F73: =IFERROR(VLOOKUP(A73,Miralinks!$A$2:$B$20000,2,0),"") ->  | G73: =IF(Config!$C$7="Минимальная",MIN(IF(B73:F73<>0,B73:F73,"")),IF(Config!$C$7="Максимальная",MAX(B73:F73),AVERAGE(B73:F73))) -> 48.9 | H73: =IFERROR(VLOOKUP(A73,'В автобиржах'!$A$2:$B$20000,2,0),"") -> 
A74: медынин.рф | B74: =IFERROR(VLOOKUP(A74,GGL!$A$2:$D$20000,4,0),"") ->  | C74: =IFERROR(VLOOKUP(A74,GetGoodLinks!$A$2:$B$20000,2,0),"") ->  | D74: =IFERROR(VLOOKUP(A74,RotaPost!$A$2:$E$20000,5,0),"") -> 44 | E74: =IFERROR(VLOOKUP(A74,PR.Sape!$A$2:$F$20000,6,0),"") -> 48.89 | F74: =IFERROR(VLOOKUP(A74,Miralinks!$A$2:$B$20000,2,0),"") ->  | G74: =IF(Config!$C$7="Минимальная",MIN(IF(B74:F74<>0,B74:F74,"")),IF(Config!$C$7="Максимальная",MAX(B74:F74),AVERAGE(B74:F74))) -> 46.4 | H74: =IFERROR(VLOOKUP(A74,'В автобиржах'!$A$2:$B$20000,2,0),"") -> 
A75: места24.рф | B75: =IFERROR(VLOOKUP(A75,GGL!$A$2:$D$20000,4,0),"") ->  | C75: =IFERROR(VLOOKUP(A75,GetGoodLinks!$A$2:$B$20000,2,0),"") ->  | D75: =IFERROR(VLOOKUP(A75,RotaPost!$A$2:$E$20000,5,0),"") -> 16 | E75: =IFERROR(VLOOKUP(A75,PR.Sape!$A$2:$F$20000,6,0),"") ->  | F75: =IFERROR(VLOOKUP(A75,Miralinks!$A$2:$B$20000,2,0),"") ->  | G75: =IF(Config!$C$7="Минимальная",MIN(IF(B75:F75<>0,B75:F75,"")),IF(Config!$C$7="Максимальная",MAX(B75:F75),AVERAGE(B75:F75))) -> 16.0 | H75: =IFERROR(VLOOKUP(A75,'В автобиржах'!$A$2:$B$20000,2,0),"") -> 1
A76: минисадик66.рф | B76: =IFERROR(VLOOKUP(A76,GGL!$A$2:$D$20000,4,0),"") ->  | C76: =IFERROR(VLOOKUP(A76,GetGoodLinks!$A$2:$B$20000,2,0),"") ->  | D76: =IFERROR(VLOOKUP(A76,RotaPost!$A$2:$E$20000,5,0),"") -> 44 | E76: =IFERROR(VLOOKUP(A76,PR.Sape!$A$2:$F$20000,6,0),"") -> 48.89 | F76: =IFERROR(VLOOKUP(A76,Miralinks!$A$2:$B$20000,2,0),"") ->  | G76: =IF(Config!$C$7="Минимальная",MIN(IF(B76:F76<>0,B76:F76,"")),IF(Config!$C$7="Максимальная",MAX(B76:F76),AVERAGE(B76:F76))) -> 46.4 | H76: =IFERROR(VLOOKUP(A76,'В автобиржах'!$A$2:$B$20000,2,0),"") -> 
A77: миссис-блоггер.рф | B77: =IFERROR(VLOOKUP(A77,GGL!$A$2:$D$20000,4,0),"") ->  | C77: =IFERROR(VLOOKUP(A77,GetGoodLinks!$A$2:$B$20000,2,0),"") ->  | D77: =IFERROR(VLOOKUP(A77,RotaPost!$A$2:$E$20000,5,0),"") -> 99 | E77: =IFERROR(VLOOKUP(A77,PR.Sape!$A$2:$F$20000,6,0),"") ->  | F77: =IFERROR(VLOOKUP(A77,Miralinks!$A$2:$B$20000,2,0),"") ->  | G77: =IF(Config!$C$7="Минимальная",MIN(IF(B77:F77<>0,B77:F77,"")),IF(Config!$C$7="Максимальная",MAX(B77:F77),AVERAGE(B77:F77))) -> 99.0 | H77: =IFERROR(VLOOKUP(A77,'В автобиржах'!$A$2:$B$20000,2,0),"") -> 
A78: мобильные-фильмы.рф | B78: =IFERROR(VLOOKUP(A78,GGL!$A$2:$D$20000,4,0),"") ->  | C78: =IFERROR(VLOOKUP(A78,GetGoodLinks!$A$2:$B$20000,2,0),"") ->  | D78: =IFERROR(VLOOKUP(A78,RotaPost!$A$2:$E$20000,5,0),"") -> 40 | E78: =IFERROR(VLOOKUP(A78,PR.Sape!$A$2:$F$20000,6,0),"") ->  | F78: =IFERROR(VLOOKUP(A78,Miralinks!$A$2:$B$20000,2,0),"") ->  | G78: =IF(Config!$C$7="Минимальная",MIN(IF(B78:F78<>0,B78:F78,"")),IF(Config!$C$7="Максимальная",MAX(B78:F78),AVERAGE(B78:F78))) -> 40.0 | H78: =IFERROR(VLOOKUP(A78,'В автобиржах'!$A$2:$B$20000,2,0),"") -> 
A79: моймассаж.рф | B79: =IFERROR(VLOOKUP(A79,GGL!$A$2:$D$20000,4,0),"") ->  | C79: =IFERROR(VLOOKUP(A79,GetGoodLinks!$A$2:$B$20000,2,0),"") ->  | D79: =IFERROR(VLOOKUP(A79,RotaPost!$A$2:$E$20000,5,0),"") ->  | E79: =IFERROR(VLOOKUP(A79,PR.Sape!$A$2:$F$20000,6,0),"") -> 53.78 | F79: =IFERROR(VLOOKUP(A79,Miralinks!$A$2:$B$20000,2,0),"") ->  | G79: =IF(Config!$C$7="Минимальная",MIN(IF(B79:F79<>0,B79:F79,"")),IF(Config!$C$7="Максимальная",MAX(B79:F79),AVERAGE(B79:F79))) -> 53.8 | H79: =IFERROR(VLOOKUP(A79,'В автобиржах'!$A$2:$B$20000,2,0),"") -> 
A80: м-фурнитура.рф | B80: =IFERROR(VLOOKUP(A80,GGL!$A$2:$D$20000,4,0),"") ->  | C80: =IFERROR(VLOOKUP(A80,GetGoodLinks!$A$2:$B$20000,2,0),"") ->  | D80: =IFERROR(VLOOKUP(A80,RotaPost!$A$2:$E$20000,5,0),"") ->  | E80: =IFERROR(VLOOKUP(A80,PR.Sape!$A$2:$F$20000,6,0),"") -> 183.33 | F80: =IFERROR(VLOOKUP(A80,Miralinks!$A$2:$B$20000,2,0),"") ->  | G80: =IF(Config!$C$7="Минимальная",MIN(IF(B80:F80<>0,B80:F80,"")),IF(Config!$C$7="Максимальная",MAX(B80:F80),AVERAGE(B80:F80))) -> 183.3 | H80: =IFERROR(VLOOKUP(A80,'В автобиржах'!$A$2:$B$20000,2,0),"") -> 
A81: нашамамакрасноярск.рф | B81: =IFERROR(VLOOKUP(A81,GGL!$A$2:$D$20000,4,0),"") ->  | C81: =IFERROR(VLOOKUP(A81,GetGoodLinks!$A$2:$B$20000,2,0),"") ->  | D81: =IFERROR(VLOOKUP(A81,RotaPost!$A$2:$E$20000,5,0),"") -> 44 | E81: =IFERROR(VLOOKUP(A81,PR.Sape!$A$2:$F$20000,6,0),"") -> 53.78 | F81: =IFERROR(VLOOKUP(A81,Miralinks!$A$2:$B$20000,2,0),"") ->  | G81: =IF(Config!$C$7="Минимальная",MIN(IF(B81:F81<>0,B81:F81,"")),IF(Config!$C$7="Максимальная",MAX(B81:F81),AVERAGE(B81:F81))) -> 48.9 | H81: =IFERROR(VLOOKUP(A81,'В автобиржах'!$A$2:$B$20000,2,0),"") -> 
A82: нашедело.рф | B82: =IFERROR(VLOOKUP(A82,GGL!$A$2:$D$20000,4,0),"") ->  | C82: =IFERROR(VLOOKUP(A82,GetGoodLinks!$A$2:$B$20000,2,0),"") ->  | D82: =IFERROR(VLOOKUP(A82,RotaPost!$A$2:$E$20000,5,0),"") ->  | E82: =IFERROR(VLOOKUP(A82,PR.Sape!$A$2:$F$20000,6,0),"") -> 26.89 | F82: =IFERROR(VLOOKUP(A82,Miralinks!$A$2:$B$20000,2,0),"") ->  | G82: =IF(Config!$C$7="Минимальная",MIN(IF(B82:F82<>0,B82:F82,"")),IF(Config!$C$7="Максимальная",MAX(B82:F82),AVERAGE(B82:F82))) -> 26.9 | H82: =IFERROR(VLOOKUP(A82,'В автобиржах'!$A$2:$B$20000,2,0),"") -> 
A83: наш.com.ua | B83: =IFERROR(VLOOKUP(A83,GGL!$A$2:$D$20000,4,0),"") ->  | C83: =IFERROR(VLOOKUP(A83,GetGoodLinks!$A$2:$B$20000,2,0),"") ->  | D83: =IFERROR(VLOOKUP(A83,RotaPost!$A$2:$E$20000,5,0),"") ->  | E83: =IFERROR(VLOOKUP(A83,PR.Sape!$A$2:$F$20000,6,0),"") -> 182.11 | F83: =IFERROR(VLOOKUP(A83,Miralinks!$A$2:$B$20000,2,0),"") ->  | G83: =IF(Config!$C$7="Минимальная",MIN(IF(B83:F83<>0,B83:F83,"")),IF(Config!$C$7="Максимальная",MAX(B83:F83),AVERAGE(B83:F83))) -> 182.1 | H83: =IFERROR(VLOOKUP(A83,'В автобиржах'!$A$2:$B$20000,2,0),"") -> 
A84: на-диету.рф | B84: =IFERROR(VLOOKUP(A84,GGL!$A$2:$D$20000,4,0),"") ->  | C84: =IFERROR(VLOOKUP(A84,GetGoodLinks!$A$2:$B$20000,2,0),"") ->  | D84: =IFERROR(VLOOKUP(A84,RotaPost!$A$2:$E$20000,5,0),"") ->  | E84: =IFERROR(VLOOKUP(A84,PR.Sape!$A$2:$F$20000,6,0),"") -> 141.78 | F84: =IFERROR(VLOOKUP(A84,Miralinks!$A$2:$B$20000,2,0),"") -> 114 | G84: =IF(Config!$C$7="Минимальная",MIN(IF(B84:F84<>0,B84:F84,"")),IF(Config!$C$7="Максимальная",MAX(B84:F84),AVERAGE(B84:F84))) -> 127.9 | H84: =IFERROR(VLOOKUP(A84,'В автобиржах'!$A$2:$B$20000,2,0),"") -> 
A85: необъяснимое.рф | B85: =IFERROR(VLOOKUP(A85,GGL!$A$2:$D$20000,4,0),"") ->  | C85: =IFERROR(VLOOKUP(A85,GetGoodLinks!$A$2:$B$20000,2,0),"") ->  | D85: =IFERROR(VLOOKUP(A85,RotaPost!$A$2:$E$20000,5,0),"") -> 44 | E85: =IFERROR(VLOOKUP(A85,PR.Sape!$A$2:$F$20000,6,0),"") ->  | F85: =IFERROR(VLOOKUP(A85,Miralinks!$A$2:$B$20000,2,0),"") ->  | G85: =IF(Config!$C$7="Минимальная",MIN(IF(B85:F85<>0,B85:F85,"")),IF(Config!$C$7="Максимальная",MAX(B85:F85),AVERAGE(B85:F85))) -> 44.0 | H85: =IFERROR(VLOOKUP(A85,'В автобиржах'!$A$2:$B$20000,2,0),"") -> 
A86: новостипланеты.рф | B86: =IFERROR(VLOOKUP(A86,GGL!$A$2:$D$20000,4,0),"") ->  | C86: =IFERROR(VLOOKUP(A86,GetGoodLinks!$A$2:$B$20000,2,0),"") ->  | D86: =IFERROR(VLOOKUP(A86,RotaPost!$A$2:$E$20000,5,0),"") -> 80 | E86: =IFERROR(VLOOKUP(A86,PR.Sape!$A$2:$F$20000,6,0),"") -> 107.56 | F86: =IFERROR(VLOOKUP(A86,Miralinks!$A$2:$B$20000,2,0),"") ->  | G86: =IF(Config!$C$7="Минимальная",MIN(IF(B86:F86<>0,B86:F86,"")),IF(Config!$C$7="Максимальная",MAX(B86:F86),AVERAGE(B86:F86))) -> 93.8 | H86: =IFERROR(VLOOKUP(A86,'В автобиржах'!$A$2:$B$20000,2,0),"") -> 1
A87: нсхт.рф | B87: =IFERROR(VLOOKUP(A87,GGL!$A$2:$D$20000,4,0),"") ->  | C87: =IFERROR(VLOOKUP(A87,GetGoodLinks!$A$2:$B$20000,2,0),"") ->  | D87: =IFERROR(VLOOKUP(A87,RotaPost!$A$2:$E$20000,5,0),"") -> 44 | E87: =IFERROR(VLOOKUP(A87,PR.Sape!$A$2:$F$20000,6,0),"") ->  | F87: =IFERROR(VLOOKUP(A87,Miralinks!$A$2:$B$20000,2,0),"") ->  | G87: =IF(Config!$C$7="Минимальная",MIN(IF(B87:F87<>0,B87:F87,"")),IF(Config!$C$7="Максимальная",MAX(B87:F87),AVERAGE(B87:F87))) -> 44.0 | H87: =IFERROR(VLOOKUP(A87,'В автобиржах'!$A$2:$B$20000,2,0),"") -> 
A88: обменники24.рф | B88: =IFERROR(VLOOKUP(A88,GGL!$A$2:$D$20000,4,0),"") ->  | C88: =IFERROR(VLOOKUP(A88,GetGoodLinks!$A$2:$B$20000,2,0),"") ->  | D88: =IFERROR(VLOOKUP(A88,RotaPost!$A$2:$E$20000,5,0),"") -> 55 | E88: =IFERROR(VLOOKUP(A88,PR.Sape!$A$2:$F$20000,6,0),"") ->  | F88: =IFERROR(VLOOKUP(A88,Miralinks!$A$2:$B$20000,2,0),"") ->  | G88: =IF(Config!$C$7="Минимальная",MIN(IF(B88:F88<>0,B88:F88,"")),IF(Config!$C$7="Максимальная",MAX(B88:F88),AVERAGE(B88:F88))) -> 55.0 | H88: =IFERROR(VLOOKUP(A88,'В автобиржах'!$A$2:$B$20000,2,0),"") -> 1
A89: овир.рф | B89: =IFERROR(VLOOKUP(A89,GGL!$A$2:$D$20000,4,0),"") ->  | C89: =IFERROR(VLOOKUP(A89,GetGoodLinks!$A$2:$B$20000,2,0),"") ->  | D89: =IFERROR(VLOOKUP(A89,RotaPost!$A$2:$E$20000,5,0),"") ->  | E89: =IFERROR(VLOOKUP(A89,PR.Sape!$A$2:$F$20000,6,0),"") -> 305.56 | F89: =IFERROR(VLOOKUP(A89,Miralinks!$A$2:$B$20000,2,0),"") -> 71 | G89: =IF(Config!$C$7="Минимальная",MIN(IF(B89:F89<>0,B89:F89,"")),IF(Config!$C$7="Максимальная",MAX(B89:F89),AVERAGE(B89:F89))) -> 188.3 | H89: =IFERROR(VLOOKUP(A89,'В автобиржах'!$A$2:$B$20000,2,0),"") -> 
A90: ооостроймикс.рф | B90: =IFERROR(VLOOKUP(A90,GGL!$A$2:$D$20000,4,0),"") ->  | C90: =IFERROR(VLOOKUP(A90,GetGoodLinks!$A$2:$B$20000,2,0),"") ->  | D90: =IFERROR(VLOOKUP(A90,RotaPost!$A$2:$E$20000,5,0),"") -> 44 | E90: =IFERROR(VLOOKUP(A90,PR.Sape!$A$2:$F$20000,6,0),"") ->  | F90: =IFERROR(VLOOKUP(A90,Miralinks!$A$2:$B$20000,2,0),"") ->  | G90: =IF(Config!$C$7="Минимальная",MIN(IF(B90:F90<>0,B90:F90,"")),IF(Config!$C$7="Максимальная",MAX(B90:F90),AVERAGE(B90:F90))) -> 44.0 | H90: =IFERROR(VLOOKUP(A90,'В автобиржах'!$A$2:$B$20000,2,0),"") -> 
A91: отдых-в-крыму.in.ua | B91: =IFERROR(VLOOKUP(A91,GGL!$A$2:$D$20000,4,0),"") ->  | C91: =IFERROR(VLOOKUP(A91,GetGoodLinks!$A$2:$B$20000,2,0),"") ->  | D91: =IFERROR(VLOOKUP(A91,RotaPost!$A$2:$E$20000,5,0),"") ->  | E91: =IFERROR(VLOOKUP(A91,PR.Sape!$A$2:$F$20000,6,0),"") -> 200.44 | F91: =IFERROR(VLOOKUP(A91,Miralinks!$A$2:$B$20000,2,0),"") ->  | G91: =IF(Config!$C$7="Минимальная",MIN(IF(B91:F91<>0,B91:F91,"")),IF(Config!$C$7="Максимальная",MAX(B91:F91),AVERAGE(B91:F91))) -> 200.4 | H91: =IFERROR(VLOOKUP(A91,'В автобиржах'!$A$2:$B$20000,2,0),"") -> 
A92: офицеру.рф | B92: =IFERROR(VLOOKUP(A92,GGL!$A$2:$D$20000,4,0),"") ->  | C92: =IFERROR(VLOOKUP(A92,GetGoodLinks!$A$2:$B$20000,2,0),"") ->  | D92: =IFERROR(VLOOKUP(A92,RotaPost!$A$2:$E$20000,5,0),"") -> 58 | E92: =IFERROR(VLOOKUP(A92,PR.Sape!$A$2:$F$20000,6,0),"") -> 51.33 | F92: =IFERROR(VLOOKUP(A92,Miralinks!$A$2:$B$20000,2,0),"") ->  | G92: =IF(Config!$C$7="Минимальная",MIN(IF(B92:F92<>0,B92:F92,"")),IF(Config!$C$7="Максимальная",MAX(B92:F92),AVERAGE(B92:F92))) -> 54.7 | H92: =IFERROR(VLOOKUP(A92,'В автобиржах'!$A$2:$B$20000,2,0),"") -> 
A93: очумелец.рф | B93: =IFERROR(VLOOKUP(A93,GGL!$A$2:$D$20000,4,0),"") ->  | C93: =IFERROR(VLOOKUP(A93,GetGoodLinks!$A$2:$B$20000,2,0),"") ->  | D93: =IFERROR(VLOOKUP(A93,RotaPost!$A$2:$E$20000,5,0),"") -> 62 | E93: =IFERROR(VLOOKUP(A93,PR.Sape!$A$2:$F$20000,6,0),"") ->  | F93: =IFERROR(VLOOKUP(A93,Miralinks!$A$2:$B$20000,2,0),"") ->  | G93: =IF(Config!$C$7="Минимальная",MIN(IF(B93:F93<>0,B93:F93,"")),IF(Config!$C$7="Максимальная",MAX(B93:F93),AVERAGE(B93:F93))) -> 62.0 | H93: =IFERROR(VLOOKUP(A93,'В автобиржах'!$A$2:$B$20000,2,0),"") -> 
A94: о-женском.рф | B94: =IFERROR(VLOOKUP(A94,GGL!$A$2:$D$20000,4,0),"") ->  | C94: =IFERROR(VLOOKUP(A94,GetGoodLinks!$A$2:$B$20000,2,0),"") ->  | D94: =IFERROR(VLOOKUP(A94,RotaPost!$A$2:$E$20000,5,0),"") ->  | E94: =IFERROR(VLOOKUP(A94,PR.Sape!$A$2:$F$20000,6,0),"") -> 200.44 | F94: =IFERROR(VLOOKUP(A94,Miralinks!$A$2:$B$20000,2,0),"") ->  | G94: =IF(Config!$C$7="Минимальная",MIN(IF(B94:F94<>0,B94:F94,"")),IF(Config!$C$7="Максимальная",MAX(B94:F94),AVERAGE(B94:F94))) -> 200.4 | H94: =IFERROR(VLOOKUP(A94,'В автобиржах'!$A$2:$B$20000,2,0),"") -> 
A95: пдпланета.рф | B95: =IFERROR(VLOOKUP(A95,GGL!$A$2:$D$20000,4,0),"") ->  | C95: =IFERROR(VLOOKUP(A95,GetGoodLinks!$A$2:$B$20000,2,0),"") ->  | D95: =IFERROR(VLOOKUP(A95,RotaPost!$A$2:$E$20000,5,0),"") -> 58 | E95: =IFERROR(VLOOKUP(A95,PR.Sape!$A$2:$F$20000,6,0),"") -> 48.89 | F95: =IFERROR(VLOOKUP(A95,Miralinks!$A$2:$B$20000,2,0),"") ->  | G95: =IF(Config!$C$7="Минимальная",MIN(IF(B95:F95<>0,B95:F95,"")),IF(Config!$C$7="Максимальная",MAX(B95:F95),AVERAGE(B95:F95))) -> 53.4 | H95: =IFERROR(VLOOKUP(A95,'В автобиржах'!$A$2:$B$20000,2,0),"") -> 
A96: первостольник.рф | B96: =IFERROR(VLOOKUP(A96,GGL!$A$2:$D$20000,4,0),"") -> 174.9 | C96: =IFERROR(VLOOKUP(A96,GetGoodLinks!$A$2:$B$20000,2,0),"") ->  | D96: =IFERROR(VLOOKUP(A96,RotaPost!$A$2:$E$20000,5,0),"") ->  | E96: =IFERROR(VLOOKUP(A96,PR.Sape!$A$2:$F$20000,6,0),"") -> 134.44 | F96: =IFERROR(VLOOKUP(A96,Miralinks!$A$2:$B$20000,2,0),"") -> 89 | G96: =IF(Config!$C$7="Минимальная",MIN(IF(B96:F96<>0,B96:F96,"")),IF(Config!$C$7="Максимальная",MAX(B96:F96),AVERAGE(B96:F96))) -> 132.8 | H96: =IFERROR(VLOOKUP(A96,'В автобиржах'!$A$2:$B$20000,2,0),"") -> 
A97: перевалы.рф | B97: =IFERROR(VLOOKUP(A97,GGL!$A$2:$D$20000,4,0),"") ->  | C97: =IFERROR(VLOOKUP(A97,GetGoodLinks!$A$2:$B$20000,2,0),"") ->  | D97: =IFERROR(VLOOKUP(A97,RotaPost!$A$2:$E$20000,5,0),"") ->  | E97: =IFERROR(VLOOKUP(A97,PR.Sape!$A$2:$F$20000,6,0),"") -> 97.78 | F97: =IFERROR(VLOOKUP(A97,Miralinks!$A$2:$B$20000,2,0),"") ->  | G97: =IF(Config!$C$7="Минимальная",MIN(IF(B97:F97<>0,B97:F97,"")),IF(Config!$C$7="Максимальная",MAX(B97:F97),AVERAGE(B97:F97))) -> 97.8 | H97: =IFERROR(VLOOKUP(A97,'В автобиржах'!$A$2:$B$20000,2,0),"") -> 1
A98: плитковед.рф | B98: =IFERROR(VLOOKUP(A98,GGL!$A$2:$D$20000,4,0),"") ->  | C98: =IFERROR(VLOOKUP(A98,GetGoodLinks!$A$2:$B$20000,2,0),"") ->  | D98: =IFERROR(VLOOKUP(A98,RotaPost!$A$2:$E$20000,5,0),"") ->  | E98: =IFERROR(VLOOKUP(A98,PR.Sape!$A$2:$F$20000,6,0),"") -> 182.11 | F98: =IFERROR(VLOOKUP(A98,Miralinks!$A$2:$B$20000,2,0),"") ->  | G98: =IF(Config!$C$7="Минимальная",MIN(IF(B98:F98<>0,B98:F98,"")),IF(Config!$C$7="Максимальная",MAX(B98:F98),AVERAGE(B98:F98))) -> 182.1 | H98: =IFERROR(VLOOKUP(A98,'В автобиржах'!$A$2:$B$20000,2,0),"") -> 
A99: плэн-чита.рф | B99: =IFERROR(VLOOKUP(A99,GGL!$A$2:$D$20000,4,0),"") ->  | C99: =IFERROR(VLOOKUP(A99,GetGoodLinks!$A$2:$B$20000,2,0),"") ->  | D99: =IFERROR(VLOOKUP(A99,RotaPost!$A$2:$E$20000,5,0),"") -> 44 | E99: =IFERROR(VLOOKUP(A99,PR.Sape!$A$2:$F$20000,6,0),"") -> 48.89 | F99: =IFERROR(VLOOKUP(A99,Miralinks!$A$2:$B$20000,2,0),"") ->  | G99: =IF(Config!$C$7="Минимальная",MIN(IF(B99:F99<>0,B99:F99,"")),IF(Config!$C$7="Максимальная",MAX(B99:F99),AVERAGE(B99:F99))) -> 46.4 | H99: =IFERROR(VLOOKUP(A99,'В автобиржах'!$A$2:$B$20000,2,0),"") -> 
A100: посудадляресторана.рф | B100: =IFERROR(VLOOKUP(A100,GGL!$A$2:$D$20000,4,0),"") ->  | C100: =IFERROR(VLOOKUP(A100,GetGoodLinks!$A$2:$B$20000,2,0),"") ->  | D100: =IFERROR(VLOOKUP(A100,RotaPost!$A$2:$E$20000,5,0),"") ->  | E100: =IFERROR(VLOOKUP(A100,PR.Sape!$A$2:$F$20000,6,0),"") -> 244.44 | F100: =IFERROR(VLOOKUP(A100,Miralinks!$A$2:$B$20000,2,0),"") ->  | G100: =IF(Config!$C$7="Минимальная",MIN(IF(B100:F100<>0,B100:F100,"")),IF(Config!$C$7="Максимальная",MAX(B100:F100),AVERAGE(B100:F100))) -> 244.4 | H100: =IFERROR(VLOOKUP(A100,'В автобиржах'!$A$2:$B$20000,2,0),"") -> 
A101: потолок-воронеж.рф | B101: =IFERROR(VLOOKUP(A101,GGL!$A$2:$D$20000,4,0),"") ->  | C101: =IFERROR(VLOOKUP(A101,GetGoodLinks!$A$2:$B$20000,2,0),"") ->  | D101: =IFERROR(VLOOKUP(A101,RotaPost!$A$2:$E$20000,5,0),"") -> 80 | E101: =IFERROR(VLOOKUP(A101,PR.Sape!$A$2:$F$20000,6,0),"") ->  | F101: =IFERROR(VLOOKUP(A101,Miralinks!$A$2:$B$20000,2,0),"") ->  | G101: =IF(Config!$C$7="Минимальная",MIN(IF(B101:F101<>0,B101:F101,"")),IF(Config!$C$7="Максимальная",MAX(B101:F101),AVERAGE(B101:F101))) -> 80.0 | H101: =IFERROR(VLOOKUP(A101,'В автобиржах'!$A$2:$B$20000,2,0),"") -> 
A102: потолок.нет.рф | B102: =IFERROR(VLOOKUP(A102,GGL!$A$2:$D$20000,4,0),"") ->  | C102: =IFERROR(VLOOKUP(A102,GetGoodLinks!$A$2:$B$20000,2,0),"") ->  | D102: =IFERROR(VLOOKUP(A102,RotaPost!$A$2:$E$20000,5,0),"") ->  | E102: =IFERROR(VLOOKUP(A102,PR.Sape!$A$2:$F$20000,6,0),"") -> 200.44 | F102: =IFERROR(VLOOKUP(A102,Miralinks!$A$2:$B$20000,2,0),"") ->  | G102: =IF(Config!$C$7="Минимальная",MIN(IF(B102:F102<>0,B102:F102,"")),IF(Config!$C$7="Максимальная",MAX(B102:F102),AVERAGE(B102:F102))) -> 200.4 | H102: =IFERROR(VLOOKUP(A102,'В автобиржах'!$A$2:$B$20000,2,0),"") -> 
A103: почемуже.рф | B103: =IFERROR(VLOOKUP(A103,GGL!$A$2:$D$20000,4,0),"") -> 165 | C103: =IFERROR(VLOOKUP(A103,GetGoodLinks!$A$2:$B$20000,2,0),"") ->  | D103: =IFERROR(VLOOKUP(A103,RotaPost!$A$2:$E$20000,5,0),"") -> 100 | E103: =IFERROR(VLOOKUP(A103,PR.Sape!$A$2:$F$20000,6,0),"") -> 122.22 | F103: =IFERROR(VLOOKUP(A103,Miralinks!$A$2:$B$20000,2,0),"") -> 70 | G103: =IF(Config!$C$7="Минимальная",MIN(IF(B103:F103<>0,B103:F103,"")),IF(Config!$C$7="Максимальная",MAX(B103:F103),AVERAGE(B103:F103))) -> 114.3 | H103: =IFERROR(VLOOKUP(A103,'В автобиржах'!$A$2:$B$20000,2,0),"") -> 
A104: праздник-клаб.рф | B104: =IFERROR(VLOOKUP(A104,GGL!$A$2:$D$20000,4,0),"") ->  | C104: =IFERROR(VLOOKUP(A104,GetGoodLinks!$A$2:$B$20000,2,0),"") ->  | D104: =IFERROR(VLOOKUP(A104,RotaPost!$A$2:$E$20000,5,0),"") -> 40 | E104: =IFERROR(VLOOKUP(A104,PR.Sape!$A$2:$F$20000,6,0),"") ->  | F104: =IFERROR(VLOOKUP(A104,Miralinks!$A$2:$B$20000,2,0),"") ->  | G104: =IF(Config!$C$7="Минимальная",MIN(IF(B104:F104<>0,B104:F104,"")),IF(Config!$C$7="Максимальная",MAX(B104:F104),AVERAGE(B104:F104))) -> 40.0 | H104: =IFERROR(VLOOKUP(A104,'В автобиржах'!$A$2:$B$20000,2,0),"") -> 
A105: пропалатки.рф | B105: =IFERROR(VLOOKUP(A105,GGL!$A$2:$D$20000,4,0),"") ->  | C105: =IFERROR(VLOOKUP(A105,GetGoodLinks!$A$2:$B$20000,2,0),"") ->  | D105: =IFERROR(VLOOKUP(A105,RotaPost!$A$2:$E$20000,5,0),"") -> 110 | E105: =IFERROR(VLOOKUP(A105,PR.Sape!$A$2:$F$20000,6,0),"") ->  | F105: =IFERROR(VLOOKUP(A105,Miralinks!$A$2:$B$20000,2,0),"") ->  | G105: =IF(Config!$C$7="Минимальная",MIN(IF(B105:F105<>0,B105:F105,"")),IF(Config!$C$7="Максимальная",MAX(B105:F105),AVERAGE(B105:F105))) -> 110.0 | H105: =IFERROR(VLOOKUP(A105,'В автобиржах'!$A$2:$B$20000,2,0),"") -> 
A106: развлекай.рф | B106: =IFERROR(VLOOKUP(A106,GGL!$A$2:$D$20000,4,0),"") ->  | C106: =IFERROR(VLOOKUP(A106,GetGoodLinks!$A$2:$B$20000,2,0),"") ->  | D106: =IFERROR(VLOOKUP(A106,RotaPost!$A$2:$E$20000,5,0),"") ->  | E106: =IFERROR(VLOOKUP(A106,PR.Sape!$A$2:$F$20000,6,0),"") -> 85.56 | F106: =IFERROR(VLOOKUP(A106,Miralinks!$A$2:$B$20000,2,0),"") ->  | G106: =IF(Config!$C$7="Минимальная",MIN(IF(B106:F106<>0,B106:F106,"")),IF(Config!$C$7="Максимальная",MAX(B106:F106),AVERAGE(B106:F106))) -> 85.6 | H106: =IFERROR(VLOOKUP(A106,'В автобиржах'!$A$2:$B$20000,2,0),"") -> 
A107: ребенокгений.рф | B107: =IFERROR(VLOOKUP(A107,GGL!$A$2:$D$20000,4,0),"") ->  | C107: =IFERROR(VLOOKUP(A107,GetGoodLinks!$A$2:$B$20000,2,0),"") ->  | D107: =IFERROR(VLOOKUP(A107,RotaPost!$A$2:$E$20000,5,0),"") -> 50 | E107: =IFERROR(VLOOKUP(A107,PR.Sape!$A$2:$F$20000,6,0),"") ->  | F107: =IFERROR(VLOOKUP(A107,Miralinks!$A$2:$B$20000,2,0),"") ->  | G107: =IF(Config!$C$7="Минимальная",MIN(IF(B107:F107<>0,B107:F107,"")),IF(Config!$C$7="Максимальная",MAX(B107:F107),AVERAGE(B107:F107))) -> 50.0 | H107: =IFERROR(VLOOKUP(A107,'В автобиржах'!$A$2:$B$20000,2,0),"") -> 
A108: ремонт18.рф | B108: =IFERROR(VLOOKUP(A108,GGL!$A$2:$D$20000,4,0),"") -> 217.8 | C108: =IFERROR(VLOOKUP(A108,GetGoodLinks!$A$2:$B$20000,2,0),"") ->  | D108: =IFERROR(VLOOKUP(A108,RotaPost!$A$2:$E$20000,5,0),"") ->  | E108: =IFERROR(VLOOKUP(A108,PR.Sape!$A$2:$F$20000,6,0),"") ->  | F108: =IFERROR(VLOOKUP(A108,Miralinks!$A$2:$B$20000,2,0),"") -> 260 | G108: =IF(Config!$C$7="Минимальная",MIN(IF(B108:F108<>0,B108:F108,"")),IF(Config!$C$7="Максимальная",MAX(B108:F108),AVERAGE(B108:F108))) -> 238.9 | H108: =IFERROR(VLOOKUP(A108,'В автобиржах'!$A$2:$B$20000,2,0),"") -> 
A109: родимдома.рф | B109: =IFERROR(VLOOKUP(A109,GGL!$A$2:$D$20000,4,0),"") ->  | C109: =IFERROR(VLOOKUP(A109,GetGoodLinks!$A$2:$B$20000,2,0),"") ->  | D109: =IFERROR(VLOOKUP(A109,RotaPost!$A$2:$E$20000,5,0),"") -> 70 | E109: =IFERROR(VLOOKUP(A109,PR.Sape!$A$2:$F$20000,6,0),"") ->  | F109: =IFERROR(VLOOKUP(A109,Miralinks!$A$2:$B$20000,2,0),"") ->  | G109: =IF(Config!$C$7="Минимальная",MIN(IF(B109:F109<>0,B109:F109,"")),IF(Config!$C$7="Максимальная",MAX(B109:F109),AVERAGE(B109:F109))) -> 70.0 | H109: =IFERROR(VLOOKUP(A109,'В автобиржах'!$A$2:$B$20000,2,0),"") -> 1
A110: рэпер.рф | B110: =IFERROR(VLOOKUP(A110,GGL!$A$2:$D$20000,4,0),"") ->  | C110: =IFERROR(VLOOKUP(A110,GetGoodLinks!$A$2:$B$20000,2,0),"") ->  | D110: =IFERROR(VLOOKUP(A110,RotaPost!$A$2:$E$20000,5,0),"") -> 70 | E110: =IFERROR(VLOOKUP(A110,PR.Sape!$A$2:$F$20000,6,0),"") -> 94.11 | F110: =IFERROR(VLOOKUP(A110,Miralinks!$A$2:$B$20000,2,0),"") ->  | G110: =IF(Config!$C$7="Минимальная",MIN(IF(B110:F110<>0,B110:F110,"")),IF(Config!$C$7="Максимальная",MAX(B110:F110),AVERAGE(B110:F110))) -> 82.1 | H110: =IFERROR(VLOOKUP(A110,'В автобиржах'!$A$2:$B$20000,2,0),"") -> 1
A111: р-просторы.рф | B111: =IFERROR(VLOOKUP(A111,GGL!$A$2:$D$20000,4,0),"") ->  | C111: =IFERROR(VLOOKUP(A111,GetGoodLinks!$A$2:$B$20000,2,0),"") ->  | D111: =IFERROR(VLOOKUP(A111,RotaPost!$A$2:$E$20000,5,0),"") -> 44 | E111: =IFERROR(VLOOKUP(A111,PR.Sape!$A$2:$F$20000,6,0),"") -> 48.89 | F111: =IFERROR(VLOOKUP(A111,Miralinks!$A$2:$B$20000,2,0),"") ->  | G111: =IF(Config!$C$7="Минимальная",MIN(IF(B111:F111<>0,B111:F111,"")),IF(Config!$C$7="Максимальная",MAX(B111:F111),AVERAGE(B111:F111))) -> 46.4 | H111: =IFERROR(VLOOKUP(A111,'В автобиржах'!$A$2:$B$20000,2,0),"") -> 
A112: самодельное.рф | B112: =IFERROR(VLOOKUP(A112,GGL!$A$2:$D$20000,4,0),"") ->  | C112: =IFERROR(VLOOKUP(A112,GetGoodLinks!$A$2:$B$20000,2,0),"") ->  | D112: =IFERROR(VLOOKUP(A112,RotaPost!$A$2:$E$20000,5,0),"") -> 120 | E112: =IFERROR(VLOOKUP(A112,PR.Sape!$A$2:$F$20000,6,0),"") -> 161.33 | F112: =IFERROR(VLOOKUP(A112,Miralinks!$A$2:$B$20000,2,0),"") ->  | G112: =IF(Config!$C$7="Минимальная",MIN(IF(B112:F112<>0,B112:F112,"")),IF(Config!$C$7="Максимальная",MAX(B112:F112),AVERAGE(B112:F112))) -> 140.7 | H112: =IFERROR(VLOOKUP(A112,'В автобиржах'!$A$2:$B$20000,2,0),"") -> 
A113: самые-горящие-туры.рф | B113: =IFERROR(VLOOKUP(A113,GGL!$A$2:$D$20000,4,0),"") ->  | C113: =IFERROR(VLOOKUP(A113,GetGoodLinks!$A$2:$B$20000,2,0),"") ->  | D113: =IFERROR(VLOOKUP(A113,RotaPost!$A$2:$E$20000,5,0),"") -> 118 | E113: =IFERROR(VLOOKUP(A113,PR.Sape!$A$2:$F$20000,6,0),"") ->  | F113: =IFERROR(VLOOKUP(A113,Miralinks!$A$2:$B$20000,2,0),"") ->  | G113: =IF(Config!$C$7="Минимальная",MIN(IF(B113:F113<>0,B113:F113,"")),IF(Config!$C$7="Максимальная",MAX(B113:F113),AVERAGE(B113:F113))) -> 118.0 | H113: =IFERROR(VLOOKUP(A113,'В автобиржах'!$A$2:$B$20000,2,0),"") -> 
A114: свирские-огни.рф | B114: =IFERROR(VLOOKUP(A114,GGL!$A$2:$D$20000,4,0),"") -> 110 | C114: =IFERROR(VLOOKUP(A114,GetGoodLinks!$A$2:$B$20000,2,0),"") ->  | D114: =IFERROR(VLOOKUP(A114,RotaPost!$A$2:$E$20000,5,0),"") ->  | E114: =IFERROR(VLOOKUP(A114,PR.Sape!$A$2:$F$20000,6,0),"") ->  | F114: =IFERROR(VLOOKUP(A114,Miralinks!$A$2:$B$20000,2,0),"") -> 75 | G114: =IF(Config!$C$7="Минимальная",MIN(IF(B114:F114<>0,B114:F114,"")),IF(Config!$C$7="Максимальная",MAX(B114:F114),AVERAGE(B114:F114))) -> 92.5 | H114: =IFERROR(VLOOKUP(A114,'В автобиржах'!$A$2:$B$20000,2,0),"") -> 1
A115: селобурятии.рф | B115: =IFERROR(VLOOKUP(A115,GGL!$A$2:$D$20000,4,0),"") ->  | C115: =IFERROR(VLOOKUP(A115,GetGoodLinks!$A$2:$B$20000,2,0),"") ->  | D115: =IFERROR(VLOOKUP(A115,RotaPost!$A$2:$E$20000,5,0),"") ->  | E115: =IFERROR(VLOOKUP(A115,PR.Sape!$A$2:$F$20000,6,0),"") -> 53.78 | F115: =IFERROR(VLOOKUP(A115,Miralinks!$A$2:$B$20000,2,0),"") ->  | G115: =IF(Config!$C$7="Минимальная",MIN(IF(B115:F115<>0,B115:F115,"")),IF(Config!$C$7="Максимальная",MAX(B115:F115),AVERAGE(B115:F115))) -> 53.8 | H115: =IFERROR(VLOOKUP(A115,'В автобиржах'!$A$2:$B$20000,2,0),"") -> 
A116: смипозиция.рф | B116: =IFERROR(VLOOKUP(A116,GGL!$A$2:$D$20000,4,0),"") ->  | C116: =IFERROR(VLOOKUP(A116,GetGoodLinks!$A$2:$B$20000,2,0),"") ->  | D116: =IFERROR(VLOOKUP(A116,RotaPost!$A$2:$E$20000,5,0),"") -> 80 | E116: =IFERROR(VLOOKUP(A116,PR.Sape!$A$2:$F$20000,6,0),"") ->  | F116: =IFERROR(VLOOKUP(A116,Miralinks!$A$2:$B$20000,2,0),"") ->  | G116: =IF(Config!$C$7="Минимальная",MIN(IF(B116:F116<>0,B116:F116,"")),IF(Config!$C$7="Максимальная",MAX(B116:F116),AVERAGE(B116:F116))) -> 80.0 | H116: =IFERROR(VLOOKUP(A116,'В автобиржах'!$A$2:$B$20000,2,0),"") -> 
A117: софт777.рф | B117: =IFERROR(VLOOKUP(A117,GGL!$A$2:$D$20000,4,0),"") ->  | C117: =IFERROR(VLOOKUP(A117,GetGoodLinks!$A$2:$B$20000,2,0),"") ->  | D117: =IFERROR(VLOOKUP(A117,RotaPost!$A$2:$E$20000,5,0),"") -> 58 | E117: =IFERROR(VLOOKUP(A117,PR.Sape!$A$2:$F$20000,6,0),"") ->  | F117: =IFERROR(VLOOKUP(A117,Miralinks!$A$2:$B$20000,2,0),"") ->  | G117: =IF(Config!$C$7="Минимальная",MIN(IF(B117:F117<>0,B117:F117,"")),IF(Config!$C$7="Максимальная",MAX(B117:F117),AVERAGE(B117:F117))) -> 58.0 | H117: =IFERROR(VLOOKUP(A117,'В автобиржах'!$A$2:$B$20000,2,0),"") -> 1
A118: спайдеры.рф | B118: =IFERROR(VLOOKUP(A118,GGL!$A$2:$D$20000,4,0),"") ->  | C118: =IFERROR(VLOOKUP(A118,GetGoodLinks!$A$2:$B$20000,2,0),"") ->  | D118: =IFERROR(VLOOKUP(A118,RotaPost!$A$2:$E$20000,5,0),"") ->  | E118: =IFERROR(VLOOKUP(A118,PR.Sape!$A$2:$F$20000,6,0),"") -> 305.56 | F118: =IFERROR(VLOOKUP(A118,Miralinks!$A$2:$B$20000,2,0),"") ->  | G118: =IF(Config!$C$7="Минимальная",MIN(IF(B118:F118<>0,B118:F118,"")),IF(Config!$C$7="Максимальная",MAX(B118:F118),AVERAGE(B118:F118))) -> 305.6 | H118: =IFERROR(VLOOKUP(A118,'В автобиржах'!$A$2:$B$20000,2,0),"") -> 
A119: спастинастю.рф | B119: =IFERROR(VLOOKUP(A119,GGL!$A$2:$D$20000,4,0),"") ->  | C119: =IFERROR(VLOOKUP(A119,GetGoodLinks!$A$2:$B$20000,2,0),"") ->  | D119: =IFERROR(VLOOKUP(A119,RotaPost!$A$2:$E$20000,5,0),"") ->  | E119: =IFERROR(VLOOKUP(A119,PR.Sape!$A$2:$F$20000,6,0),"") -> 53.78 | F119: =IFERROR(VLOOKUP(A119,Miralinks!$A$2:$B$20000,2,0),"") ->  | G119: =IF(Config!$C$7="Минимальная",MIN(IF(B119:F119<>0,B119:F119,"")),IF(Config!$C$7="Максимальная",MAX(B119:F119),AVERAGE(B119:F119))) -> 53.8 | H119: =IFERROR(VLOOKUP(A119,'В автобиржах'!$A$2:$B$20000,2,0),"") -> 
A120: спб2020.рф | B120: =IFERROR(VLOOKUP(A120,GGL!$A$2:$D$20000,4,0),"") ->  | C120: =IFERROR(VLOOKUP(A120,GetGoodLinks!$A$2:$B$20000,2,0),"") ->  | D120: =IFERROR(VLOOKUP(A120,RotaPost!$A$2:$E$20000,5,0),"") ->  | E120: =IFERROR(VLOOKUP(A120,PR.Sape!$A$2:$F$20000,6,0),"") -> 53.78 | F120: =IFERROR(VLOOKUP(A120,Miralinks!$A$2:$B$20000,2,0),"") ->  | G120: =IF(Config!$C$7="Минимальная",MIN(IF(B120:F120<>0,B120:F120,"")),IF(Config!$C$7="Максимальная",MAX(B120:F120),AVERAGE(B120:F120))) -> 53.8 | H120: =IFERROR(VLOOKUP(A120,'В автобиржах'!$A$2:$B$20000,2,0),"") -> 
A121: стартап2012.рф | B121: =IFERROR(VLOOKUP(A121,GGL!$A$2:$D$20000,4,0),"") ->  | C121: =IFERROR(VLOOKUP(A121,GetGoodLinks!$A$2:$B$20000,2,0),"") ->  | D121: =IFERROR(VLOOKUP(A121,RotaPost!$A$2:$E$20000,5,0),"") -> 80 | E121: =IFERROR(VLOOKUP(A121,PR.Sape!$A$2:$F$20000,6,0),"") -> 107.56 | F121: =IFERROR(VLOOKUP(A121,Miralinks!$A$2:$B$20000,2,0),"") ->  | G121: =IF(Config!$C$7="Минимальная",MIN(IF(B121:F121<>0,B121:F121,"")),IF(Config!$C$7="Максимальная",MAX(B121:F121),AVERAGE(B121:F121))) -> 93.8 | H121: =IFERROR(VLOOKUP(A121,'В автобиржах'!$A$2:$B$20000,2,0),"") -> 
A122: тамбов-откровения.рф | B122: =IFERROR(VLOOKUP(A122,GGL!$A$2:$D$20000,4,0),"") ->  | C122: =IFERROR(VLOOKUP(A122,GetGoodLinks!$A$2:$B$20000,2,0),"") ->  | D122: =IFERROR(VLOOKUP(A122,RotaPost!$A$2:$E$20000,5,0),"") -> 44 | E122: =IFERROR(VLOOKUP(A122,PR.Sape!$A$2:$F$20000,6,0),"") -> 48.89 | F122: =IFERROR(VLOOKUP(A122,Miralinks!$A$2:$B$20000,2,0),"") ->  | G122: =IF(Config!$C$7="Минимальная",MIN(IF(B122:F122<>0,B122:F122,"")),IF(Config!$C$7="Максимальная",MAX(B122:F122),AVERAGE(B122:F122))) -> 46.4 | H122: =IFERROR(VLOOKUP(A122,'В автобиржах'!$A$2:$B$20000,2,0),"") -> 
A123: твой-успех-екб.рф | B123: =IFERROR(VLOOKUP(A123,GGL!$A$2:$D$20000,4,0),"") ->  | C123: =IFERROR(VLOOKUP(A123,GetGoodLinks!$A$2:$B$20000,2,0),"") ->  | D123: =IFERROR(VLOOKUP(A123,RotaPost!$A$2:$E$20000,5,0),"") -> 50 | E123: =IFERROR(VLOOKUP(A123,PR.Sape!$A$2:$F$20000,6,0),"") ->  | F123: =IFERROR(VLOOKUP(A123,Miralinks!$A$2:$B$20000,2,0),"") ->  | G123: =IF(Config!$C$7="Минимальная",MIN(IF(B123:F123<>0,B123:F123,"")),IF(Config!$C$7="Максимальная",MAX(B123:F123),AVERAGE(B123:F123))) -> 50.0 | H123: =IFERROR(VLOOKUP(A123,'В автобиржах'!$A$2:$B$20000,2,0),"") -> 1
A124: творческийпортал.рф | B124: =IFERROR(VLOOKUP(A124,GGL!$A$2:$D$20000,4,0),"") ->  | C124: =IFERROR(VLOOKUP(A124,GetGoodLinks!$A$2:$B$20000,2,0),"") ->  | D124: =IFERROR(VLOOKUP(A124,RotaPost!$A$2:$E$20000,5,0),"") ->  | E124: =IFERROR(VLOOKUP(A124,PR.Sape!$A$2:$F$20000,6,0),"") -> 61.11 | F124: =IFERROR(VLOOKUP(A124,Miralinks!$A$2:$B$20000,2,0),"") -> 41.5 | G124: =IF(Config!$C$7="Минимальная",MIN(IF(B124:F124<>0,B124:F124,"")),IF(Config!$C$7="Максимальная",MAX(B124:F124),AVERAGE(B124:F124))) -> 51.3 | H124: =IFERROR(VLOOKUP(A124,'В автобиржах'!$A$2:$B$20000,2,0),"") -> 
A125: тк-мускат.рф | B125: =IFERROR(VLOOKUP(A125,GGL!$A$2:$D$20000,4,0),"") ->  | C125: =IFERROR(VLOOKUP(A125,GetGoodLinks!$A$2:$B$20000,2,0),"") ->  | D125: =IFERROR(VLOOKUP(A125,RotaPost!$A$2:$E$20000,5,0),"") ->  | E125: =IFERROR(VLOOKUP(A125,PR.Sape!$A$2:$F$20000,6,0),"") -> 66 | F125: =IFERROR(VLOOKUP(A125,Miralinks!$A$2:$B$20000,2,0),"") ->  | G125: =IF(Config!$C$7="Минимальная",MIN(IF(B125:F125<>0,B125:F125,"")),IF(Config!$C$7="Максимальная",MAX(B125:F125),AVERAGE(B125:F125))) -> 66.0 | H125: =IFERROR(VLOOKUP(A125,'В автобиржах'!$A$2:$B$20000,2,0),"") -> 
A126: трутаон.рф | B126: =IFERROR(VLOOKUP(A126,GGL!$A$2:$D$20000,4,0),"") ->  | C126: =IFERROR(VLOOKUP(A126,GetGoodLinks!$A$2:$B$20000,2,0),"") ->  | D126: =IFERROR(VLOOKUP(A126,RotaPost!$A$2:$E$20000,5,0),"") -> 70 | E126: =IFERROR(VLOOKUP(A126,PR.Sape!$A$2:$F$20000,6,0),"") ->  | F126: =IFERROR(VLOOKUP(A126,Miralinks!$A$2:$B$20000,2,0),"") ->  | G126: =IF(Config!$C$7="Минимальная",MIN(IF(B126:F126<>0,B126:F126,"")),IF(Config!$C$7="Максимальная",MAX(B126:F126),AVERAGE(B126:F126))) -> 70.0 | H126: =IFERROR(VLOOKUP(A126,'В автобиржах'!$A$2:$B$20000,2,0),"") -> 
A127: турфирмы-каталог.рф | B127: =IFERROR(VLOOKUP(A127,GGL!$A$2:$D$20000,4,0),"") ->  | C127: =IFERROR(VLOOKUP(A127,GetGoodLinks!$A$2:$B$20000,2,0),"") ->  | D127: =IFERROR(VLOOKUP(A127,RotaPost!$A$2:$E$20000,5,0),"") ->  | E127: =IFERROR(VLOOKUP(A127,PR.Sape!$A$2:$F$20000,6,0),"") -> 110 | F127: =IFERROR(VLOOKUP(A127,Miralinks!$A$2:$B$20000,2,0),"") ->  | G127: =IF(Config!$C$7="Минимальная",MIN(IF(B127:F127<>0,B127:F127,"")),IF(Config!$C$7="Максимальная",MAX(B127:F127),AVERAGE(B127:F127))) -> 110.0 | H127: =IFERROR(VLOOKUP(A127,'В автобиржах'!$A$2:$B$20000,2,0),"") -> 
A128: уборкапомещений.рф | B128: =IFERROR(VLOOKUP(A128,GGL!$A$2:$D$20000,4,0),"") -> 229.68 | C128: =IFERROR(VLOOKUP(A128,GetGoodLinks!$A$2:$B$20000,2,0),"") ->  | D128: =IFERROR(VLOOKUP(A128,RotaPost!$A$2:$E$20000,5,0),"") ->  | E128: =IFERROR(VLOOKUP(A128,PR.Sape!$A$2:$F$20000,6,0),"") -> 244.44 | F128: =IFERROR(VLOOKUP(A128,Miralinks!$A$2:$B$20000,2,0),"") ->  | G128: =IF(Config!$C$7="Минимальная",MIN(IF(B128:F128<>0,B128:F128,"")),IF(Config!$C$7="Максимальная",MAX(B128:F128),AVERAGE(B128:F128))) -> 237.1 | H128: =IFERROR(VLOOKUP(A128,'В автобиржах'!$A$2:$B$20000,2,0),"") -> 1
A129: удивимир.рф | B129: =IFERROR(VLOOKUP(A129,GGL!$A$2:$D$20000,4,0),"") ->  | C129: =IFERROR(VLOOKUP(A129,GetGoodLinks!$A$2:$B$20000,2,0),"") ->  | D129: =IFERROR(VLOOKUP(A129,RotaPost!$A$2:$E$20000,5,0),"") -> 300 | E129: =IFERROR(VLOOKUP(A129,PR.Sape!$A$2:$F$20000,6,0),"") ->  | F129: =IFERROR(VLOOKUP(A129,Miralinks!$A$2:$B$20000,2,0),"") -> 110 | G129: =IF(Config!$C$7="Минимальная",MIN(IF(B129:F129<>0,B129:F129,"")),IF(Config!$C$7="Максимальная",MAX(B129:F129),AVERAGE(B129:F129))) -> 205.0 | H129: =IFERROR(VLOOKUP(A129,'В автобиржах'!$A$2:$B$20000,2,0),"") -> 
A130: удмуртия-онлайн.рф | B130: =IFERROR(VLOOKUP(A130,GGL!$A$2:$D$20000,4,0),"") -> 165 | C130: =IFERROR(VLOOKUP(A130,GetGoodLinks!$A$2:$B$20000,2,0),"") ->  | D130: =IFERROR(VLOOKUP(A130,RotaPost!$A$2:$E$20000,5,0),"") ->  | E130: =IFERROR(VLOOKUP(A130,PR.Sape!$A$2:$F$20000,6,0),"") -> 275 | F130: =IFERROR(VLOOKUP(A130,Miralinks!$A$2:$B$20000,2,0),"") -> 115 | G130: =IF(Config!$C$7="Минимальная",MIN(IF(B130:F130<>0,B130:F130,"")),IF(Config!$C$7="Максимальная",MAX(B130:F130),AVERAGE(B130:F130))) -> 185.0 | H130: =IFERROR(VLOOKUP(A130,'В автобиржах'!$A$2:$B$20000,2,0),"") -> 1
A131: умный-малыш66.рф | B131: =IFERROR(VLOOKUP(A131,GGL!$A$2:$D$20000,4,0),"") ->  | C131: =IFERROR(VLOOKUP(A131,GetGoodLinks!$A$2:$B$20000,2,0),"") ->  | D131: =IFERROR(VLOOKUP(A131,RotaPost!$A$2:$E$20000,5,0),"") -> 58 | E131: =IFERROR(VLOOKUP(A131,PR.Sape!$A$2:$F$20000,6,0),"") -> 48.89 | F131: =IFERROR(VLOOKUP(A131,Miralinks!$A$2:$B$20000,2,0),"") ->  | G131: =IF(Config!$C$7="Минимальная",MIN(IF(B131:F131<>0,B131:F131,"")),IF(Config!$C$7="Максимальная",MAX(B131:F131),AVERAGE(B131:F131))) -> 53.4 | H131: =IFERROR(VLOOKUP(A131,'В автобиржах'!$A$2:$B$20000,2,0),"") -> 
A132: уфа-работа.рф | B132: =IFERROR(VLOOKUP(A132,GGL!$A$2:$D$20000,4,0),"") ->  | C132: =IFERROR(VLOOKUP(A132,GetGoodLinks!$A$2:$B$20000,2,0),"") ->  | D132: =IFERROR(VLOOKUP(A132,RotaPost!$A$2:$E$20000,5,0),"") ->  | E132: =IFERROR(VLOOKUP(A132,PR.Sape!$A$2:$F$20000,6,0),"") -> 166.22 | F132: =IFERROR(VLOOKUP(A132,Miralinks!$A$2:$B$20000,2,0),"") -> 106 | G132: =IF(Config!$C$7="Минимальная",MIN(IF(B132:F132<>0,B132:F132,"")),IF(Config!$C$7="Максимальная",MAX(B132:F132),AVERAGE(B132:F132))) -> 136.1 | H132: =IFERROR(VLOOKUP(A132,'В автобиржах'!$A$2:$B$20000,2,0),"") -> 
A133: фестиваль-невест.рф | B133: =IFERROR(VLOOKUP(A133,GGL!$A$2:$D$20000,4,0),"") ->  | C133: =IFERROR(VLOOKUP(A133,GetGoodLinks!$A$2:$B$20000,2,0),"") ->  | D133: =IFERROR(VLOOKUP(A133,RotaPost!$A$2:$E$20000,5,0),"") ->  | E133: =IFERROR(VLOOKUP(A133,PR.Sape!$A$2:$F$20000,6,0),"") -> 89.22 | F133: =IFERROR(VLOOKUP(A133,Miralinks!$A$2:$B$20000,2,0),"") ->  | G133: =IF(Config!$C$7="Минимальная",MIN(IF(B133:F133<>0,B133:F133,"")),IF(Config!$C$7="Максимальная",MAX(B133:F133),AVERAGE(B133:F133))) -> 89.2 | H133: =IFERROR(VLOOKUP(A133,'В автобиржах'!$A$2:$B$20000,2,0),"") -> 1
A134: флористикаподарки.рф | B134: =IFERROR(VLOOKUP(A134,GGL!$A$2:$D$20000,4,0),"") ->  | C134: =IFERROR(VLOOKUP(A134,GetGoodLinks!$A$2:$B$20000,2,0),"") ->  | D134: =IFERROR(VLOOKUP(A134,RotaPost!$A$2:$E$20000,5,0),"") -> 44 | E134: =IFERROR(VLOOKUP(A134,PR.Sape!$A$2:$F$20000,6,0),"") ->  | F134: =IFERROR(VLOOKUP(A134,Miralinks!$A$2:$B$20000,2,0),"") ->  | G134: =IF(Config!$C$7="Минимальная",MIN(IF(B134:F134<>0,B134:F134,"")),IF(Config!$C$7="Максимальная",MAX(B134:F134),AVERAGE(B134:F134))) -> 44.0 | H134: =IFERROR(VLOOKUP(A134,'В автобиржах'!$A$2:$B$20000,2,0),"") -> 
A135: фок-арена.рф | B135: =IFERROR(VLOOKUP(A135,GGL!$A$2:$D$20000,4,0),"") ->  | C135: =IFERROR(VLOOKUP(A135,GetGoodLinks!$A$2:$B$20000,2,0),"") ->  | D135: =IFERROR(VLOOKUP(A135,RotaPost!$A$2:$E$20000,5,0),"") ->  | E135: =IFERROR(VLOOKUP(A135,PR.Sape!$A$2:$F$20000,6,0),"") -> 92.28 | F135: =IFERROR(VLOOKUP(A135,Miralinks!$A$2:$B$20000,2,0),"") ->  | G135: =IF(Config!$C$7="Минимальная",MIN(IF(B135:F135<>0,B135:F135,"")),IF(Config!$C$7="Максимальная",MAX(B135:F135),AVERAGE(B135:F135))) -> 92.3 | H135: =IFERROR(VLOOKUP(A135,'В автобиржах'!$A$2:$B$20000,2,0),"") -> 
A136: хабспиртпром.рф | B136: =IFERROR(VLOOKUP(A136,GGL!$A$2:$D$20000,4,0),"") ->  | C136: =IFERROR(VLOOKUP(A136,GetGoodLinks!$A$2:$B$20000,2,0),"") ->  | D136: =IFERROR(VLOOKUP(A136,RotaPost!$A$2:$E$20000,5,0),"") -> 44 | E136: =IFERROR(VLOOKUP(A136,PR.Sape!$A$2:$F$20000,6,0),"") ->  | F136: =IFERROR(VLOOKUP(A136,Miralinks!$A$2:$B$20000,2,0),"") ->  | G136: =IF(Config!$C$7="Минимальная",MIN(IF(B136:F136<>0,B136:F136,"")),IF(Config!$C$7="Максимальная",MAX(B136:F136),AVERAGE(B136:F136))) -> 44.0 | H136: =IFERROR(VLOOKUP(A136,'В автобиржах'!$A$2:$B$20000,2,0),"") -> 
A137: хорошаяжизнь.рф | B137: =IFERROR(VLOOKUP(A137,GGL!$A$2:$D$20000,4,0),"") ->  | C137: =IFERROR(VLOOKUP(A137,GetGoodLinks!$A$2:$B$20000,2,0),"") ->  | D137: =IFERROR(VLOOKUP(A137,RotaPost!$A$2:$E$20000,5,0),"") -> 44 | E137: =IFERROR(VLOOKUP(A137,PR.Sape!$A$2:$F$20000,6,0),"") -> 48.89 | F137: =IFERROR(VLOOKUP(A137,Miralinks!$A$2:$B$20000,2,0),"") ->  | G137: =IF(Config!$C$7="Минимальная",MIN(IF(B137:F137<>0,B137:F137,"")),IF(Config!$C$7="Максимальная",MAX(B137:F137),AVERAGE(B137:F137))) -> 46.4 | H137: =IFERROR(VLOOKUP(A137,'В автобиржах'!$A$2:$B$20000,2,0),"") -> 
A138: цит-пикалево.рф | B138: =IFERROR(VLOOKUP(A138,GGL!$A$2:$D$20000,4,0),"") ->  | C138: =IFERROR(VLOOKUP(A138,GetGoodLinks!$A$2:$B$20000,2,0),"") ->  | D138: =IFERROR(VLOOKUP(A138,RotaPost!$A$2:$E$20000,5,0),"") -> 44 | E138: =IFERROR(VLOOKUP(A138,PR.Sape!$A$2:$F$20000,6,0),"") ->  | F138: =IFERROR(VLOOKUP(A138,Miralinks!$A$2:$B$20000,2,0),"") ->  | G138: =IF(Config!$C$7="Минимальная",MIN(IF(B138:F138<>0,B138:F138,"")),IF(Config!$C$7="Максимальная",MAX(B138:F138),AVERAGE(B138:F138))) -> 44.0 | H138: =IFERROR(VLOOKUP(A138,'В автобиржах'!$A$2:$B$20000,2,0),"") -> 
A139: цпт45.рф | B139: =IFERROR(VLOOKUP(A139,GGL!$A$2:$D$20000,4,0),"") ->  | C139: =IFERROR(VLOOKUP(A139,GetGoodLinks!$A$2:$B$20000,2,0),"") ->  | D139: =IFERROR(VLOOKUP(A139,RotaPost!$A$2:$E$20000,5,0),"") -> 80 | E139: =IFERROR(VLOOKUP(A139,PR.Sape!$A$2:$F$20000,6,0),"") ->  | F139: =IFERROR(VLOOKUP(A139,Miralinks!$A$2:$B$20000,2,0),"") ->  | G139: =IF(Config!$C$7="Минимальная",MIN(IF(B139:F139<>0,B139:F139,"")),IF(Config!$C$7="Максимальная",MAX(B139:F139),AVERAGE(B139:F139))) -> 80.0 | H139: =IFERROR(VLOOKUP(A139,'В автобиржах'!$A$2:$B$20000,2,0),"") -> 
A140: шагаяпоканату.рф | B140: =IFERROR(VLOOKUP(A140,GGL!$A$2:$D$20000,4,0),"") ->  | C140: =IFERROR(VLOOKUP(A140,GetGoodLinks!$A$2:$B$20000,2,0),"") ->  | D140: =IFERROR(VLOOKUP(A140,RotaPost!$A$2:$E$20000,5,0),"") -> 44 | E140: =IFERROR(VLOOKUP(A140,PR.Sape!$A$2:$F$20000,6,0),"") ->  | F140: =IFERROR(VLOOKUP(A140,Miralinks!$A$2:$B$20000,2,0),"") ->  | G140: =IF(Config!$C$7="Минимальная",MIN(IF(B140:F140<>0,B140:F140,"")),IF(Config!$C$7="Максимальная",MAX(B140:F140),AVERAGE(B140:F140))) -> 44.0 | H140: =IFERROR(VLOOKUP(A140,'В автобиржах'!$A$2:$B$20000,2,0),"") -> 
A141: школа-86.рф | B141: =IFERROR(VLOOKUP(A141,GGL!$A$2:$D$20000,4,0),"") ->  | C141: =IFERROR(VLOOKUP(A141,GetGoodLinks!$A$2:$B$20000,2,0),"") ->  | D141: =IFERROR(VLOOKUP(A141,RotaPost!$A$2:$E$20000,5,0),"") -> 44 | E141: =IFERROR(VLOOKUP(A141,PR.Sape!$A$2:$F$20000,6,0),"") ->  | F141: =IFERROR(VLOOKUP(A141,Miralinks!$A$2:$B$20000,2,0),"") ->  | G141: =IF(Config!$C$7="Минимальная",MIN(IF(B141:F141<>0,B141:F141,"")),IF(Config!$C$7="Максимальная",MAX(B141:F141),AVERAGE(B141:F141))) -> 44.0 | H141: =IFERROR(VLOOKUP(A141,'В автобиржах'!$A$2:$B$20000,2,0),"") -> 
A142: школа409.рф | B142: =IFERROR(VLOOKUP(A142,GGL!$A$2:$D$20000,4,0),"") ->  | C142: =IFERROR(VLOOKUP(A142,GetGoodLinks!$A$2:$B$20000,2,0),"") ->  | D142: =IFERROR(VLOOKUP(A142,RotaPost!$A$2:$E$20000,5,0),"") ->  | E142: =IFERROR(VLOOKUP(A142,PR.Sape!$A$2:$F$20000,6,0),"") -> 53.78 | F142: =IFERROR(VLOOKUP(A142,Miralinks!$A$2:$B$20000,2,0),"") ->  | G142: =IF(Config!$C$7="Минимальная",MIN(IF(B142:F142<>0,B142:F142,"")),IF(Config!$C$7="Максимальная",MAX(B142:F142),AVERAGE(B142:F142))) -> 53.8 | H142: =IFERROR(VLOOKUP(A142,'В автобиржах'!$A$2:$B$20000,2,0),"") -> 
A143: экспедициячнм.рф | B143: =IFERROR(VLOOKUP(A143,GGL!$A$2:$D$20000,4,0),"") ->  | C143: =IFERROR(VLOOKUP(A143,GetGoodLinks!$A$2:$B$20000,2,0),"") ->  | D143: =IFERROR(VLOOKUP(A143,RotaPost!$A$2:$E$20000,5,0),"") -> 44 | E143: =IFERROR(VLOOKUP(A143,PR.Sape!$A$2:$F$20000,6,0),"") -> 48.89 | F143: =IFERROR(VLOOKUP(A143,Miralinks!$A$2:$B$20000,2,0),"") ->  | G143: =IF(Config!$C$7="Минимальная",MIN(IF(B143:F143<>0,B143:F143,"")),IF(Config!$C$7="Максимальная",MAX(B143:F143),AVERAGE(B143:F143))) -> 46.4 | H143: =IFERROR(VLOOKUP(A143,'В автобиржах'!$A$2:$B$20000,2,0),"") -> 
A144: эксперт-сибирь.рф | B144: =IFERROR(VLOOKUP(A144,GGL!$A$2:$D$20000,4,0),"") ->  | C144: =IFERROR(VLOOKUP(A144,GetGoodLinks!$A$2:$B$20000,2,0),"") ->  | D144: =IFERROR(VLOOKUP(A144,RotaPost!$A$2:$E$20000,5,0),"") -> 44 | E144: =IFERROR(VLOOKUP(A144,PR.Sape!$A$2:$F$20000,6,0),"") -> 48.89 | F144: =IFERROR(VLOOKUP(A144,Miralinks!$A$2:$B$20000,2,0),"") ->  | G144: =IF(Config!$C$7="Минимальная",MIN(IF(B144:F144<>0,B144:F144,"")),IF(Config!$C$7="Максимальная",MAX(B144:F144),AVERAGE(B144:F144))) -> 46.4 | H144: =IFERROR(VLOOKUP(A144,'В автобиржах'!$A$2:$B$20000,2,0),"") -> 
A145: экспресс-волга-лизинг.рф | B145: =IFERROR(VLOOKUP(A145,GGL!$A$2:$D$20000,4,0),"") ->  | C145: =IFERROR(VLOOKUP(A145,GetGoodLinks!$A$2:$B$20000,2,0),"") ->  | D145: =IFERROR(VLOOKUP(A145,RotaPost!$A$2:$E$20000,5,0),"") ->  | E145: =IFERROR(VLOOKUP(A145,PR.Sape!$A$2:$F$20000,6,0),"") -> 855.56 | F145: =IFERROR(VLOOKUP(A145,Miralinks!$A$2:$B$20000,2,0),"") ->  | G145: =IF(Config!$C$7="Минимальная",MIN(IF(B145:F145<>0,B145:F145,"")),IF(Config!$C$7="Максимальная",MAX(B145:F145),AVERAGE(B145:F145))) -> 855.6 | H145: =IFERROR(VLOOKUP(A145,'В автобиржах'!$A$2:$B$20000,2,0),"") -> 
A146: электротехнический-портал.рф | B146: =IFERROR(VLOOKUP(A146,GGL!$A$2:$D$20000,4,0),"") -> 242 | C146: =IFERROR(VLOOKUP(A146,GetGoodLinks!$A$2:$B$20000,2,0),"") ->  | D146: =IFERROR(VLOOKUP(A146,RotaPost!$A$2:$E$20000,5,0),"") ->  | E146: =IFERROR(VLOOKUP(A146,PR.Sape!$A$2:$F$20000,6,0),"") ->  | F146: =IFERROR(VLOOKUP(A146,Miralinks!$A$2:$B$20000,2,0),"") -> 190 | G146: =IF(Config!$C$7="Минимальная",MIN(IF(B146:F146<>0,B146:F146,"")),IF(Config!$C$7="Максимальная",MAX(B146:F146),AVERAGE(B146:F146))) -> 216.0 | H146: =IFERROR(VLOOKUP(A146,'В автобиржах'!$A$2:$B$20000,2,0),"") -> 
A147: эмальпосуда.рф | B147: =IFERROR(VLOOKUP(A147,GGL!$A$2:$D$20000,4,0),"") ->  | C147: =IFERROR(VLOOKUP(A147,GetGoodLinks!$A$2:$B$20000,2,0),"") ->  | D147: =IFERROR(VLOOKUP(A147,RotaPost!$A$2:$E$20000,5,0),"") -> 44 | E147: =IFERROR(VLOOKUP(A147,PR.Sape!$A$2:$F$20000,6,0),"") ->  | F147: =IFERROR(VLOOKUP(A147,Miralinks!$A$2:$B$20000,2,0),"") ->  | G147: =IF(Config!$C$7="Минимальная",MIN(IF(B147:F147<>0,B147:F147,"")),IF(Config!$C$7="Максимальная",MAX(B147:F147),AVERAGE(B147:F147))) -> 44.0 | H147: =IFERROR(VLOOKUP(A147,'В автобиржах'!$A$2:$B$20000,2,0),"") -> 
A148: энергоидея.рф | B148: =IFERROR(VLOOKUP(A148,GGL!$A$2:$D$20000,4,0),"") ->  | C148: =IFERROR(VLOOKUP(A148,GetGoodLinks!$A$2:$B$20000,2,0),"") ->  | D148: =IFERROR(VLOOKUP(A148,RotaPost!$A$2:$E$20000,5,0),"") ->  | E148: =IFERROR(VLOOKUP(A148,PR.Sape!$A$2:$F$20000,6,0),"") -> 268.89 | F148: =IFERROR(VLOOKUP(A148,Miralinks!$A$2:$B$20000,2,0),"") ->  | G148: =IF(Config!$C$7="Минимальная",MIN(IF(B148:F148<>0,B148:F148,"")),IF(Config!$C$7="Максимальная",MAX(B148:F148),AVERAGE(B148:F148))) -> 268.9 | H148: =IFERROR(VLOOKUP(A148,'В автобиржах'!$A$2:$B$20000,2,0),"") -> 
A149: энциклопедиябыта.рф | B149: =IFERROR(VLOOKUP(A149,GGL!$A$2:$D$20000,4,0),"") ->  | C149: =IFERROR(VLOOKUP(A149,GetGoodLinks!$A$2:$B$20000,2,0),"") ->  | D149: =IFERROR(VLOOKUP(A149,RotaPost!$A$2:$E$20000,5,0),"") -> 100 | E149: =IFERROR(VLOOKUP(A149,PR.Sape!$A$2:$F$20000,6,0),"") -> 134.44 | F149: =IFERROR(VLOOKUP(A149,Miralinks!$A$2:$B$20000,2,0),"") ->  | G149: =IF(Config!$C$7="Минимальная",MIN(IF(B149:F149<>0,B149:F149,"")),IF(Config!$C$7="Максимальная",MAX(B149:F149),AVERAGE(B149:F149))) -> 117.2 | H149: =IFERROR(VLOOKUP(A149,'В автобиржах'!$A$2:$B$20000,2,0),"") -> 1
A150: юхл.рф | B150: =IFERROR(VLOOKUP(A150,GGL!$A$2:$D$20000,4,0),"") ->  | C150: =IFERROR(VLOOKUP(A150,GetGoodLinks!$A$2:$B$20000,2,0),"") ->  | D150: =IFERROR(VLOOKUP(A150,RotaPost!$A$2:$E$20000,5,0),"") ->  | E150: =IFERROR(VLOOKUP(A150,PR.Sape!$A$2:$F$20000,6,0),"") -> 61.11 | F150: =IFERROR(VLOOKUP(A150,Miralinks!$A$2:$B$20000,2,0),"") ->  | G150: =IF(Config!$C$7="Минимальная",MIN(IF(B150:F150<>0,B150:F150,"")),IF(Config!$C$7="Максимальная",MAX(B150:F150),AVERAGE(B150:F150))) -> 61.1 | H150: =IFERROR(VLOOKUP(A150,'В автобиржах'!$A$2:$B$20000,2,0),"") -> 
A151: яиспорт.рф | B151: =IFERROR(VLOOKUP(A151,GGL!$A$2:$D$20000,4,0),"") ->  | C151: =IFERROR(VLOOKUP(A151,GetGoodLinks!$A$2:$B$20000,2,0),"") ->  | D151: =IFERROR(VLOOKUP(A151,RotaPost!$A$2:$E$20000,5,0),"") -> 44 | E151: =IFERROR(VLOOKUP(A151,PR.Sape!$A$2:$F$20000,6,0),"") -> 48.89 | F151: =IFERROR(VLOOKUP(A151,Miralinks!$A$2:$B$20000,2,0),"") ->  | G151: =IF(Config!$C$7="Минимальная",MIN(IF(B151:F151<>0,B151:F151,"")),IF(Config!$C$7="Максимальная",MAX(B151:F151),AVERAGE(B151:F151))) -> 46.4 | H151: =IFERROR(VLOOKUP(A151,'В автобиржах'!$A$2:$B$20000,2,0),"") -> 
A152: яна-ужегова.рф | B152: =IFERROR(VLOOKUP(A152,GGL!$A$2:$D$20000,4,0),"") ->  | C152: =IFERROR(VLOOKUP(A152,GetGoodLinks!$A$2:$B$20000,2,0),"") ->  | D152: =IFERROR(VLOOKUP(A152,RotaPost!$A$2:$E$20000,5,0),"") -> 50 | E152: =IFERROR(VLOOKUP(A152,PR.Sape!$A$2:$F$20000,6,0),"") ->  | F152: =IFERROR(VLOOKUP(A152,Miralinks!$A$2:$B$20000,2,0),"") ->  | G152: =IF(Config!$C$7="Минимальная",MIN(IF(B152:F152<>0,B152:F152,"")),IF(Config!$C$7="Максимальная",MAX(B152:F152),AVERAGE(B152:F152))) -> 50.0 | H152: =IFERROR(VLOOKUP(A152,'В автобиржах'!$A$2:$B$20000,2,0),"") -> 
A153: яркая-свадьба.рф | B153: =IFERROR(VLOOKUP(A153,GGL!$A$2:$D$20000,4,0),"") ->  | C153: =IFERROR(VLOOKUP(A153,GetGoodLinks!$A$2:$B$20000,2,0),"") ->  | D153: =IFERROR(VLOOKUP(A153,RotaPost!$A$2:$E$20000,5,0),"") ->  | E153: =IFERROR(VLOOKUP(A153,PR.Sape!$A$2:$F$20000,6,0),"") -> 183.33 | F153: =IFERROR(VLOOKUP(A153,Miralinks!$A$2:$B$20000,2,0),"") ->  | G153: =IF(Config!$C$7="Минимальная",MIN(IF(B153:F153<>0,B153:F153,"")),IF(Config!$C$7="Максимальная",MAX(B153:F153),AVERAGE(B153:F153))) -> 183.3 | H153: =IFERROR(VLOOKUP(A153,'В автобиржах'!$A$2:$B$20000,2,0),"") -> 
A154: УчебныеПрезентации.рф | B154: =IFERROR(VLOOKUP(A154,GGL!$A$2:$D$20000,4,0),"") -> 218.9 | C154: =IFERROR(VLOOKUP(A154,GetGoodLinks!$A$2:$B$20000,2,0),"") ->  | D154: =IFERROR(VLOOKUP(A154,RotaPost!$A$2:$E$20000,5,0),"") ->  | E154: =IFERROR(VLOOKUP(A154,PR.Sape!$A$2:$F$20000,6,0),"") ->  | F154: =IFERROR(VLOOKUP(A154,Miralinks!$A$2:$B$20000,2,0),"") ->  | G154: =IF(Config!$C$7="Минимальная",MIN(IF(B154:F154<>0,B154:F154,"")),IF(Config!$C$7="Максимальная",MAX(B154:F154),AVERAGE(B154:F154))) -> 218.9 | H154: =IFERROR(VLOOKUP(A154,'В автобиржах'!$A$2:$B$20000,2,0),"") -> 
A155: 00024.ru | B155: =IFERROR(VLOOKUP(A155,GGL!$A$2:$D$20000,4,0),"") -> 330 | C155: =IFERROR(VLOOKUP(A155,GetGoodLinks!$A$2:$B$20000,2,0),"") ->  | D155: =IFERROR(VLOOKUP(A155,RotaPost!$A$2:$E$20000,5,0),"") ->  | E155: =IFERROR(VLOOKUP(A155,PR.Sape!$A$2:$F$20000,6,0),"") ->  | F155: =IFERROR(VLOOKUP(A155,Miralinks!$A$2:$B$20000,2,0),"") ->  | G155: =IF(Config!$C$7="Минимальная",MIN(IF(B155:F155<>0,B155:F155,"")),IF(Config!$C$7="Максимальная",MAX(B155:F155),AVERAGE(B155:F155))) -> 330.0 | H155: =IFERROR(VLOOKUP(A155,'В автобиржах'!$A$2:$B$20000,2,0),"") -> 
A156: 001mercury.ru | B156: =IFERROR(VLOOKUP(A156,GGL!$A$2:$D$20000,4,0),"") ->  | C156: =IFERROR(VLOOKUP(A156,GetGoodLinks!$A$2:$B$20000,2,0),"") ->  | D156: =IFERROR(VLOOKUP(A156,RotaPost!$A$2:$E$20000,5,0),"") -> 58 | E156: =IFERROR(VLOOKUP(A156,PR.Sape!$A$2:$F$20000,6,0),"") -> 48.89 | F156: =IFERROR(VLOOKUP(A156,Miralinks!$A$2:$B$20000,2,0),"") ->  | G156: =IF(Config!$C$7="Минимальная",MIN(IF(B156:F156<>0,B156:F156,"")),IF(Config!$C$7="Максимальная",MAX(B156:F156),AVERAGE(B156:F156))) -> 53.4 | H156: =IFERROR(VLOOKUP(A156,'В автобиржах'!$A$2:$B$20000,2,0),"") -> 
A157: 007.dmrexpress.ru | B157: =IFERROR(VLOOKUP(A157,GGL!$A$2:$D$20000,4,0),"") ->  | C157: =IFERROR(VLOOKUP(A157,GetGoodLinks!$A$2:$B$20000,2,0),"") ->  | D157: =IFERROR(VLOOKUP(A157,RotaPost!$A$2:$E$20000,5,0),"") -> 650 | E157: =IFERROR(VLOOKUP(A157,PR.Sape!$A$2:$F$20000,6,0),"") -> 488.89 | F157: =IFERROR(VLOOKUP(A157,Miralinks!$A$2:$B$20000,2,0),"") ->  | G157: =IF(Config!$C$7="Минимальная",MIN(IF(B157:F157<>0,B157:F157,"")),IF(Config!$C$7="Максимальная",MAX(B157:F157),AVERAGE(B157:F157))) -> 569.4 | H157: =IFERROR(VLOOKUP(A157,'В автобиржах'!$A$2:$B$20000,2,0),"") -> 1
A158: 00j.org | B158: =IFERROR(VLOOKUP(A158,GGL!$A$2:$D$20000,4,0),"") -> 220 | C158: =IFERROR(VLOOKUP(A158,GetGoodLinks!$A$2:$B$20000,2,0),"") ->  | D158: =IFERROR(VLOOKUP(A158,RotaPost!$A$2:$E$20000,5,0),"") ->  | E158: =IFERROR(VLOOKUP(A158,PR.Sape!$A$2:$F$20000,6,0),"") -> 146.67 | F158: =IFERROR(VLOOKUP(A158,Miralinks!$A$2:$B$20000,2,0),"") ->  | G158: =IF(Config!$C$7="Минимальная",MIN(IF(B158:F158<>0,B158:F158,"")),IF(Config!$C$7="Максимальная",MAX(B158:F158),AVERAGE(B158:F158))) -> 183.3 | H158: =IFERROR(VLOOKUP(A158,'В автобиржах'!$A$2:$B$20000,2,0),"") -> 1
A159: 015.by | B159: =IFERROR(VLOOKUP(A159,GGL!$A$2:$D$20000,4,0),"") -> 234.59 | C159: =IFERROR(VLOOKUP(A159,GetGoodLinks!$A$2:$B$20000,2,0),"") ->  | D159: =IFERROR(VLOOKUP(A159,RotaPost!$A$2:$E$20000,5,0),"") -> 274 | E159: =IFERROR(VLOOKUP(A159,PR.Sape!$A$2:$F$20000,6,0),"") -> 366.67 | F159: =IFERROR(VLOOKUP(A159,Miralinks!$A$2:$B$20000,2,0),"") -> 178 | G159: =IF(Config!$C$7="Минимальная",MIN(IF(B159:F159<>0,B159:F159,"")),IF(Config!$C$7="Максимальная",MAX(B159:F159),AVERAGE(B159:F159))) -> 263.3 | H159: =IFERROR(VLOOKUP(A159,'В автобиржах'!$A$2:$B$20000,2,0),"") -> 1
A160: 016.by | B160: =IFERROR(VLOOKUP(A160,GGL!$A$2:$D$20000,4,0),"") ->  | C160: =IFERROR(VLOOKUP(A160,GetGoodLinks!$A$2:$B$20000,2,0),"") ->  | D160: =IFERROR(VLOOKUP(A160,RotaPost!$A$2:$E$20000,5,0),"") -> 149 | E160: =IFERROR(VLOOKUP(A160,PR.Sape!$A$2:$F$20000,6,0),"") ->  | F160: =IFERROR(VLOOKUP(A160,Miralinks!$A$2:$B$20000,2,0),"") ->  | G160: =IF(Config!$C$7="Минимальная",MIN(IF(B160:F160<>0,B160:F160,"")),IF(Config!$C$7="Максимальная",MAX(B160:F160),AVERAGE(B160:F160))) -> 149.0 | H160: =IFERROR(VLOOKUP(A160,'В автобиржах'!$A$2:$B$20000,2,0),"") -> 
A161: 021.by | B161: =IFERROR(VLOOKUP(A161,GGL!$A$2:$D$20000,4,0),"") ->  | C161: =IFERROR(VLOOKUP(A161,GetGoodLinks!$A$2:$B$20000,2,0),"") ->  | D161: =IFERROR(VLOOKUP(A161,RotaPost!$A$2:$E$20000,5,0),"") -> 149 | E161: =IFERROR(VLOOKUP(A161,PR.Sape!$A$2:$F$20000,6,0),"") ->  | F161: =IFERROR(VLOOKUP(A161,Miralinks!$A$2:$B$20000,2,0),"") ->  | G161: =IF(Config!$C$7="Минимальная",MIN(IF(B161:F161<>0,B161:F161,"")),IF(Config!$C$7="Максимальная",MAX(B161:F161),AVERAGE(B161:F161))) -> 149.0 | H161: =IFERROR(VLOOKUP(A161,'В автобиржах'!$A$2:$B$20000,2,0),"") -> 
A162: 0214.by | B162: =IFERROR(VLOOKUP(A162,GGL!$A$2:$D$20000,4,0),"") ->  | C162: =IFERROR(VLOOKUP(A162,GetGoodLinks!$A$2:$B$20000,2,0),"") ->  | D162: =IFERROR(VLOOKUP(A162,RotaPost!$A$2:$E$20000,5,0),"") -> 230 | E162: =IFERROR(VLOOKUP(A162,PR.Sape!$A$2:$F$20000,6,0),"") -> 220 | F162: =IFERROR(VLOOKUP(A162,Miralinks!$A$2:$B$20000,2,0),"") ->  | G162: =IF(Config!$C$7="Минимальная",MIN(IF(B162:F162<>0,B162:F162,"")),IF(Config!$C$7="Максимальная",MAX(B162:F162),AVERAGE(B162:F162))) -> 225.0 | H162: =IFERROR(VLOOKUP(A162,'В автобиржах'!$A$2:$B$20000,2,0),"") -> 1
A163: 022.by | B163: =IFERROR(VLOOKUP(A163,GGL!$A$2:$D$20000,4,0),"") ->  | C163: =IFERROR(VLOOKUP(A163,GetGoodLinks!$A$2:$B$20000,2,0),"") ->  | D163: =IFERROR(VLOOKUP(A163,RotaPost!$A$2:$E$20000,5,0),"") -> 149 | E163: =IFERROR(VLOOKUP(A163,PR.Sape!$A$2:$F$20000,6,0),"") ->  | F163: =IFERROR(VLOOKUP(A163,Miralinks!$A$2:$B$20000,2,0),"") ->  | G163: =IF(Config!$C$7="Минимальная",MIN(IF(B163:F163<>0,B163:F163,"")),IF(Config!$C$7="Максимальная",MAX(B163:F163),AVERAGE(B163:F163))) -> 149.0 | H163: =IFERROR(VLOOKUP(A163,'В автобиржах'!$A$2:$B$20000,2,0),"") -> 
A164: 023.by | B164: =IFERROR(VLOOKUP(A164,GGL!$A$2:$D$20000,4,0),"") ->  | C164: =IFERROR(VLOOKUP(A164,GetGoodLinks!$A$2:$B$20000,2,0),"") ->  | D164: =IFERROR(VLOOKUP(A164,RotaPost!$A$2:$E$20000,5,0),"") -> 149 | E164: =IFERROR(VLOOKUP(A164,PR.Sape!$A$2:$F$20000,6,0),"") ->  | F164: =IFERROR(VLOOKUP(A164,Miralinks!$A$2:$B$20000,2,0),"") ->  | G164: =IF(Config!$C$7="Минимальная",MIN(IF(B164:F164<>0,B164:F164,"")),IF(Config!$C$7="Максимальная",MAX(B164:F164),AVERAGE(B164:F164))) -> 149.0 | H164: =IFERROR(VLOOKUP(A164,'В автобиржах'!$A$2:$B$20000,2,0),"") -> 
A165: 02teplo.ru | B165: =IFERROR(VLOOKUP(A165,GGL!$A$2:$D$20000,4,0),"") -> 581.9 | C165: =IFERROR(VLOOKUP(A165,GetGoodLinks!$A$2:$B$20000,2,0),"") ->  | D165: =IFERROR(VLOOKUP(A165,RotaPost!$A$2:$E$20000,5,0),"") -> 800 | E165: =IFERROR(VLOOKUP(A165,PR.Sape!$A$2:$F$20000,6,0),"") -> 732.11 | F165: =IFERROR(VLOOKUP(A165,Miralinks!$A$2:$B$20000,2,0),"") -> 499 | G165: =IF(Config!$C$7="Минимальная",MIN(IF(B165:F165<>0,B165:F165,"")),IF(Config!$C$7="Максимальная",MAX(B165:F165),AVERAGE(B165:F165))) -> 653.3 | H165: =IFERROR(VLOOKUP(A165,'В автобиржах'!$A$2:$B$20000,2,0),"") -> 1
A166: 02u.ru | B166: =IFERROR(VLOOKUP(A166,GGL!$A$2:$D$20000,4,0),"") ->  | C166: =IFERROR(VLOOKUP(A166,GetGoodLinks!$A$2:$B$20000,2,0),"") ->  | D166: =IFERROR(VLOOKUP(A166,RotaPost!$A$2:$E$20000,5,0),"") -> 60 | E166: =IFERROR(VLOOKUP(A166,PR.Sape!$A$2:$F$20000,6,0),"") ->  | F166: =IFERROR(VLOOKUP(A166,Miralinks!$A$2:$B$20000,2,0),"") ->  | G166: =IF(Config!$C$7="Минимальная",MIN(IF(B166:F166<>0,B166:F166,"")),IF(Config!$C$7="Максимальная",MAX(B166:F166),AVERAGE(B166:F166))) -> 60.0 | H166: =IFERROR(VLOOKUP(A166,'В автобиржах'!$A$2:$B$20000,2,0),"") -> 1
A167: 032.ua | B167: =IFERROR(VLOOKUP(A167,GGL!$A$2:$D$20000,4,0),"") -> 398.9 | C167: =IFERROR(VLOOKUP(A167,GetGoodLinks!$A$2:$B$20000,2,0),"") -> 264 | D167: =IFERROR(VLOOKUP(A167,RotaPost!$A$2:$E$20000,5,0),"") ->  | E167: =IFERROR(VLOOKUP(A167,PR.Sape!$A$2:$F$20000,6,0),"") -> 316.56 | F167: =IFERROR(VLOOKUP(A167,Miralinks!$A$2:$B$20000,2,0),"") -> 314 | G167: =IF(Config!$C$7="Минимальная",MIN(IF(B167:F167<>0,B167:F167,"")),IF(Config!$C$7="Максимальная",MAX(B167:F167),AVERAGE(B167:F167))) -> 323.4 | H167: =IFERROR(VLOOKUP(A167,'В автобиржах'!$A$2:$B$20000,2,0),"") -> 
A168: 0332.ua | B168: =IFERROR(VLOOKUP(A168,GGL!$A$2:$D$20000,4,0),"") ->  | C168: =IFERROR(VLOOKUP(A168,GetGoodLinks!$A$2:$B$20000,2,0),"") ->  | D168: =IFERROR(VLOOKUP(A168,RotaPost!$A$2:$E$20000,5,0),"") -> 249 | E168: =IFERROR(VLOOKUP(A168,PR.Sape!$A$2:$F$20000,6,0),"") -> 157.67 | F168: =IFERROR(VLOOKUP(A168,Miralinks!$A$2:$B$20000,2,0),"") -> 160 | G168: =IF(Config!$C$7="Минимальная",MIN(IF(B168:F168<>0,B168:F168,"")),IF(Config!$C$7="Максимальная",MAX(B168:F168),AVERAGE(B168:F168))) -> 188.9 | H168: =IFERROR(VLOOKUP(A168,'В автобиржах'!$A$2:$B$20000,2,0),"") -> 
A169: 0352.ua | B169: =IFERROR(VLOOKUP(A169,GGL!$A$2:$D$20000,4,0),"") ->  | C169: =IFERROR(VLOOKUP(A169,GetGoodLinks!$A$2:$B$20000,2,0),"") ->  | D169: =IFERROR(VLOOKUP(A169,RotaPost!$A$2:$E$20000,5,0),"") ->  | E169: =IFERROR(VLOOKUP(A169,PR.Sape!$A$2:$F$20000,6,0),"") -> 182.11 | F169: =IFERROR(VLOOKUP(A169,Miralinks!$A$2:$B$20000,2,0),"") ->  | G169: =IF(Config!$C$7="Минимальная",MIN(IF(B169:F169<>0,B169:F169,"")),IF(Config!$C$7="Максимальная",MAX(B169:F169),AVERAGE(B169:F169))) -> 182.1 | H169: =IFERROR(VLOOKUP(A169,'В автобиржах'!$A$2:$B$20000,2,0),"") -> 
A170: 0362.ua | B170: =IFERROR(VLOOKUP(A170,GGL!$A$2:$D$20000,4,0),"") ->  | C170: =IFERROR(VLOOKUP(A170,GetGoodLinks!$A$2:$B$20000,2,0),"") ->  | D170: =IFERROR(VLOOKUP(A170,RotaPost!$A$2:$E$20000,5,0),"") -> 249 | E170: =IFERROR(VLOOKUP(A170,PR.Sape!$A$2:$F$20000,6,0),"") -> 177.22 | F170: =IFERROR(VLOOKUP(A170,Miralinks!$A$2:$B$20000,2,0),"") ->  | G170: =IF(Config!$C$7="Минимальная",MIN(IF(B170:F170<>0,B170:F170,"")),IF(Config!$C$7="Максимальная",MAX(B170:F170),AVERAGE(B170:F170))) -> 213.1 | H170: =IFERROR(VLOOKUP(A170,'В автобиржах'!$A$2:$B$20000,2,0),"") -> 
A171: 0368.ru | B171: =IFERROR(VLOOKUP(A171,GGL!$A$2:$D$20000,4,0),"") ->  | C171: =IFERROR(VLOOKUP(A171,GetGoodLinks!$A$2:$B$20000,2,0),"") ->  | D171: =IFERROR(VLOOKUP(A171,RotaPost!$A$2:$E$20000,5,0),"") ->  | E171: =IFERROR(VLOOKUP(A171,PR.Sape!$A$2:$F$20000,6,0),"") -> 53.78 | F171: =IFERROR(VLOOKUP(A171,Miralinks!$A$2:$B$20000,2,0),"") ->  | G171: =IF(Config!$C$7="Минимальная",MIN(IF(B171:F171<>0,B171:F171,"")),IF(Config!$C$7="Максимальная",MAX(B171:F171),AVERAGE(B171:F171))) -> 53.8 | H171: =IFERROR(VLOOKUP(A171,'В автобиржах'!$A$2:$B$20000,2,0),"") -> 
A172: 0412.ua | B172: =IFERROR(VLOOKUP(A172,GGL!$A$2:$D$20000,4,0),"") ->  | C172: =IFERROR(VLOOKUP(A172,GetGoodLinks!$A$2:$B$20000,2,0),"") -> 226.88 | D172: =IFERROR(VLOOKUP(A172,RotaPost!$A$2:$E$20000,5,0),"") -> 309 | E172: =IFERROR(VLOOKUP(A172,PR.Sape!$A$2:$F$20000,6,0),"") ->  | F172: =IFERROR(VLOOKUP(A172,Miralinks!$A$2:$B$20000,2,0),"") -> 160 | G172: =IF(Config!$C$7="Минимальная",MIN(IF(B172:F172<>0,B172:F172,"")),IF(Config!$C$7="Максимальная",MAX(B172:F172),AVERAGE(B172:F172))) -> 232.0 | H172: =IFERROR(VLOOKUP(A172,'В автобиржах'!$A$2:$B$20000,2,0),"") -> 
A173: 0432.ua | B173: =IFERROR(VLOOKUP(A173,GGL!$A$2:$D$20000,4,0),"") -> 267.72 | C173: =IFERROR(VLOOKUP(A173,GetGoodLinks!$A$2:$B$20000,2,0),"") ->  | D173: =IFERROR(VLOOKUP(A173,RotaPost!$A$2:$E$20000,5,0),"") ->  | E173: =IFERROR(VLOOKUP(A173,PR.Sape!$A$2:$F$20000,6,0),"") -> 194.33 | F173: =IFERROR(VLOOKUP(A173,Miralinks!$A$2:$B$20000,2,0),"") -> 212 | G173: =IF(Config!$C$7="Минимальная",MIN(IF(B173:F173<>0,B173:F173,"")),IF(Config!$C$7="Максимальная",MAX(B173:F173),AVERAGE(B173:F173))) -> 224.7 | H173: =IFERROR(VLOOKUP(A173,'В автобиржах'!$A$2:$B$20000,2,0),"") -> 
A174: 0462.ua | B174: =IFERROR(VLOOKUP(A174,GGL!$A$2:$D$20000,4,0),"") ->  | C174: =IFERROR(VLOOKUP(A174,GetGoodLinks!$A$2:$B$20000,2,0),"") ->  | D174: =IFERROR(VLOOKUP(A174,RotaPost!$A$2:$E$20000,5,0),"") -> 149 | E174: =IFERROR(VLOOKUP(A174,PR.Sape!$A$2:$F$20000,6,0),"") -> 190.67 | F174: =IFERROR(VLOOKUP(A174,Miralinks!$A$2:$B$20000,2,0),"") -> 149 | G174: =IF(Config!$C$7="Минимальная",MIN(IF(B174:F174<>0,B174:F174,"")),IF(Config!$C$7="Максимальная",MAX(B174:F174),AVERAGE(B174:F174))) -> 162.9 | H174: =IFERROR(VLOOKUP(A174,'В автобиржах'!$A$2:$B$20000,2,0),"") -> 
A175: 0472.com.ua | B175: =IFERROR(VLOOKUP(A175,GGL!$A$2:$D$20000,4,0),"") ->  | C175: =IFERROR(VLOOKUP(A175,GetGoodLinks!$A$2:$B$20000,2,0),"") -> 111.86 | D175: =IFERROR(VLOOKUP(A175,RotaPost!$A$2:$E$20000,5,0),"") ->  | E175: =IFERROR(VLOOKUP(A175,PR.Sape!$A$2:$F$20000,6,0),"") ->  | F175: =IFERROR(VLOOKUP(A175,Miralinks!$A$2:$B$20000,2,0),"") ->  | G175: =IF(Config!$C$7="Минимальная",MIN(IF(B175:F175<>0,B175:F175,"")),IF(Config!$C$7="Максимальная",MAX(B175:F175),AVERAGE(B175:F175))) -> 111.9 | H175: =IFERROR(VLOOKUP(A175,'В автобиржах'!$A$2:$B$20000,2,0),"") -> 
A176: 048.ua | B176: =IFERROR(VLOOKUP(A176,GGL!$A$2:$D$20000,4,0),"") -> 511.27 | C176: =IFERROR(VLOOKUP(A176,GetGoodLinks!$A$2:$B$20000,2,0),"") -> 226.88 | D176: =IFERROR(VLOOKUP(A176,RotaPost!$A$2:$E$20000,5,0),"") -> 449 | E176: =IFERROR(VLOOKUP(A176,PR.Sape!$A$2:$F$20000,6,0),"") -> 353.22 | F176: =IFERROR(VLOOKUP(A176,Miralinks!$A$2:$B$20000,2,0),"") -> 384 | G176: =IF(Config!$C$7="Минимальная",MIN(IF(B176:F176<>0,B176:F176,"")),IF(Config!$C$7="Максимальная",MAX(B176:F176),AVERAGE(B176:F176))) -> 384.9 | H176: =IFERROR(VLOOKUP(A176,'В автобиржах'!$A$2:$B$20000,2,0),"") -> 
A177: 0512.com.ua | B177: =IFERROR(VLOOKUP(A177,GGL!$A$2:$D$20000,4,0),"") -> 398.9 | C177: =IFERROR(VLOOKUP(A177,GetGoodLinks!$A$2:$B$20000,2,0),"") -> 264 | D177: =IFERROR(VLOOKUP(A177,RotaPost!$A$2:$E$20000,5,0),"") -> 459 | E177: =IFERROR(VLOOKUP(A177,PR.Sape!$A$2:$F$20000,6,0),"") ->  | F177: =IFERROR(VLOOKUP(A177,Miralinks!$A$2:$B$20000,2,0),"") -> 314 | G177: =IF(Config!$C$7="Минимальная",MIN(IF(B177:F177<>0,B177:F177,"")),IF(Config!$C$7="Максимальная",MAX(B177:F177),AVERAGE(B177:F177))) -> 359.0 | H177: =IFERROR(VLOOKUP(A177,'В автобиржах'!$A$2:$B$20000,2,0),"") -> 
A178: 0522.ua | B178: =IFERROR(VLOOKUP(A178,GGL!$A$2:$D$20000,4,0),"") ->  | C178: =IFERROR(VLOOKUP(A178,GetGoodLinks!$A$2:$B$20000,2,0),"") ->  | D178: =IFERROR(VLOOKUP(A178,RotaPost!$A$2:$E$20000,5,0),"") -> 329 | E178: =IFERROR(VLOOKUP(A178,PR.Sape!$A$2:$F$20000,6,0),"") -> 133.22 | F178: =IFERROR(VLOOKUP(A178,Miralinks!$A$2:$B$20000,2,0),"") ->  | G178: =IF(Config!$C$7="Минимальная",MIN(IF(B178:F178<>0,B178:F178,"")),IF(Config!$C$7="Максимальная",MAX(B178:F178),AVERAGE(B178:F178))) -> 231.1 | H178: =IFERROR(VLOOKUP(A178,'В автобиржах'!$A$2:$B$20000,2,0),"") -> 
A179: 0532.ua | B179: =IFERROR(VLOOKUP(A179,GGL!$A$2:$D$20000,4,0),"") -> 234.59 | C179: =IFERROR(VLOOKUP(A179,GetGoodLinks!$A$2:$B$20000,2,0),"") ->  | D179: =IFERROR(VLOOKUP(A179,RotaPost!$A$2:$E$20000,5,0),"") -> 262 | E179: =IFERROR(VLOOKUP(A179,PR.Sape!$A$2:$F$20000,6,0),"") -> 157.67 | F179: =IFERROR(VLOOKUP(A179,Miralinks!$A$2:$B$20000,2,0),"") -> 260 | G179: =IF(Config!$C$7="Минимальная",MIN(IF(B179:F179<>0,B179:F179,"")),IF(Config!$C$7="Максимальная",MAX(B179:F179),AVERAGE(B179:F179))) -> 228.6 | H179: =IFERROR(VLOOKUP(A179,'В автобиржах'!$A$2:$B$20000,2,0),"") -> 
A180: 05366.com.ua | B180: =IFERROR(VLOOKUP(A180,GGL!$A$2:$D$20000,4,0),"") -> 311.6 | C180: =IFERROR(VLOOKUP(A180,GetGoodLinks!$A$2:$B$20000,2,0),"") -> 226.88 | D180: =IFERROR(VLOOKUP(A180,RotaPost!$A$2:$E$20000,5,0),"") -> 207 | E180: =IFERROR(VLOOKUP(A180,PR.Sape!$A$2:$F$20000,6,0),"") -> 231 | F180: =IFERROR(VLOOKUP(A180,Miralinks!$A$2:$B$20000,2,0),"") -> 243 | G180: =IF(Config!$C$7="Минимальная",MIN(IF(B180:F180<>0,B180:F180,"")),IF(Config!$C$7="Максимальная",MAX(B180:F180),AVERAGE(B180:F180))) -> 243.9 | H180: =IFERROR(VLOOKUP(A180,'В автобиржах'!$A$2:$B$20000,2,0),"") -> 
A181: 0542.ua | B181: =IFERROR(VLOOKUP(A181,GGL!$A$2:$D$20000,4,0),"") ->  | C181: =IFERROR(VLOOKUP(A181,GetGoodLinks!$A$2:$B$20000,2,0),"") ->  | D181: =IFERROR(VLOOKUP(A181,RotaPost!$A$2:$E$20000,5,0),"") -> 300 | E181: =IFERROR(VLOOKUP(A181,PR.Sape!$A$2:$F$20000,6,0),"") -> 133.22 | F181: =IFERROR(VLOOKUP(A181,Miralinks!$A$2:$B$20000,2,0),"") ->  | G181: =IF(Config!$C$7="Минимальная",MIN(IF(B181:F181<>0,B181:F181,"")),IF(Config!$C$7="Максимальная",MAX(B181:F181),AVERAGE(B181:F181))) -> 216.6 | H181: =IFERROR(VLOOKUP(A181,'В автобиржах'!$A$2:$B$20000,2,0),"") -> 
A182: 0552.ua | B182: =IFERROR(VLOOKUP(A182,GGL!$A$2:$D$20000,4,0),"") -> 267.72 | C182: =IFERROR(VLOOKUP(A182,GetGoodLinks!$A$2:$B$20000,2,0),"") ->  | D182: =IFERROR(VLOOKUP(A182,RotaPost!$A$2:$E$20000,5,0),"") -> 309 | E182: =IFERROR(VLOOKUP(A182,PR.Sape!$A$2:$F$20000,6,0),"") -> 194.33 | F182: =IFERROR(VLOOKUP(A182,Miralinks!$A$2:$B$20000,2,0),"") -> 890 | G182: =IF(Config!$C$7="Минимальная",MIN(IF(B182:F182<>0,B182:F182,"")),IF(Config!$C$7="Максимальная",MAX(B182:F182),AVERAGE(B182:F182))) -> 415.3 | H182: =IFERROR(VLOOKUP(A182,'В автобиржах'!$A$2:$B$20000,2,0),"") -> 
A183: 056.ua | B183: =IFERROR(VLOOKUP(A183,GGL!$A$2:$D$20000,4,0),"") ->  | C183: =IFERROR(VLOOKUP(A183,GetGoodLinks!$A$2:$B$20000,2,0),"") -> 264 | D183: =IFERROR(VLOOKUP(A183,RotaPost!$A$2:$E$20000,5,0),"") -> 429 | E183: =IFERROR(VLOOKUP(A183,PR.Sape!$A$2:$F$20000,6,0),"") -> 304.33 | F183: =IFERROR(VLOOKUP(A183,Miralinks!$A$2:$B$20000,2,0),"") -> 314 | G183: =IF(Config!$C$7="Минимальная",MIN(IF(B183:F183<>0,B183:F183,"")),IF(Config!$C$7="Максимальная",MAX(B183:F183),AVERAGE(B183:F183))) -> 327.8 | H183: =IFERROR(VLOOKUP(A183,'В автобиржах'!$A$2:$B$20000,2,0),"") -> 
A184: 0564.ua | B184: =IFERROR(VLOOKUP(A184,GGL!$A$2:$D$20000,4,0),"") -> 398.9 | C184: =IFERROR(VLOOKUP(A184,GetGoodLinks!$A$2:$B$20000,2,0),"") -> 226.88 | D184: =IFERROR(VLOOKUP(A184,RotaPost!$A$2:$E$20000,5,0),"") -> 359 | E184: =IFERROR(VLOOKUP(A184,PR.Sape!$A$2:$F$20000,6,0),"") -> 304.33 | F184: =IFERROR(VLOOKUP(A184,Miralinks!$A$2:$B$20000,2,0),"") -> 319 | G184: =IF(Config!$C$7="Минимальная",MIN(IF(B184:F184<>0,B184:F184,"")),IF(Config!$C$7="Максимальная",MAX(B184:F184),AVERAGE(B184:F184))) -> 321.6 | H184: =IFERROR(VLOOKUP(A184,'В автобиржах'!$A$2:$B$20000,2,0),"") -> 1
A185: 057.ua | B185: =IFERROR(VLOOKUP(A185,GGL!$A$2:$D$20000,4,0),"") -> 415.02 | C185: =IFERROR(VLOOKUP(A185,GetGoodLinks!$A$2:$B$20000,2,0),"") -> 264 | D185: =IFERROR(VLOOKUP(A185,RotaPost!$A$2:$E$20000,5,0),"") -> 449 | E185: =IFERROR(VLOOKUP(A185,PR.Sape!$A$2:$F$20000,6,0),"") -> 133.22 | F185: =IFERROR(VLOOKUP(A185,Miralinks!$A$2:$B$20000,2,0),"") -> 323 | G185: =IF(Config!$C$7="Минимальная",MIN(IF(B185:F185<>0,B185:F185,"")),IF(Config!$C$7="Максимальная",MAX(B185:F185),AVERAGE(B185:F185))) -> 316.8 | H185: =IFERROR(VLOOKUP(A185,'В автобиржах'!$A$2:$B$20000,2,0),"") -> 
A186: 061.ua | B186: =IFERROR(VLOOKUP(A186,GGL!$A$2:$D$20000,4,0),"") -> 415.91 | C186: =IFERROR(VLOOKUP(A186,GetGoodLinks!$A$2:$B$20000,2,0),"") -> 264 | D186: =IFERROR(VLOOKUP(A186,RotaPost!$A$2:$E$20000,5,0),"") -> 419 | E186: =IFERROR(VLOOKUP(A186,PR.Sape!$A$2:$F$20000,6,0),"") -> 267.67 | F186: =IFERROR(VLOOKUP(A186,Miralinks!$A$2:$B$20000,2,0),"") -> 323 | G186: =IF(Config!$C$7="Минимальная",MIN(IF(B186:F186<>0,B186:F186,"")),IF(Config!$C$7="Максимальная",MAX(B186:F186),AVERAGE(B186:F186))) -> 337.9 | H186: =IFERROR(VLOOKUP(A186,'В автобиржах'!$A$2:$B$20000,2,0),"") -> 
A187: 06153.com.ua | B187: =IFERROR(VLOOKUP(A187,GGL!$A$2:$D$20000,4,0),"") -> 234.15 | C187: =IFERROR(VLOOKUP(A187,GetGoodLinks!$A$2:$B$20000,2,0),"") -> 226.88 | D187: =IFERROR(VLOOKUP(A187,RotaPost!$A$2:$E$20000,5,0),"") -> 270 | E187: =IFERROR(VLOOKUP(A187,PR.Sape!$A$2:$F$20000,6,0),"") -> 161.33 | F187: =IFERROR(VLOOKUP(A187,Miralinks!$A$2:$B$20000,2,0),"") -> 185 | G187: =IF(Config!$C$7="Минимальная",MIN(IF(B187:F187<>0,B187:F187,"")),IF(Config!$C$7="Максимальная",MAX(B187:F187),AVERAGE(B187:F187))) -> 215.5 | H187: =IFERROR(VLOOKUP(A187,'В автобиржах'!$A$2:$B$20000,2,0),"") -> 
A188: 062.ua | B188: =IFERROR(VLOOKUP(A188,GGL!$A$2:$D$20000,4,0),"") -> 383.9 | C188: =IFERROR(VLOOKUP(A188,GetGoodLinks!$A$2:$B$20000,2,0),"") -> 223.75 | D188: =IFERROR(VLOOKUP(A188,RotaPost!$A$2:$E$20000,5,0),"") -> 450 | E188: =IFERROR(VLOOKUP(A188,PR.Sape!$A$2:$F$20000,6,0),"") ->  | F188: =IFERROR(VLOOKUP(A188,Miralinks!$A$2:$B$20000,2,0),"") -> 299 | G188: =IF(Config!$C$7="Минимальная",MIN(IF(B188:F188<>0,B188:F188,"")),IF(Config!$C$7="Максимальная",MAX(B188:F188),AVERAGE(B188:F188))) -> 339.2 | H188: =IFERROR(VLOOKUP(A188,'В автобиржах'!$A$2:$B$20000,2,0),"") -> 
A189: 0623.com.ua | B189: =IFERROR(VLOOKUP(A189,GGL!$A$2:$D$20000,4,0),"") ->  | C189: =IFERROR(VLOOKUP(A189,GetGoodLinks!$A$2:$B$20000,2,0),"") -> 226.88 | D189: =IFERROR(VLOOKUP(A189,RotaPost!$A$2:$E$20000,5,0),"") -> 287 | E189: =IFERROR(VLOOKUP(A189,PR.Sape!$A$2:$F$20000,6,0),"") -> 157.67 | F189: =IFERROR(VLOOKUP(A189,Miralinks!$A$2:$B$20000,2,0),"") -> 195 | G189: =IF(Config!$C$7="Минимальная",MIN(IF(B189:F189<>0,B189:F189,"")),IF(Config!$C$7="Максимальная",MAX(B189:F189),AVERAGE(B189:F189))) -> 216.6 | H189: =IFERROR(VLOOKUP(A189,'В автобиржах'!$A$2:$B$20000,2,0),"") -> 
A190: 06239.com.ua | B190: =IFERROR(VLOOKUP(A190,GGL!$A$2:$D$20000,4,0),"") ->  | C190: =IFERROR(VLOOKUP(A190,GetGoodLinks!$A$2:$B$20000,2,0),"") -> 226.88 | D190: =IFERROR(VLOOKUP(A190,RotaPost!$A$2:$E$20000,5,0),"") -> 287 | E190: =IFERROR(VLOOKUP(A190,PR.Sape!$A$2:$F$20000,6,0),"") -> 169.89 | F190: =IFERROR(VLOOKUP(A190,Miralinks!$A$2:$B$20000,2,0),"") -> 180 | G190: =IF(Config!$C$7="Минимальная",MIN(IF(B190:F190<>0,B190:F190,"")),IF(Config!$C$7="Максимальная",MAX(B190:F190),AVERAGE(B190:F190))) -> 215.9 | H190: =IFERROR(VLOOKUP(A190,'В автобиржах'!$A$2:$B$20000,2,0),"") -> 
A191: 0624.com.ua | B191: =IFERROR(VLOOKUP(A191,GGL!$A$2:$D$20000,4,0),"") -> 275 | C191: =IFERROR(VLOOKUP(A191,GetGoodLinks!$A$2:$B$20000,2,0),"") ->  | D191: =IFERROR(VLOOKUP(A191,RotaPost!$A$2:$E$20000,5,0),"") ->  | E191: =IFERROR(VLOOKUP(A191,PR.Sape!$A$2:$F$20000,6,0),"") ->  | F191: =IFERROR(VLOOKUP(A191,Miralinks!$A$2:$B$20000,2,0),"") ->  | G191: =IF(Config!$C$7="Минимальная",MIN(IF(B191:F191<>0,B191:F191,"")),IF(Config!$C$7="Максимальная",MAX(B191:F191),AVERAGE(B191:F191))) -> 275.0 | H191: =IFERROR(VLOOKUP(A191,'В автобиржах'!$A$2:$B$20000,2,0),"") -> 1
A192: 06242.com.ua | B192: =IFERROR(VLOOKUP(A192,GGL!$A$2:$D$20000,4,0),"") -> 398.9 | C192: =IFERROR(VLOOKUP(A192,GetGoodLinks!$A$2:$B$20000,2,0),"") -> 226.88 | D192: =IFERROR(VLOOKUP(A192,RotaPost!$A$2:$E$20000,5,0),"") -> 419 | E192: =IFERROR(VLOOKUP(A192,PR.Sape!$A$2:$F$20000,6,0),"") -> 303.11 | F192: =IFERROR(VLOOKUP(A192,Miralinks!$A$2:$B$20000,2,0),"") -> 314 | G192: =IF(Config!$C$7="Минимальная",MIN(IF(B192:F192<>0,B192:F192,"")),IF(Config!$C$7="Максимальная",MAX(B192:F192),AVERAGE(B192:F192))) -> 332.4 | H192: =IFERROR(VLOOKUP(A192,'В автобиржах'!$A$2:$B$20000,2,0),"") -> 
A193: 06252.com.ua | B193: =IFERROR(VLOOKUP(A193,GGL!$A$2:$D$20000,4,0),"") ->  | C193: =IFERROR(VLOOKUP(A193,GetGoodLinks!$A$2:$B$20000,2,0),"") ->  | D193: =IFERROR(VLOOKUP(A193,RotaPost!$A$2:$E$20000,5,0),"") -> 149 | E193: =IFERROR(VLOOKUP(A193,PR.Sape!$A$2:$F$20000,6,0),"") -> 190.67 | F193: =IFERROR(VLOOKUP(A193,Miralinks!$A$2:$B$20000,2,0),"") ->  | G193: =IF(Config!$C$7="Минимальная",MIN(IF(B193:F193<>0,B193:F193,"")),IF(Config!$C$7="Максимальная",MAX(B193:F193),AVERAGE(B193:F193))) -> 169.8 | H193: =IFERROR(VLOOKUP(A193,'В автобиржах'!$A$2:$B$20000,2,0),"") -> 
A194: 06254.in.ua | B194: =IFERROR(VLOOKUP(A194,GGL!$A$2:$D$20000,4,0),"") ->  | C194: =IFERROR(VLOOKUP(A194,GetGoodLinks!$A$2:$B$20000,2,0),"") ->  | D194: =IFERROR(VLOOKUP(A194,RotaPost!$A$2:$E$20000,5,0),"") -> 149 | E194: =IFERROR(VLOOKUP(A194,PR.Sape!$A$2:$F$20000,6,0),"") ->  | F194: =IFERROR(VLOOKUP(A194,Miralinks!$A$2:$B$20000,2,0),"") ->  | G194: =IF(Config!$C$7="Минимальная",MIN(IF(B194:F194<>0,B194:F194,"")),IF(Config!$C$7="Максимальная",MAX(B194:F194),AVERAGE(B194:F194))) -> 149.0 | H194: =IFERROR(VLOOKUP(A194,'В автобиржах'!$A$2:$B$20000,2,0),"") -> 
A195: 06255.com.ua | B195: =IFERROR(VLOOKUP(A195,GGL!$A$2:$D$20000,4,0),"") ->  | C195: =IFERROR(VLOOKUP(A195,GetGoodLinks!$A$2:$B$20000,2,0),"") ->  | D195: =IFERROR(VLOOKUP(A195,RotaPost!$A$2:$E$20000,5,0),"") -> 149 | E195: =IFERROR(VLOOKUP(A195,PR.Sape!$A$2:$F$20000,6,0),"") ->  | F195: =IFERROR(VLOOKUP(A195,Miralinks!$A$2:$B$20000,2,0),"") ->  | G195: =IF(Config!$C$7="Минимальная",MIN(IF(B195:F195<>0,B195:F195,"")),IF(Config!$C$7="Максимальная",MAX(B195:F195),AVERAGE(B195:F195))) -> 149.0 | H195: =IFERROR(VLOOKUP(A195,'В автобиржах'!$A$2:$B$20000,2,0),"") -> 
A196: 06257.in.ua | B196: =IFERROR(VLOOKUP(A196,GGL!$A$2:$D$20000,4,0),"") ->  | C196: =IFERROR(VLOOKUP(A196,GetGoodLinks!$A$2:$B$20000,2,0),"") ->  | D196: =IFERROR(VLOOKUP(A196,RotaPost!$A$2:$E$20000,5,0),"") -> 149 | E196: =IFERROR(VLOOKUP(A196,PR.Sape!$A$2:$F$20000,6,0),"") ->  | F196: =IFERROR(VLOOKUP(A196,Miralinks!$A$2:$B$20000,2,0),"") ->  | G196: =IF(Config!$C$7="Минимальная",MIN(IF(B196:F196<>0,B196:F196,"")),IF(Config!$C$7="Максимальная",MAX(B196:F196),AVERAGE(B196:F196))) -> 149.0 | H196: =IFERROR(VLOOKUP(A196,'В автобиржах'!$A$2:$B$20000,2,0),"") -> 
A197: 06274.com.ua | B197: =IFERROR(VLOOKUP(A197,GGL!$A$2:$D$20000,4,0),"") -> 311.6 | C197: =IFERROR(VLOOKUP(A197,GetGoodLinks!$A$2:$B$20000,2,0),"") -> 226.88 | D197: =IFERROR(VLOOKUP(A197,RotaPost!$A$2:$E$20000,5,0),"") ->  | E197: =IFERROR(VLOOKUP(A197,PR.Sape!$A$2:$F$20000,6,0),"") -> 231 | F197: =IFERROR(VLOOKUP(A197,Miralinks!$A$2:$B$20000,2,0),"") -> 243 | G197: =IF(Config!$C$7="Минимальная",MIN(IF(B197:F197<>0,B197:F197,"")),IF(Config!$C$7="Максимальная",MAX(B197:F197),AVERAGE(B197:F197))) -> 253.1 | H197: =IFERROR(VLOOKUP(A197,'В автобиржах'!$A$2:$B$20000,2,0),"") -> 
A198: 0629.com.ua | B198: =IFERROR(VLOOKUP(A198,GGL!$A$2:$D$20000,4,0),"") -> 737.81 | C198: =IFERROR(VLOOKUP(A198,GetGoodLinks!$A$2:$B$20000,2,0),"") -> 263.18 | D198: =IFERROR(VLOOKUP(A198,RotaPost!$A$2:$E$20000,5,0),"") -> 679 | E198: =IFERROR(VLOOKUP(A198,PR.Sape!$A$2:$F$20000,6,0),"") -> 388.67 | F198: =IFERROR(VLOOKUP(A198,Miralinks!$A$2:$B$20000,2,0),"") -> 420 | G198: =IF(Config!$C$7="Минимальная",MIN(IF(B198:F198<>0,B198:F198,"")),IF(Config!$C$7="Максимальная",MAX(B198:F198),AVERAGE(B198:F198))) -> 497.7 | H198: =IFERROR(VLOOKUP(A198,'В автобиржах'!$A$2:$B$20000,2,0),"") -> 
A199: 0642.ua | B199: =IFERROR(VLOOKUP(A199,GGL!$A$2:$D$20000,4,0),"") -> 511.27 | C199: =IFERROR(VLOOKUP(A199,GetGoodLinks!$A$2:$B$20000,2,0),"") -> 226.88 | D199: =IFERROR(VLOOKUP(A199,RotaPost!$A$2:$E$20000,5,0),"") -> 569 | E199: =IFERROR(VLOOKUP(A199,PR.Sape!$A$2:$F$20000,6,0),"") -> 353.22 | F199: =IFERROR(VLOOKUP(A199,Miralinks!$A$2:$B$20000,2,0),"") -> 320 | G199: =IF(Config!$C$7="Минимальная",MIN(IF(B199:F199<>0,B199:F199,"")),IF(Config!$C$7="Максимальная",MAX(B199:F199),AVERAGE(B199:F199))) -> 396.1 | H199: =IFERROR(VLOOKUP(A199,'В автобиржах'!$A$2:$B$20000,2,0),"") -> 
A200: 06432.in.ua | B200: =IFERROR(VLOOKUP(A200,GGL!$A$2:$D$20000,4,0),"") ->  | C200: =IFERROR(VLOOKUP(A200,GetGoodLinks!$A$2:$B$20000,2,0),"") ->  | D200: =IFERROR(VLOOKUP(A200,RotaPost!$A$2:$E$20000,5,0),"") -> 149 | E200: =IFERROR(VLOOKUP(A200,PR.Sape!$A$2:$F$20000,6,0),"") -> 199.22 | F200: =IFERROR(VLOOKUP(A200,Miralinks!$A$2:$B$20000,2,0),"") ->  | G200: =IF(Config!$C$7="Минимальная",MIN(IF(B200:F200<>0,B200:F200,"")),IF(Config!$C$7="Максимальная",MAX(B200:F200),AVERAGE(B200:F200))) -> 174.1 | H200: =IFERROR(VLOOKUP(A200,'В автобиржах'!$A$2:$B$20000,2,0),"") -> 
... 4300 more rows

Sheet GGL
A1: Домен | B1: Контекстная ссылка | C1: Заметка | D1: Формула
A2: argumenti.ru | B2: 1208.9 | C2: 1263.9 | D2: =IF(Config!$C$4="Минимальная",MIN(IF(B2:C2<>0,B2:C2,"")),MAX(B2,C2)) -> 1263.9
A3: hrono.ru | B3: 0 | C3: 616 | D3: =IF(Config!$C$4="Минимальная",MIN(IF(B3:C3<>0,B3:C3,"")),MAX(B3,C3)) -> 616
A4: gpntb.ru | B4: 1430 | C4: 0 | D4: =IF(Config!$C$4="Минимальная",MIN(IF(B4:C4<>0,B4:C4,"")),MAX(B4,C4)) -> 1430
A5: rbc.ua | B5: 0 | C5: 412.28 | D5: =IF(Config!$C$4="Минимальная",MIN(IF(B5:C5<>0,B5:C5,"")),MAX(B5,C5)) -> 412.28
A6: realto.ru | B6: 1232 | C6: 1232 | D6: =IF(Config!$C$4="Минимальная",MIN(IF(B6:C6<>0,B6:C6,"")),MAX(B6,C6)) -> 1232
A7: chita.ru | B7: 0 | C7: 1100 | D7: =IF(Config!$C$4="Минимальная",MIN(IF(B7:C7<>0,B7:C7,"")),MAX(B7,C7)) -> 1100
A8: fedpress.ru | B8: 1210 | C8: 1980 | D8: =IF(Config!$C$4="Минимальная",MIN(IF(B8:C8<>0,B8:C8,"")),MAX(B8,C8)) -> 1980
A9: epochtimes.ru | B9: 979 | C9: 1023 | D9: =IF(Config!$C$4="Минимальная",MIN(IF(B9:C9<>0,B9:C9,"")),MAX(B9,C9)) -> 1023
A10: joomla-master.org | B10: 731.99 | C10: 716.32 | D10: =IF(Config!$C$4="Минимальная",MIN(IF(B10:C10<>0,B10:C10,"")),MAX(B10,C10)) -> 731.99
A11: yar.ru | B11: 1100 | C11: 1320 | D11: =IF(Config!$C$4="Минимальная",MIN(IF(B11:C11<>0,B11:C11,"")),MAX(B11,C11)) -> 1320
A12: expolife.ru | B12: 1098.9 | C12: 1430 | D12: =IF(Config!$C$4="Минимальная",MIN(IF(B12:C12<>0,B12:C12,"")),MAX(B12,C12)) -> 1430
A13: rsci.ru | B13: 1815 | C13: 1815 | D13: =IF(Config!$C$4="Минимальная",MIN(IF(B13:C13<>0,B13:C13,"")),MAX(B13,C13)) -> 1815
A14: amic.ru | B14: 1650 | C14: 1650 | D14: =IF(Config!$C$4="Минимальная",MIN(IF(B14:C14<>0,B14:C14,"")),MAX(B14,C14)) -> 1650
A15: medlinks.ru | B15: 907.5 | C15: 880 | D15: =IF(Config!$C$4="Минимальная",MIN(IF(B15:C15<>0,B15:C15,"")),MAX(B15,C15)) -> 907.5
A16: eparhia.ru | B16: 550 | C16: 715 | D16: =IF(Config!$C$4="Минимальная",MIN(IF(B16:C16<>0,B16:C16,"")),MAX(B16,C16)) -> 715
A17: akavita.by | B17: 836 | C17: 847 | D17: =IF(Config!$C$4="Минимальная",MIN(IF(B17:C17<>0,B17:C17,"")),MAX(B17,C17)) -> 847
A18: utro.ua | B18: 0 | C18: 414.7 | D18: =IF(Config!$C$4="Минимальная",MIN(IF(B18:C18<>0,B18:C18,"")),MAX(B18,C18)) -> 414.7
A19: eurosmi.ru | B19: 1980 | C19: 1980 | D19: =IF(Config!$C$4="Минимальная",MIN(IF(B19:C19<>0,B19:C19,"")),MAX(B19,C19)) -> 1980
A20: wek.ru | B20: 1210 | C20: 1815 | D20: =IF(Config!$C$4="Минимальная",MIN(IF(B20:C20<>0,B20:C20,"")),MAX(B20,C20)) -> 1815
A21: 2000.net.ua | B21: 324.5 | C21: 324.5 | D21: =IF(Config!$C$4="Минимальная",MIN(IF(B21:C21<>0,B21:C21,"")),MAX(B21,C21)) -> 324.5
A22: from-ua.com | B22: 926.75 | C22: 926.75 | D22: =IF(Config!$C$4="Минимальная",MIN(IF(B22:C22<>0,B22:C22,"")),MAX(B22,C22)) -> 926.75
A23: tourister.ru | B23: 1100 | C23: 1100 | D23: =IF(Config!$C$4="Минимальная",MIN(IF(B23:C23<>0,B23:C23,"")),MAX(B23,C23)) -> 1100
A24: energyland.info | B24: 957 | C24: 979 | D24: =IF(Config!$C$4="Минимальная",MIN(IF(B24:C24<>0,B24:C24,"")),MAX(B24,C24)) -> 979
A25: glavnoe.ua | B25: 847 | C25: 880 | D25: =IF(Config!$C$4="Минимальная",MIN(IF(B25:C25<>0,B25:C25,"")),MAX(B25,C25)) -> 880
A26: uralpress.ru | B26: 778.8 | C26: 0 | D26: =IF(Config!$C$4="Минимальная",MIN(IF(B26:C26<>0,B26:C26,"")),MAX(B26,C26)) -> 778.8
A27: annews.ru | B27: 0 | C27: 899 | D27: =IF(Config!$C$4="Минимальная",MIN(IF(B27:C27<>0,B27:C27,"")),MAX(B27,C27)) -> 899
A28: zavtra.com.ua | B28: 806.31 | C28: 806.31 | D28: =IF(Config!$C$4="Минимальная",MIN(IF(B28:C28<>0,B28:C28,"")),MAX(B28,C28)) -> 806.31
A29: telegraf.by | B29: 852.5 | C29: 920.7 | D29: =IF(Config!$C$4="Минимальная",MIN(IF(B29:C29<>0,B29:C29,"")),MAX(B29,C29)) -> 920.7
A30: justmedia.ru | B30: 880 | C30: 935 | D30: =IF(Config!$C$4="Минимальная",MIN(IF(B30:C30<>0,B30:C30,"")),MAX(B30,C30)) -> 935
A31: tribuna.ru | B31: 880 | C31: 990 | D31: =IF(Config!$C$4="Минимальная",MIN(IF(B31:C31<>0,B31:C31,"")),MAX(B31,C31)) -> 990
A32: ej.by | B32: 1320 | C32: 1320 | D32: =IF(Config!$C$4="Минимальная",MIN(IF(B32:C32<>0,B32:C32,"")),MAX(B32,C32)) -> 1320
A33: bookz.ru | B33: 1210 | C33: 0 | D33: =IF(Config!$C$4="Минимальная",MIN(IF(B33:C33<>0,B33:C33,"")),MAX(B33,C33)) -> 1210
A34: bagnet.org | B34: 858 | C34: 825 | D34: =IF(Config!$C$4="Минимальная",MIN(IF(B34:C34<>0,B34:C34,"")),MAX(B34,C34)) -> 858
A35: uralpolit.ru | B35: 770 | C35: 1320 | D35: =IF(Config!$C$4="Минимальная",MIN(IF(B35:C35<>0,B35:C35,"")),MAX(B35,C35)) -> 1320
A36: rusactors.ru | B36: 0 | C36: 1760 | D36: =IF(Config!$C$4="Минимальная",MIN(IF(B36:C36<>0,B36:C36,"")),MAX(B36,C36)) -> 1760
A37: rosfirm.ru | B37: 1538.9 | C37: 0 | D37: =IF(Config!$C$4="Минимальная",MIN(IF(B37:C37<>0,B37:C37,"")),MAX(B37,C37)) -> 1538.9
A38: vlasti.net | B38: 770 | C38: 838.2 | D38: =IF(Config!$C$4="Минимальная",MIN(IF(B38:C38<>0,B38:C38,"")),MAX(B38,C38)) -> 838.2
A39: vsekonkursy.ru | B39: 605 | C39: 0 | D39: =IF(Config!$C$4="Минимальная",MIN(IF(B39:C39<>0,B39:C39,"")),MAX(B39,C39)) -> 605
A40: apsny.ge | B40: 1760 | C40: 1870 | D40: =IF(Config!$C$4="Минимальная",MIN(IF(B40:C40<>0,B40:C40,"")),MAX(B40,C40)) -> 1870
A41: holzori.ru | B41: 638 | C41: 638 | D41: =IF(Config!$C$4="Минимальная",MIN(IF(B41:C41<>0,B41:C41,"")),MAX(B41,C41)) -> 638
A42: te.ua | B42: 660 | C42: 660 | D42: =IF(Config!$C$4="Минимальная",MIN(IF(B42:C42<>0,B42:C42,"")),MAX(B42,C42)) -> 660
A43: novostroim.ru | B43: 1980 | C43: 1980 | D43: =IF(Config!$C$4="Минимальная",MIN(IF(B43:C43<>0,B43:C43,"")),MAX(B43,C43)) -> 1980
A44: gaw.ru | B44: 1760 | C44: 1760 | D44: =IF(Config!$C$4="Минимальная",MIN(IF(B44:C44<>0,B44:C44,"")),MAX(B44,C44)) -> 1760
A45: skatinfo.ru | B45: 638 | C45: 638 | D45: =IF(Config!$C$4="Минимальная",MIN(IF(B45:C45<>0,B45:C45,"")),MAX(B45,C45)) -> 638
A46: news.allcrimea.net | B46: 548.9 | C46: 658.9 | D46: =IF(Config!$C$4="Минимальная",MIN(IF(B46:C46<>0,B46:C46,"")),MAX(B46,C46)) -> 658.9
A47: belaruspartisan.org | B47: 550 | C47: 550 | D47: =IF(Config!$C$4="Минимальная",MIN(IF(B47:C47<>0,B47:C47,"")),MAX(B47,C47)) -> 550
A48: uralremstroy.ru | B48: 880 | C48: 880 | D48: =IF(Config!$C$4="Минимальная",MIN(IF(B48:C48<>0,B48:C48,"")),MAX(B48,C48)) -> 880
A49: h.ua | B49: 385 | C49: 385 | D49: =IF(Config!$C$4="Минимальная",MIN(IF(B49:C49<>0,B49:C49,"")),MAX(B49,C49)) -> 385
A50: zavet.ru | B50: 759 | C50: 715 | D50: =IF(Config!$C$4="Минимальная",MIN(IF(B50:C50<>0,B50:C50,"")),MAX(B50,C50)) -> 759
A51: stroyka.ru | B51: 715 | C51: 715 | D51: =IF(Config!$C$4="Минимальная",MIN(IF(B51:C51<>0,B51:C51,"")),MAX(B51,C51)) -> 715
A52: humbio.ru | B52: 1703.6 | C52: 0 | D52: =IF(Config!$C$4="Минимальная",MIN(IF(B52:C52<>0,B52:C52,"")),MAX(B52,C52)) -> 1703.6
A53: avtosreda.ru | B53: 330 | C53: 330 | D53: =IF(Config!$C$4="Минимальная",MIN(IF(B53:C53<>0,B53:C53,"")),MAX(B53,C53)) -> 330
A54: oreanda.ru | B54: 1494.9 | C54: 1494.9 | D54: =IF(Config!$C$4="Минимальная",MIN(IF(B54:C54<>0,B54:C54,"")),MAX(B54,C54)) -> 1494.9
A55: ppt.ru | B55: 1540 | C55: 1540 | D55: =IF(Config!$C$4="Минимальная",MIN(IF(B55:C55<>0,B55:C55,"")),MAX(B55,C55)) -> 1540
A56: ru.golos.ua | B56: 0 | C56: 522.52 | D56: =IF(Config!$C$4="Минимальная",MIN(IF(B56:C56<>0,B56:C56,"")),MAX(B56,C56)) -> 522.52
A57: ami-tass.ru | B57: 828.3 | C57: 947.1 | D57: =IF(Config!$C$4="Минимальная",MIN(IF(B57:C57<>0,B57:C57,"")),MAX(B57,C57)) -> 947.1
A58: investcafe.ru | B58: 1100 | C58: 0 | D58: =IF(Config!$C$4="Минимальная",MIN(IF(B58:C58<>0,B58:C58,"")),MAX(B58,C58)) -> 1100
A59: bigpicture.ru | B59: 884.4 | C59: 774.4 | D59: =IF(Config!$C$4="Минимальная",MIN(IF(B59:C59<>0,B59:C59,"")),MAX(B59,C59)) -> 884.4
A60: kuzvesti.ru | B60: 612.7 | C60: 640.2 | D60: =IF(Config!$C$4="Минимальная",MIN(IF(B60:C60<>0,B60:C60,"")),MAX(B60,C60)) -> 640.2
A61: nn.by | B61: 599.5 | C61: 599.5 | D61: =IF(Config!$C$4="Минимальная",MIN(IF(B61:C61<>0,B61:C61,"")),MAX(B61,C61)) -> 599.5
A62: vkonline.ru | B62: 660 | C62: 660 | D62: =IF(Config!$C$4="Минимальная",MIN(IF(B62:C62<>0,B62:C62,"")),MAX(B62,C62)) -> 660
A63: ozpp.ru | B63: 891 | C63: 891 | D63: =IF(Config!$C$4="Минимальная",MIN(IF(B63:C63<>0,B63:C63,"")),MAX(B63,C63)) -> 891
A64: tatfish.com | B64: 1650 | C64: 1650 | D64: =IF(Config!$C$4="Минимальная",MIN(IF(B64:C64<>0,B64:C64,"")),MAX(B64,C64)) -> 1650
A65: delfi.ua | B65: 548.9 | C65: 548.9 | D65: =IF(Config!$C$4="Минимальная",MIN(IF(B65:C65<>0,B65:C65,"")),MAX(B65,C65)) -> 548.9
A66: cable-plus.ru | B66: 873.4 | C66: 873.4 | D66: =IF(Config!$C$4="Минимальная",MIN(IF(B66:C66<>0,B66:C66,"")),MAX(B66,C66)) -> 873.4
A67: oblgazeta.ru | B67: 1870 | C67: 1936 | D67: =IF(Config!$C$4="Минимальная",MIN(IF(B67:C67<>0,B67:C67,"")),MAX(B67,C67)) -> 1936
A68: Livekuban.ru | B68: 1864.5 | C68: 1864.5 | D68: =IF(Config!$C$4="Минимальная",MIN(IF(B68:C68<>0,B68:C68,"")),MAX(B68,C68)) -> 1864.5
A69: rrf100.ru | B69: 715 | C69: 715 | D69: =IF(Config!$C$4="Минимальная",MIN(IF(B69:C69<>0,B69:C69,"")),MAX(B69,C69)) -> 715
A70: 1rre.ru | B70: 792 | C70: 715 | D70: =IF(Config!$C$4="Минимальная",MIN(IF(B70:C70<>0,B70:C70,"")),MAX(B70,C70)) -> 792
A71: kafanews.com | B71: 682 | C71: 687.5 | D71: =IF(Config!$C$4="Минимальная",MIN(IF(B71:C71<>0,B71:C71,"")),MAX(B71,C71)) -> 687.5
A72: kudago.com | B72: 1098.9 | C72: 988.9 | D72: =IF(Config!$C$4="Минимальная",MIN(IF(B72:C72<>0,B72:C72,"")),MAX(B72,C72)) -> 1098.9
A73: stroy-firms.ru | B73: 770 | C73: 770 | D73: =IF(Config!$C$4="Минимальная",MIN(IF(B73:C73<>0,B73:C73,"")),MAX(B73,C73)) -> 770
A74: web-creator.org | B74: 595.44 | C74: 626.78 | D74: =IF(Config!$C$4="Минимальная",MIN(IF(B74:C74<>0,B74:C74,"")),MAX(B74,C74)) -> 626.78
A75: donntu.edu.ua | B75: 660 | C75: 660 | D75: =IF(Config!$C$4="Минимальная",MIN(IF(B75:C75<>0,B75:C75,"")),MAX(B75,C75)) -> 660
A76: fedpost.ru | B76: 748 | C76: 935 | D76: =IF(Config!$C$4="Минимальная",MIN(IF(B76:C76<>0,B76:C76,"")),MAX(B76,C76)) -> 935
A77: hvylya.org | B77: 825 | C77: 748 | D77: =IF(Config!$C$4="Минимальная",MIN(IF(B77:C77<>0,B77:C77,"")),MAX(B77,C77)) -> 825
A78: new-sebastopol.com | B78: 385 | C78: 0 | D78: =IF(Config!$C$4="Минимальная",MIN(IF(B78:C78<>0,B78:C78,"")),MAX(B78,C78)) -> 385
A79: 19rus.info | B79: 550 | C79: 550 | D79: =IF(Config!$C$4="Минимальная",MIN(IF(B79:C79<>0,B79:C79,"")),MAX(B79,C79)) -> 550
A80: kianews.com.ua | B80: 880 | C80: 880 | D80: =IF(Config!$C$4="Минимальная",MIN(IF(B80:C80<>0,B80:C80,"")),MAX(B80,C80)) -> 880
A81: islamnews.ru | B81: 539 | C81: 539 | D81: =IF(Config!$C$4="Минимальная",MIN(IF(B81:C81<>0,B81:C81,"")),MAX(B81,C81)) -> 539
A82: konkretno.ru | B82: 858 | C82: 770 | D82: =IF(Config!$C$4="Минимальная",MIN(IF(B82:C82<>0,B82:C82,"")),MAX(B82,C82)) -> 858
A83: mv.org.ua | B83: 1045 | C83: 1045 | D83: =IF(Config!$C$4="Минимальная",MIN(IF(B83:C83<>0,B83:C83,"")),MAX(B83,C83)) -> 1045
A84: medicus.ru | B84: 1100 | C84: 1650 | D84: =IF(Config!$C$4="Минимальная",MIN(IF(B84:C84<>0,B84:C84,"")),MAX(B84,C84)) -> 1650
A85: globalscience.ru | B85: 1193.12 | C85: 1190.43 | D85: =IF(Config!$C$4="Минимальная",MIN(IF(B85:C85<>0,B85:C85,"")),MAX(B85,C85)) -> 1193.12
A86: sobor.by | B86: 608.69 | C86: 608.69 | D86: =IF(Config!$C$4="Минимальная",MIN(IF(B86:C86<>0,B86:C86,"")),MAX(B86,C86)) -> 608.69
A87: dostup1.ru | B87: 1430 | C87: 1650 | D87: =IF(Config!$C$4="Минимальная",MIN(IF(B87:C87<>0,B87:C87,"")),MAX(B87,C87)) -> 1650
A88: expert.ua | B88: 0 | C88: 1320 | D88: =IF(Config!$C$4="Минимальная",MIN(IF(B88:C88<>0,B88:C88,"")),MAX(B88,C88)) -> 1320
A89: argumentiru.com | B89: 933.9 | C89: 933.9 | D89: =IF(Config!$C$4="Минимальная",MIN(IF(B89:C89<>0,B89:C89,"")),MAX(B89,C89)) -> 933.9
A90: kazeparhia.ru | B90: 550 | C90: 748 | D90: =IF(Config!$C$4="Минимальная",MIN(IF(B90:C90<>0,B90:C90,"")),MAX(B90,C90)) -> 748
A91: u-f.ru | B91: 770 | C91: 880 | D91: =IF(Config!$C$4="Минимальная",MIN(IF(B91:C91<>0,B91:C91,"")),MAX(B91,C91)) -> 880
A92: iitp.ru | B92: 825 | C92: 0 | D92: =IF(Config!$C$4="Минимальная",MIN(IF(B92:C92<>0,B92:C92,"")),MAX(B92,C92)) -> 825
A93: zaistinu.ru | B93: 856.9 | C93: 782.1 | D93: =IF(Config!$C$4="Минимальная",MIN(IF(B93:C93<>0,B93:C93,"")),MAX(B93,C93)) -> 856.9
A94: nv-online.info | B94: 550 | C94: 605 | D94: =IF(Config!$C$4="Минимальная",MIN(IF(B94:C94<>0,B94:C94,"")),MAX(B94,C94)) -> 605
A95: belgazeta.by | B95: 550 | C95: 550 | D95: =IF(Config!$C$4="Минимальная",MIN(IF(B95:C95<>0,B95:C95,"")),MAX(B95,C95)) -> 550
A96: asfera.info | B96: 1540 | C96: 0 | D96: =IF(Config!$C$4="Минимальная",MIN(IF(B96:C96<>0,B96:C96,"")),MAX(B96,C96)) -> 1540
A97: bible.com.ua | B97: 506 | C97: 539 | D97: =IF(Config!$C$4="Минимальная",MIN(IF(B97:C97<>0,B97:C97,"")),MAX(B97,C97)) -> 539
A98: allinsurance.ru | B98: 825 | C98: 825 | D98: =IF(Config!$C$4="Минимальная",MIN(IF(B98:C98<>0,B98:C98,"")),MAX(B98,C98)) -> 825
A99: tourua.com | B99: 880 | C99: 880 | D99: =IF(Config!$C$4="Минимальная",MIN(IF(B99:C99<>0,B99:C99,"")),MAX(B99,C99)) -> 880
A100: lebed.com | B100: 988.9 | C100: 988.9 | D100: =IF(Config!$C$4="Минимальная",MIN(IF(B100:C100<>0,B100:C100,"")),MAX(B100,C100)) -> 988.9
A101: ukrbanks.info | B101: 1193.5 | C101: 0 | D101: =IF(Config!$C$4="Минимальная",MIN(IF(B101:C101<>0,B101:C101,"")),MAX(B101,C101)) -> 1193.5
A102: uznayvse.ru | B102: 481.8 | C102: 536.8 | D102: =IF(Config!$C$4="Минимальная",MIN(IF(B102:C102<>0,B102:C102,"")),MAX(B102,C102)) -> 536.8
A103: americaru.com | B103: 935 | C103: 979 | D103: =IF(Config!$C$4="Минимальная",MIN(IF(B103:C103<>0,B103:C103,"")),MAX(B103,C103)) -> 979
A104: omskpress.ru | B104: 715 | C104: 693 | D104: =IF(Config!$C$4="Минимальная",MIN(IF(B104:C104<>0,B104:C104,"")),MAX(B104,C104)) -> 715
A105: hostingkartinok.com | B105: 539 | C105: 539 | D105: =IF(Config!$C$4="Минимальная",MIN(IF(B105:C105<>0,B105:C105,"")),MAX(B105,C105)) -> 539
A106: rodgaz.ru | B106: 0 | C106: 699 | D106: =IF(Config!$C$4="Минимальная",MIN(IF(B106:C106<>0,B106:C106,"")),MAX(B106,C106)) -> 699
A107: 17-let.ru | B107: 660 | C107: 660 | D107: =IF(Config!$C$4="Минимальная",MIN(IF(B107:C107<>0,B107:C107,"")),MAX(B107,C107)) -> 660
A108: churchs.kiev.ua | B108: 488.4 | C108: 745.8 | D108: =IF(Config!$C$4="Минимальная",MIN(IF(B108:C108<>0,B108:C108,"")),MAX(B108,C108)) -> 745.8
A109: joomla3x.ru | B109: 880 | C109: 935 | D109: =IF(Config!$C$4="Минимальная",MIN(IF(B109:C109<>0,B109:C109,"")),MAX(B109,C109)) -> 935
A110: bankfax.ru | B110: 627 | C110: 627 | D110: =IF(Config!$C$4="Минимальная",MIN(IF(B110:C110<>0,B110:C110,"")),MAX(B110,C110)) -> 627
A111: ecoportal.su | B111: 550 | C111: 605 | D111: =IF(Config!$C$4="Минимальная",MIN(IF(B111:C111<>0,B111:C111,"")),MAX(B111,C111)) -> 605
A112: news.samaratoday.ru | B112: 1650 | C112: 0 | D112: =IF(Config!$C$4="Минимальная",MIN(IF(B112:C112<>0,B112:C112,"")),MAX(B112,C112)) -> 1650
A113: bdg.by | B113: 550 | C113: 550 | D113: =IF(Config!$C$4="Минимальная",MIN(IF(B113:C113<>0,B113:C113,"")),MAX(B113,C113)) -> 550
A114: japanmodern.ru | B114: 550 | C114: 550 | D114: =IF(Config!$C$4="Минимальная",MIN(IF(B114:C114<>0,B114:C114,"")),MAX(B114,C114)) -> 550
A115: prohotel.ru | B115: 627 | C115: 649 | D115: =IF(Config!$C$4="Минимальная",MIN(IF(B115:C115<>0,B115:C115,"")),MAX(B115,C115)) -> 649
A116: press-release.ru | B116: 526.9 | C116: 655.6 | D116: =IF(Config!$C$4="Минимальная",MIN(IF(B116:C116<>0,B116:C116,"")),MAX(B116,C116)) -> 655.6
A117: pcnews.ru | B117: 614.9 | C117: 603.9 | D117: =IF(Config!$C$4="Минимальная",MIN(IF(B117:C117<>0,B117:C117,"")),MAX(B117,C117)) -> 614.9
A118: stroi-baza.ru | B118: 1210 | C118: 1320 | D118: =IF(Config!$C$4="Минимальная",MIN(IF(B118:C118<>0,B118:C118,"")),MAX(B118,C118)) -> 1320
A119: rtours.ru | B119: 979 | C119: 0 | D119: =IF(Config!$C$4="Минимальная",MIN(IF(B119:C119<>0,B119:C119,"")),MAX(B119,C119)) -> 979
A120: kvartirakrasivo.ru | B120: 1098.9 | C120: 1098.9 | D120: =IF(Config!$C$4="Минимальная",MIN(IF(B120:C120<>0,B120:C120,"")),MAX(B120,C120)) -> 1098.9
A121: dontr.ru | B121: 0 | C121: 1910.7 | D121: =IF(Config!$C$4="Минимальная",MIN(IF(B121:C121<>0,B121:C121,"")),MAX(B121,C121)) -> 1910.7
A122: medprom.ru | B122: 0 | C122: 440 | D122: =IF(Config!$C$4="Минимальная",MIN(IF(B122:C122<>0,B122:C122,"")),MAX(B122,C122)) -> 440
A123: i38.ru | B123: 748 | C123: 770 | D123: =IF(Config!$C$4="Минимальная",MIN(IF(B123:C123<>0,B123:C123,"")),MAX(B123,C123)) -> 770
A124: uralstroyportal.ru | B124: 1210 | C124: 1210 | D124: =IF(Config!$C$4="Минимальная",MIN(IF(B124:C124<>0,B124:C124,"")),MAX(B124,C124)) -> 1210
A125: almodi.org | B125: 880 | C125: 1320 | D125: =IF(Config!$C$4="Минимальная",MIN(IF(B125:C125<>0,B125:C125,"")),MAX(B125,C125)) -> 1320
A126: news2000.com.ua | B126: 291.5 | C126: 291.5 | D126: =IF(Config!$C$4="Минимальная",MIN(IF(B126:C126<>0,B126:C126,"")),MAX(B126,C126)) -> 291.5
A127: gmstar.ru | B127: 627 | C127: 627 | D127: =IF(Config!$C$4="Минимальная",MIN(IF(B127:C127<>0,B127:C127,"")),MAX(B127,C127)) -> 627
A128: nauca.com.ua | B128: 440 | C128: 473 | D128: =IF(Config!$C$4="Минимальная",MIN(IF(B128:C128<>0,B128:C128,"")),MAX(B128,C128)) -> 473
A129: vectormetal.ru | B129: 528 | C129: 528 | D129: =IF(Config!$C$4="Минимальная",MIN(IF(B129:C129<>0,B129:C129,"")),MAX(B129,C129)) -> 528
A130: euroradio.fm | B130: 445.5 | C130: 445.5 | D130: =IF(Config!$C$4="Минимальная",MIN(IF(B130:C130<>0,B130:C130,"")),MAX(B130,C130)) -> 445.5
A131: ladaonline.ru | B131: 988.9 | C131: 988.9 | D131: =IF(Config!$C$4="Минимальная",MIN(IF(B131:C131<>0,B131:C131,"")),MAX(B131,C131)) -> 988.9
A132: wedding.ua | B132: 1232 | C132: 1320 | D132: =IF(Config!$C$4="Минимальная",MIN(IF(B132:C132<>0,B132:C132,"")),MAX(B132,C132)) -> 1320
A133: vladivostok-eparhia.ru | B133: 0 | C133: 638 | D133: =IF(Config!$C$4="Минимальная",MIN(IF(B133:C133<>0,B133:C133,"")),MAX(B133,C133)) -> 638
A134: nasha.lv | B134: 528 | C134: 539 | D134: =IF(Config!$C$4="Минимальная",MIN(IF(B134:C134<>0,B134:C134,"")),MAX(B134,C134)) -> 539
A135: edemdom.ru | B135: 759 | C135: 759 | D135: =IF(Config!$C$4="Минимальная",MIN(IF(B135:C135<>0,B135:C135,"")),MAX(B135,C135)) -> 759
A136: most-dnepr.info | B136: 548.9 | C136: 649 | D136: =IF(Config!$C$4="Минимальная",MIN(IF(B136:C136<>0,B136:C136,"")),MAX(B136,C136)) -> 649
A137: omsk.edu.ru | B137: 726 | C137: 726 | D137: =IF(Config!$C$4="Минимальная",MIN(IF(B137:C137<>0,B137:C137,"")),MAX(B137,C137)) -> 726
A138: gorodovoy.spb.ru | B138: 716.1 | C138: 743.6 | D138: =IF(Config!$C$4="Минимальная",MIN(IF(B138:C138<>0,B138:C138,"")),MAX(B138,C138)) -> 743.6
A139: isra.com | B139: 935 | C139: 979 | D139: =IF(Config!$C$4="Минимальная",MIN(IF(B139:C139<>0,B139:C139,"")),MAX(B139,C139)) -> 979
A140: ssa.ru | B140: 798.6 | C140: 798.6 | D140: =IF(Config!$C$4="Минимальная",MIN(IF(B140:C140<>0,B140:C140,"")),MAX(B140,C140)) -> 798.6
A141: novate.ru | B141: 1485 | C141: 1529 | D141: =IF(Config!$C$4="Минимальная",MIN(IF(B141:C141<>0,B141:C141,"")),MAX(B141,C141)) -> 1529
A142: vninform.ru | B142: 660 | C142: 660 | D142: =IF(Config!$C$4="Минимальная",MIN(IF(B142:C142<>0,B142:C142,"")),MAX(B142,C142)) -> 660
A143: gallerix.ru | B143: 649 | C143: 649 | D143: =IF(Config!$C$4="Минимальная",MIN(IF(B143:C143<>0,B143:C143,"")),MAX(B143,C143)) -> 649
A144: reporter.com.ua | B144: 382.8 | C144: 436.77 | D144: =IF(Config!$C$4="Минимальная",MIN(IF(B144:C144<>0,B144:C144,"")),MAX(B144,C144)) -> 436.77
A145: volga-info.ru | B145: 572 | C145: 605 | D145: =IF(Config!$C$4="Минимальная",MIN(IF(B145:C145<>0,B145:C145,"")),MAX(B145,C145)) -> 605
A146: tatre.ru | B146: 1100 | C146: 1100 | D146: =IF(Config!$C$4="Минимальная",MIN(IF(B146:C146<>0,B146:C146,"")),MAX(B146,C146)) -> 1100
A147: svarca.ru | B147: 1226.5 | C147: 1245.2 | D147: =IF(Config!$C$4="Минимальная",MIN(IF(B147:C147<>0,B147:C147,"")),MAX(B147,C147)) -> 1245.2
A148: innov.ru | B148: 620.4 | C148: 609.4 | D148: =IF(Config!$C$4="Минимальная",MIN(IF(B148:C148<>0,B148:C148,"")),MAX(B148,C148)) -> 620.4
A149: gvozdik.ru | B149: 495 | C149: 396 | D149: =IF(Config!$C$4="Минимальная",MIN(IF(B149:C149<>0,B149:C149,"")),MAX(B149,C149)) -> 495
A150: airpump.ru | B150: 1100 | C150: 1210 | D150: =IF(Config!$C$4="Минимальная",MIN(IF(B150:C150<>0,B150:C150,"")),MAX(B150,C150)) -> 1210
A151: japan-reporter.ru | B151: 704 | C151: 726 | D151: =IF(Config!$C$4="Минимальная",MIN(IF(B151:C151<>0,B151:C151,"")),MAX(B151,C151)) -> 726
A152: politjournal.ru | B152: 0 | C152: 598.99 | D152: =IF(Config!$C$4="Минимальная",MIN(IF(B152:C152<>0,B152:C152,"")),MAX(B152,C152)) -> 598.99
A153: megaobzor.com | B153: 605 | C153: 660 | D153: =IF(Config!$C$4="Минимальная",MIN(IF(B153:C153<>0,B153:C153,"")),MAX(B153,C153)) -> 660
A154: rus-obr.ru | B154: 440 | C154: 495 | D154: =IF(Config!$C$4="Минимальная",MIN(IF(B154:C154<>0,B154:C154,"")),MAX(B154,C154)) -> 495
A155: e-news.com.ua | B155: 731.5 | C155: 748 | D155: =IF(Config!$C$4="Минимальная",MIN(IF(B155:C155<>0,B155:C155,"")),MAX(B155,C155)) -> 748
A156: globalist.org.ua | B156: 690.8 | C156: 672.1 | D156: =IF(Config!$C$4="Минимальная",MIN(IF(B156:C156<>0,B156:C156,"")),MAX(B156,C156)) -> 690.8
A157: ustroy.ru | B157: 605 | C157: 660 | D157: =IF(Config!$C$4="Минимальная",MIN(IF(B157:C157<>0,B157:C157,"")),MAX(B157,C157)) -> 660
A158: 4vsar.ru | B158: 1540 | C158: 1650 | D158: =IF(Config!$C$4="Минимальная",MIN(IF(B158:C158<>0,B158:C158,"")),MAX(B158,C158)) -> 1650
A159: edunews.ru | B159: 1787.5 | C159: 1850.2 | D159: =IF(Config!$C$4="Минимальная",MIN(IF(B159:C159<>0,B159:C159,"")),MAX(B159,C159)) -> 1850.2
A160: dagpravda.ru | B160: 473 | C160: 495 | D160: =IF(Config!$C$4="Минимальная",MIN(IF(B160:C160<>0,B160:C160,"")),MAX(B160,C160)) -> 495
A161: allforjoomla.ru | B161: 880 | C161: 1100 | D161: =IF(Config!$C$4="Минимальная",MIN(IF(B161:C161<>0,B161:C161,"")),MAX(B161,C161)) -> 1100
A162: vchaspik.ua | B162: 802.99 | C162: 945.99 | D162: =IF(Config!$C$4="Минимальная",MIN(IF(B162:C162<>0,B162:C162,"")),MAX(B162,C162)) -> 945.99
A163: hitcounter.ru | B163: 770 | C163: 825 | D163: =IF(Config!$C$4="Минимальная",MIN(IF(B163:C163<>0,B163:C163,"")),MAX(B163,C163)) -> 825
A164: 0629.com.ua | B164: 714.53 | C164: 737.81 | D164: =IF(Config!$C$4="Минимальная",MIN(IF(B164:C164<>0,B164:C164,"")),MAX(B164,C164)) -> 737.81
A165: kn-peterburg.ru | B165: 682 | C165: 715 | D165: =IF(Config!$C$4="Минимальная",MIN(IF(B165:C165<>0,B165:C165,"")),MAX(B165,C165)) -> 715
A166: newsvo.ru | B166: 297 | C166: 297 | D166: =IF(Config!$C$4="Минимальная",MIN(IF(B166:C166<>0,B166:C166,"")),MAX(B166,C166)) -> 297
A167: ipress.ua | B167: 0 | C167: 1100 | D167: =IF(Config!$C$4="Минимальная",MIN(IF(B167:C167<>0,B167:C167,"")),MAX(B167,C167)) -> 1100
A168: proektstroy.ru | B168: 880 | C168: 1098.9 | D168: =IF(Config!$C$4="Минимальная",MIN(IF(B168:C168<>0,B168:C168,"")),MAX(B168,C168)) -> 1098.9
A169: investorkirov.ru | B169: 444.4 | C169: 467.5 | D169: =IF(Config!$C$4="Минимальная",MIN(IF(B169:C169<>0,B169:C169,"")),MAX(B169,C169)) -> 467.5
A170: pro-books.ru | B170: 550 | C170: 550 | D170: =IF(Config!$C$4="Минимальная",MIN(IF(B170:C170<>0,B170:C170,"")),MAX(B170,C170)) -> 550
A171: korp-okon.ru | B171: 495 | C171: 495 | D171: =IF(Config!$C$4="Минимальная",MIN(IF(B171:C171<>0,B171:C171,"")),MAX(B171,C171)) -> 495
A172: mediaryazan.ru | B172: 0 | C172: 517 | D172: =IF(Config!$C$4="Минимальная",MIN(IF(B172:C172<>0,B172:C172,"")),MAX(B172,C172)) -> 517
A173: niknews.mk.ua | B173: 383.9 | C173: 383.9 | D173: =IF(Config!$C$4="Минимальная",MIN(IF(B173:C173<>0,B173:C173,"")),MAX(B173,C173)) -> 383.9
A174: sport.ru | B174: 1070.3 | C174: 1070.3 | D174: =IF(Config!$C$4="Минимальная",MIN(IF(B174:C174<>0,B174:C174,"")),MAX(B174,C174)) -> 1070.3
A175: dj.ru | B175: 682 | C175: 726 | D175: =IF(Config!$C$4="Минимальная",MIN(IF(B175:C175<>0,B175:C175,"")),MAX(B175,C175)) -> 726
A176: infomsk.ru | B176: 1210 | C176: 1320 | D176: =IF(Config!$C$4="Минимальная",MIN(IF(B176:C176<>0,B176:C176,"")),MAX(B176,C176)) -> 1320
A177: sarinform.ru | B177: 1430 | C177: 1540 | D177: =IF(Config!$C$4="Минимальная",MIN(IF(B177:C177<>0,B177:C177,"")),MAX(B177,C177)) -> 1540
A178: m-vremya.ru | B178: 869 | C178: 869 | D178: =IF(Config!$C$4="Минимальная",MIN(IF(B178:C178<>0,B178:C178,"")),MAX(B178,C178)) -> 869
A179: stroypuls.ru | B179: 726 | C179: 749.1 | D179: =IF(Config!$C$4="Минимальная",MIN(IF(B179:C179<>0,B179:C179,"")),MAX(B179,C179)) -> 749.1
A180: zhitomir.info | B180: 0 | C180: 380.55 | D180: =IF(Config!$C$4="Минимальная",MIN(IF(B180:C180<>0,B180:C180,"")),MAX(B180,C180)) -> 380.55
A181: newsler.ru | B181: 880 | C181: 880 | D181: =IF(Config!$C$4="Минимальная",MIN(IF(B181:C181<>0,B181:C181,"")),MAX(B181,C181)) -> 880
A182: 1777.ru | B182: 396 | C182: 396 | D182: =IF(Config!$C$4="Минимальная",MIN(IF(B182:C182<>0,B182:C182,"")),MAX(B182,C182)) -> 396
A183: ps.1september.ru | B183: 0 | C183: 605 | D183: =IF(Config!$C$4="Минимальная",MIN(IF(B183:C183<>0,B183:C183,"")),MAX(B183,C183)) -> 605
A184: catalogmineralov.ru | B184: 660 | C184: 880 | D184: =IF(Config!$C$4="Минимальная",MIN(IF(B184:C184<>0,B184:C184,"")),MAX(B184,C184)) -> 880
A185: uvelir.info | B185: 506 | C185: 506 | D185: =IF(Config!$C$4="Минимальная",MIN(IF(B185:C185<>0,B185:C185,"")),MAX(B185,C185)) -> 506
A186: modniyportal.ru | B186: 737 | C186: 748 | D186: =IF(Config!$C$4="Минимальная",MIN(IF(B186:C186<>0,B186:C186,"")),MAX(B186,C186)) -> 748
A187: kulturologia.ru | B187: 1265 | C187: 1375 | D187: =IF(Config!$C$4="Минимальная",MIN(IF(B187:C187<>0,B187:C187,"")),MAX(B187,C187)) -> 1375
A188: karelinform.ru | B188: 440 | C188: 473 | D188: =IF(Config!$C$4="Минимальная",MIN(IF(B188:C188<>0,B188:C188,"")),MAX(B188,C188)) -> 473
A189: procrf.ru | B189: 658.9 | C189: 658.9 | D189: =IF(Config!$C$4="Минимальная",MIN(IF(B189:C189<>0,B189:C189,"")),MAX(B189,C189)) -> 658.9
A190: mercatos.net | B190: 990 | C190: 990 | D190: =IF(Config!$C$4="Минимальная",MIN(IF(B190:C190<>0,B190:C190,"")),MAX(B190,C190)) -> 990
A191: tour-info.ru | B191: 1210 | C191: 1320 | D191: =IF(Config!$C$4="Минимальная",MIN(IF(B191:C191<>0,B191:C191,"")),MAX(B191,C191)) -> 1320
A192: musicangel.ru | B192: 1100 | C192: 1100 | D192: =IF(Config!$C$4="Минимальная",MIN(IF(B192:C192<>0,B192:C192,"")),MAX(B192,C192)) -> 1100
A193: whitewater.ru | B193: 594 | C193: 594 | D193: =IF(Config!$C$4="Минимальная",MIN(IF(B193:C193<>0,B193:C193,"")),MAX(B193,C193)) -> 594
A194: infogeo.ru | B194: 550 | C194: 550 | D194: =IF(Config!$C$4="Минимальная",MIN(IF(B194:C194<>0,B194:C194,"")),MAX(B194,C194)) -> 550
A195: ntdtv.ru | B195: 581.9 | C195: 495 | D195: =IF(Config!$C$4="Минимальная",MIN(IF(B195:C195<>0,B195:C195,"")),MAX(B195,C195)) -> 581.9
A196: kotikit.ru | B196: 825 | C196: 825 | D196: =IF(Config!$C$4="Минимальная",MIN(IF(B196:C196<>0,B196:C196,"")),MAX(B196,C196)) -> 825
A197: epochtimes.com.ua | B197: 572 | C197: 605 | D197: =IF(Config!$C$4="Минимальная",MIN(IF(B197:C197<>0,B197:C197,"")),MAX(B197,C197)) -> 605
A198: spbit.ru | B198: 495 | C198: 660 | D198: =IF(Config!$C$4="Минимальная",MIN(IF(B198:C198<>0,B198:C198,"")),MAX(B198,C198)) -> 660
A199: kurortinfo.ru | B199: 878.9 | C199: 1098.9 | D199: =IF(Config!$C$4="Минимальная",MIN(IF(B199:C199<>0,B199:C199,"")),MAX(B199,C199)) -> 1098.9
A200: rudata.ru | B200: 467.5 | C200: 489.5 | D200: =IF(Config!$C$4="Минимальная",MIN(IF(B200:C200<>0,B200:C200,"")),MAX(B200,C200)) -> 489.5
... 6605 more rows

Sheet GetGoodLinks
A1: Домен | B1: Цена
A2: joomla-master.org | B2: 495
A3: chishma.ru | B3: 370.84
A4: web-creator.org | B4: 453.75
A5: mapexpert.com.ua | B5: 261.94
A6: postup.brama.com | B6: 206.25
A7: cripo.com.ua | B7: 247.5
A8: eurasialegal.info | B8: 115.5
A9: tribuna.ru | B9: 234.74
A10: tourlib.net | B10: 412.5
A11: donntu.edu.ua | B11: 577.5
A12: odnaknopka.ru | B12: 539
A13: joomfile.com | B13: 218.38
A14: all4pda.org | B14: 412.5
A15: medicine-plus.ru | B15: 242.84
A16: battlefield4.com.ua | B16: 453.75
A17: bowers.org | B17: 132
A18: iitp.ru | B18: 143
A19: suomik.com | B19: 387.5
A20: portalinfo.org | B20: 412.5
A21: inotur.com | B21: 400.72
A22: library.lipetsk.ru | B22: 86.98
A23: 4tv.in.ua | B23: 165
A24: androidreviews.ru | B24: 175
A25: skimsu.ru | B25: 174.3
A26: hvylya.org | B26: 265.04
A27: earth-chronicles.ru | B27: 259.88
A28: nauca.com.ua | B28: 90.75
A29: vchaspik.ua | B29: 465.74
A30: eurasialaw.ru | B30: 116.68
A31: eurasniipp.ru | B31: 106.07
A32: onlinedics.ru | B32: 240.08
A33: 62.ua | B33: 264
A34: pinzes.ru | B34: 304.7
A35: joomluck.com | B35: 235.71
A36: yourdevice.org | B36: 330
A37: jourdom.ru | B37: 262.9
A38: energyland.info | B38: 424.64
A39: altstav.ru | B39: 660
A40: arminfo.info | B40: 330
A41: penza-press.ru | B41: 288.75
A42: gtrk-omsk.ru | B42: 212.14
A43: bsu-az.org | B43: 212.5
A44: cg-fx.de | B44: 266.5
A45: yourfreedom.ru | B45: 230.02
A46: md-eksperiment.org | B46: 261.62
A47: picma.ru | B47: 218.38
A48: pulseontech.com | B48: 236.4
A49: express.am | B49: 253
A50: maranatha.org.ua | B50: 364.43
A51: kolyma.ru | B51: 275
A52: pro-java.ru | B52: 220.77
A53: python-3.ru | B53: 267.25
A54: run-pc.ru | B54: 232.39
A55: worldeconomy.ru | B55: 127.62
A56: newworldnews.ru | B56: 218.38
A57: script-coding.info | B57: 303.31
A58: prime-tass.by | B58: 247.5
A59: orpheusmusic.ru | B59: 330
A60: absolyt.ru | B60: 649
A61: irrsochi.ru | B61: 312.5
A62: eagi.kz | B62: 337.5
A63: webrealtor.org | B63: 226.88
A64: yuschenko.com.ua | B64: 278.87
A65: lawby.org | B65: 223.75
A66: vsyapravda.com | B66: 82.5
A67: yurteh.net | B67: 170.24
A68: sgfc.org | B68: 222.94
A69: ukrlitzno.com.ua | B69: 165
A70: cupol.lviv.ua | B70: 206.25
A71: joomlabest.com | B71: 288.75
A72: webdomainservice.net | B72: 187.5
A73: 0629.com.ua | B73: 263.18
A74: newsvo.ru | B74: 288.75
A75: blogstyle.ru | B75: 365.03
A76: rusrek.com | B76: 371.25
A77: megaobzor.com | B77: 485.29
A78: otpuskrk.ru | B78: 330
A79: 2000.net.ua | B79: 309.38
A80: webtun.com | B80: 226.88
A81: womtec.ru | B81: 580.99
A82: chaspik.spb.ru | B82: 330
A83: 057.ua | B83: 264
A84: capitalpost.ru | B84: 242.38
A85: serafimovich.org | B85: 264
A86: ribalych.ru | B86: 279.04
A87: poslezavtra.com.ua | B87: 268.13
A88: htmlka.com | B88: 385.24
A89: antonblog.ru | B89: 562.86
A90: goldenpages.ua | B90: 231
A91: stroi-baza.ru | B91: 330
A92: omskpress.ru | B92: 188.57
A93: chp.com.ua | B93: 371.25
A94: volzsky.ru | B94: 528
A95: talia.ua | B95: 399.3
A96: anti-facebook.com | B96: 226.88
A97: holosua.com | B97: 571.31
A98: worldtranslation.org | B98: 272.25
A99: sknews.ru | B99: 375
A100: slovonovo.ru | B100: 348.71
A101: 0652.ua | B101: 264
A102: infodrink.ru | B102: 313.21
A103: sport-weekend.com | B103: 206.25
A104: globalist.org.ua | B104: 453.75
A105: inwit.ru | B105: 226.04
A106: vorobus.com | B106: 338.25
A107: mygazeta.com | B107: 377.64
A108: zhitomir.info | B108: 226.88
A109: webtoolgallery.com | B109: 187.69
A110: ecofriendly.ru | B110: 185.21
A111: 061.ua | B111: 264
A112: statehistory.ru | B112: 266.54
A113: 056.ua | B113: 264
A114: sdnnet.ru | B114: 218.9
A115: vodila.net | B115: 379.12
A116: astra-novosti.ru | B116: 225
A117: for-builders.ru | B117: 242.38
A118: 0512.com.ua | B118: 264
A119: federalinform.ru | B119: 182.88
A120: bible.com.ua | B120: 303.77
A121: asupro.com | B121: 154
A122: universalinternetlibrary.ru | B122: 242
A123: radymo.com | B123: 412.5
A124: brd24.com | B124: 250
A125: bcoreanda.com | B125: 303.19
A126: balticlive.ru | B126: 317.23
A127: evi.by | B127: 198.69
A128: energycraft.ru | B128: 1396.31
A129: ar25.org | B129: 247.5
A130: bodyproject.ru | B130: 226.88
A131: arhnet.info | B131: 226.03
A132: petrovideo.ru | B132: 179.64
A133: intellect-video.com | B133: 266.12
A134: odmu.od.ua | B134: 206.25
A135: mamininteres.ru | B135: 225
A136: provisor.com.ua | B136: 468.75
A137: ccssu.crimea.ua | B137: 193.37
A138: plitkar.com.ua | B138: 242.55
A139: kazan24.ru | B139: 332.66
A140: glianec.com | B140: 334.89
A141: unity-ads.com | B141: 220.36
A142: am-am.info | B142: 438.9
A143: activerelax.ru | B143: 242.38
A144: life-and-style.ru | B144: 241.95
A145: oilcareer.ru | B145: 359.41
A146: uastudent.com | B146: 214.5
A147: 5min.by | B147: 268.75
A148: itrecord.ru | B148: 241.95
A149: worldtemplates.net | B149: 206.64
A150: stroicar.ru | B150: 231.25
A151: odnopolchane.net | B151: 264
A152: vashyokna.ru | B152: 226.88
A153: soldati-russian.ru | B153: 141.9
A154: litcult.ru | B154: 275
A155: minskportal.com | B155: 201.72
A156: 032.ua | B156: 264
A157: green-belt.ru | B157: 580.99
A158: vigivanie.com | B158: 306.9
A159: rada2012.net.ua | B159: 123.75
A160: 062.ua | B160: 223.75
A161: pr.ua | B161: 264
A162: skywink.net | B162: 104.58
A163: allgrib.ru | B163: 284.9
A164: belarushockey.com | B164: 253
A165: vdonetske.info | B165: 328.9
A166: kurorts.com.ua | B166: 129.64
A167: fcrubin.ru | B167: 220
A168: php-junior.ru | B168: 237.78
A169: wmr1000.ru | B169: 363.97
A170: niredo.com | B170: 330
A171: domainsworld.info | B171: 226.88
A172: avtoindent.ru | B172: 568.84
A173: pravoznavec.info | B173: 232.39
A174: texnonews.com | B174: 162.57
A175: uinny.ru | B175: 275
A176: vb.ua | B176: 163.9
A177: multikino.com | B177: 250.95
A178: bolezni.by | B178: 282.53
A179: 7ja.net | B179: 577.5
A180: tnu.in.ua | B180: 247.5
A181: invision.com.ua | B181: 284.63
A182: poetree.ru | B182: 165
A183: autoamigominsk.com | B183: 216.47
A184: imagestun.com | B184: 257.4
A185: goodrest.com.ua | B185: 321.2
A186: krasrab.net | B186: 225.5
A187: propagandahistory.ru | B187: 200.65
A188: websvit.com.ua | B188: 103.55
A189: acualicio.us | B189: 206.25
A190: rugraph.com | B190: 218.38
A191: statistics.uz | B191: 86.63
A192: lecourrierderussie.ru | B192: 132
A193: ispf.ru | B193: 196.47
A194: toast.com.ua | B194: 223.75
A195: freealt.net | B195: 550
A196: volgograd-trv.ru | B196: 618.75
A197: pro-tablets.com | B197: 309.38
A198: aquaport.ru | B198: 315.44
A199: probusiness.biz | B199: 330
A200: seliger2010.com | B200: 218.38
... 1960 more rows

Sheet RotaPost
A1: Домен | B1: Цена поста | C1: Цена пресс релиза | D1: Цена постового | E1: Формула
A2: аастюнинг.рф | B2: 180 | C2: 30 | D2: 50 | E2: =IF(Config!$C$5="Минимальная",MIN(IF(B2:D2<>0,B2:D2,"")),MAX(B2,C2,D2)) -> 30
A3: авто-диалог.рф | B3: 65 | C3: 35 | D3: 30 | E3: =IF(Config!$C$5="Минимальная",MIN(IF(B3:D3<>0,B3:D3,"")),MAX(B3,C3,D3)) -> 30
A4: айподарок.рф | B4: 190 | C4: 70 | D4: 70 | E4: =IF(Config!$C$5="Минимальная",MIN(IF(B4:D4<>0,B4:D4,"")),MAX(B4,C4,D4)) -> 70
A5: аквамаринмитино.рф | B5: 220 | C5: 95 | D5: 44 | E5: =IF(Config!$C$5="Минимальная",MIN(IF(B5:D5<>0,B5:D5,"")),MAX(B5,C5,D5)) -> 44
A6: аниме-мир.рф | B6: 200 | C6: 150 | D6: 100 | E6: =IF(Config!$C$5="Минимальная",MIN(IF(B6:D6<>0,B6:D6,"")),MAX(B6,C6,D6)) -> 100
A7: ательеуюта.рф | B7: 220 | C7: 95 | D7: 44 | E7: =IF(Config!$C$5="Минимальная",MIN(IF(B7:D7<>0,B7:D7,"")),MAX(B7,C7,D7)) -> 44
A8: ауди80.рф | B8: 220 | C8: 95 | D8: 44 | E8: =IF(Config!$C$5="Минимальная",MIN(IF(B8:D8<>0,B8:D8,"")),MAX(B8,C8,D8)) -> 44
A9: байтрик.рф | B9: 220 | C9: 95 | D9: 44 | E9: =IF(Config!$C$5="Минимальная",MIN(IF(B9:D9<>0,B9:D9,"")),MAX(B9,C9,D9)) -> 44
A10: блогсоветов.рф | B10: 170 | C10: 120 | D10: 100 | E10: =IF(Config!$C$5="Минимальная",MIN(IF(B10:D10<>0,B10:D10,"")),MAX(B10,C10,D10)) -> 100
A11: будь-здоров-не-кашляй.рф | B11: 300 | C11: 200 | D11: 140 | E11: =IF(Config!$C$5="Минимальная",MIN(IF(B11:D11<>0,B11:D11,"")),MAX(B11,C11,D11)) -> 140
A12: веб-майна.рф | B12: 220 | C12: 80 | D12: 80 | E12: =IF(Config!$C$5="Минимальная",MIN(IF(B12:D12<>0,B12:D12,"")),MAX(B12,C12,D12)) -> 80
A13: вечность.su | B13: 70 | C13: 70 | D13: 70 | E13: =IF(Config!$C$5="Минимальная",MIN(IF(B13:D13<>0,B13:D13,"")),MAX(B13,C13,D13)) -> 70
A14: вилла-фортуна.рф | B14: 200 | C14: 100 | D14: 80 | E14: =IF(Config!$C$5="Минимальная",MIN(IF(B14:D14<>0,B14:D14,"")),MAX(B14,C14,D14)) -> 80
A15: волгодонскгород.рф | B15: 200 | C15: 110 | D15: 100 | E15: =IF(Config!$C$5="Минимальная",MIN(IF(B15:D15<>0,B15:D15,"")),MAX(B15,C15,D15)) -> 100
A16: вордпрессия.рф | B16: 90 | C16: 60 | D16: 45 | E16: =IF(Config!$C$5="Минимальная",MIN(IF(B16:D16<>0,B16:D16,"")),MAX(B16,C16,D16)) -> 45
A17: воронеж-кухня.рф | B17: 245 | C17: 165 | D17: 58 | E17: =IF(Config!$C$5="Минимальная",MIN(IF(B17:D17<>0,B17:D17,"")),MAX(B17,C17,D17)) -> 58
A18: все-на-халяву.рф | B18: 245 | C18: 165 | D18: 58 | E18: =IF(Config!$C$5="Минимальная",MIN(IF(B18:D18<>0,B18:D18,"")),MAX(B18,C18,D18)) -> 58
A19: всястройкатут.рф | B19: 180 | C19: 50 | D19: 40 | E19: =IF(Config!$C$5="Минимальная",MIN(IF(B19:D19<>0,B19:D19,"")),MAX(B19,C19,D19)) -> 40
A20: всё-интересно.рф | B20: 199 | C20: 99 | D20: 95 | E20: =IF(Config!$C$5="Минимальная",MIN(IF(B20:D20<>0,B20:D20,"")),MAX(B20,C20,D20)) -> 95
A21: выберипетербург.рф | B21: 245 | C21: 165 | D21: 58 | E21: =IF(Config!$C$5="Минимальная",MIN(IF(B21:D21<>0,B21:D21,"")),MAX(B21,C21,D21)) -> 58
A22: выбрать-прическу.рф | B22: 180 | C22: 160 | D22: 124 | E22: =IF(Config!$C$5="Минимальная",MIN(IF(B22:D22<>0,B22:D22,"")),MAX(B22,C22,D22)) -> 124
A23: дачаткачева.рф | B23: 275 | C23: 175 | D23: 89 | E23: =IF(Config!$C$5="Минимальная",MIN(IF(B23:D23<>0,B23:D23,"")),MAX(B23,C23,D23)) -> 89
A24: двери-ннов.рф | B24: 220 | C24: 95 | D24: 44 | E24: =IF(Config!$C$5="Минимальная",MIN(IF(B24:D24<>0,B24:D24,"")),MAX(B24,C24,D24)) -> 44
A25: деловар.рф | B25: 150 | C25: 45 | D25: 50 | E25: =IF(Config!$C$5="Минимальная",MIN(IF(B25:D25<>0,B25:D25,"")),MAX(B25,C25,D25)) -> 45
A26: дельфин.org | B26: 400 | C26: 100 | D26: 250 | E26: =IF(Config!$C$5="Минимальная",MIN(IF(B26:D26<>0,B26:D26,"")),MAX(B26,C26,D26)) -> 100
A27: диоптрика.рф | B27: 220 | C27: 95 | D27: 44 | E27: =IF(Config!$C$5="Минимальная",MIN(IF(B27:D27<>0,B27:D27,"")),MAX(B27,C27,D27)) -> 44
A28: дитис24.рф | B28: 220 | C28: 95 | D28: 44 | E28: =IF(Config!$C$5="Минимальная",MIN(IF(B28:D28<>0,B28:D28,"")),MAX(B28,C28,D28)) -> 44
A29: домаизбруса24.рф | B29: 245 | C29: 165 | D29: 58 | E29: =IF(Config!$C$5="Минимальная",MIN(IF(B29:D29<>0,B29:D29,"")),MAX(B29,C29,D29)) -> 58
A30: жнвлп.рф | B30: 200 | C30: 130 | D30: 95 | E30: =IF(Config!$C$5="Минимальная",MIN(IF(B30:D30<>0,B30:D30,"")),MAX(B30,C30,D30)) -> 95
A31: зклин.рф | B31: 220 | C31: 95 | D31: 44 | E31: =IF(Config!$C$5="Минимальная",MIN(IF(B31:D31<>0,B31:D31,"")),MAX(B31,C31,D31)) -> 44
A32: знаменитости-вконтакте.рф | B32: 220 | C32: 95 | D32: 44 | E32: =IF(Config!$C$5="Минимальная",MIN(IF(B32:D32<>0,B32:D32,"")),MAX(B32,C32,D32)) -> 44
A33: зооврачи.рф | B33: 245 | C33: 165 | D33: 58 | E33: =IF(Config!$C$5="Минимальная",MIN(IF(B33:D33<>0,B33:D33,"")),MAX(B33,C33,D33)) -> 58
A34: игрорадуга.рф | B34: 220 | C34: 95 | D34: 44 | E34: =IF(Config!$C$5="Минимальная",MIN(IF(B34:D34<>0,B34:D34,"")),MAX(B34,C34,D34)) -> 44
A35: империал-интерьер.рф | B35: 220 | C35: 95 | D35: 44 | E35: =IF(Config!$C$5="Минимальная",MIN(IF(B35:D35<>0,B35:D35,"")),MAX(B35,C35,D35)) -> 44
A36: интурсервис.рф | B36: 220 | C36: 95 | D36: 44 | E36: =IF(Config!$C$5="Минимальная",MIN(IF(B36:D36<>0,B36:D36,"")),MAX(B36,C36,D36)) -> 44
A37: кар-авто.рф | B37: 200 | C37: 130 | D37: 65 | E37: =IF(Config!$C$5="Минимальная",MIN(IF(B37:D37<>0,B37:D37,"")),MAX(B37,C37,D37)) -> 65
A38: кимры-пресса.рф | B38: 250 | C38: 150 | D38: 55 | E38: =IF(Config!$C$5="Минимальная",MIN(IF(B38:D38<>0,B38:D38,"")),MAX(B38,C38,D38)) -> 55
A39: кинотанец.рф | B39: 220 | C39: 95 | D39: 44 | E39: =IF(Config!$C$5="Минимальная",MIN(IF(B39:D39<>0,B39:D39,"")),MAX(B39,C39,D39)) -> 44
A40: класс-продаж.рф | B40: 245 | C40: 165 | D40: 58 | E40: =IF(Config!$C$5="Минимальная",MIN(IF(B40:D40<>0,B40:D40,"")),MAX(B40,C40,D40)) -> 58
A41: коркодил.рф | B41: 0 | C41: 0 | D41: 500 | E41: =IF(Config!$C$5="Минимальная",MIN(IF(B41:D41<>0,B41:D41,"")),MAX(B41,C41,D41)) -> 500
A42: красныйша.рф | B42: 120 | C42: 50 | D42: 26 | E42: =IF(Config!$C$5="Минимальная",MIN(IF(B42:D42<>0,B42:D42,"")),MAX(B42,C42,D42)) -> 26
A43: круизыпобайкалу.рф | B43: 220 | C43: 95 | D43: 44 | E43: =IF(Config!$C$5="Минимальная",MIN(IF(B43:D43<>0,B43:D43,"")),MAX(B43,C43,D43)) -> 44
A44: лучший.su | B44: 195 | C44: 165 | D44: 98 | E44: =IF(Config!$C$5="Минимальная",MIN(IF(B44:D44<>0,B44:D44,"")),MAX(B44,C44,D44)) -> 98
A45: любимая-диета.рф | B45: 150 | C45: 150 | D45: 120 | E45: =IF(Config!$C$5="Минимальная",MIN(IF(B45:D45<>0,B45:D45,"")),MAX(B45,C45,D45)) -> 120
A46: максстройинвест.рф | B46: 190 | C46: 70 | D46: 70 | E46: =IF(Config!$C$5="Минимальная",MIN(IF(B46:D46<>0,B46:D46,"")),MAX(B46,C46,D46)) -> 70
A47: малая-вишера.рф | B47: 100 | C47: 80 | D47: 30 | E47: =IF(Config!$C$5="Минимальная",MIN(IF(B47:D47<>0,B47:D47,"")),MAX(B47,C47,D47)) -> 30
A48: медынин.рф | B48: 220 | C48: 95 | D48: 44 | E48: =IF(Config!$C$5="Минимальная",MIN(IF(B48:D48<>0,B48:D48,"")),MAX(B48,C48,D48)) -> 44
A49: места24.рф | B49: 50 | C49: 20 | D49: 16 | E49: =IF(Config!$C$5="Минимальная",MIN(IF(B49:D49<>0,B49:D49,"")),MAX(B49,C49,D49)) -> 16
A50: минисадик66.рф | B50: 220 | C50: 95 | D50: 44 | E50: =IF(Config!$C$5="Минимальная",MIN(IF(B50:D50<>0,B50:D50,"")),MAX(B50,C50,D50)) -> 44
A51: миссис-блоггер.рф | B51: 239 | C51: 149 | D51: 99 | E51: =IF(Config!$C$5="Минимальная",MIN(IF(B51:D51<>0,B51:D51,"")),MAX(B51,C51,D51)) -> 99
A52: мобильные-фильмы.рф | B52: 120 | C52: 40 | D52: 40 | E52: =IF(Config!$C$5="Минимальная",MIN(IF(B52:D52<>0,B52:D52,"")),MAX(B52,C52,D52)) -> 40
A53: нашамамакрасноярск.рф | B53: 220 | C53: 95 | D53: 44 | E53: =IF(Config!$C$5="Минимальная",MIN(IF(B53:D53<>0,B53:D53,"")),MAX(B53,C53,D53)) -> 44
A54: необъяснимое.рф | B54: 220 | C54: 95 | D54: 44 | E54: =IF(Config!$C$5="Минимальная",MIN(IF(B54:D54<>0,B54:D54,"")),MAX(B54,C54,D54)) -> 44
A55: новостипланеты.рф | B55: 200 | C55: 100 | D55: 80 | E55: =IF(Config!$C$5="Минимальная",MIN(IF(B55:D55<>0,B55:D55,"")),MAX(B55,C55,D55)) -> 80
A56: нсхт.рф | B56: 220 | C56: 95 | D56: 44 | E56: =IF(Config!$C$5="Минимальная",MIN(IF(B56:D56<>0,B56:D56,"")),MAX(B56,C56,D56)) -> 44
A57: обменники24.рф | B57: 100 | C57: 70 | D57: 55 | E57: =IF(Config!$C$5="Минимальная",MIN(IF(B57:D57<>0,B57:D57,"")),MAX(B57,C57,D57)) -> 55
A58: ооостроймикс.рф | B58: 220 | C58: 95 | D58: 44 | E58: =IF(Config!$C$5="Минимальная",MIN(IF(B58:D58<>0,B58:D58,"")),MAX(B58,C58,D58)) -> 44
A59: офицеру.рф | B59: 245 | C59: 165 | D59: 58 | E59: =IF(Config!$C$5="Минимальная",MIN(IF(B59:D59<>0,B59:D59,"")),MAX(B59,C59,D59)) -> 58
A60: очумелец.рф | B60: 188 | C60: 103 | D60: 62 | E60: =IF(Config!$C$5="Минимальная",MIN(IF(B60:D60<>0,B60:D60,"")),MAX(B60,C60,D60)) -> 62
A61: пдпланета.рф | B61: 245 | C61: 165 | D61: 58 | E61: =IF(Config!$C$5="Минимальная",MIN(IF(B61:D61<>0,B61:D61,"")),MAX(B61,C61,D61)) -> 58
A62: плэн-чита.рф | B62: 220 | C62: 95 | D62: 44 | E62: =IF(Config!$C$5="Минимальная",MIN(IF(B62:D62<>0,B62:D62,"")),MAX(B62,C62,D62)) -> 44
A63: потолок-воронеж.рф | B63: 200 | C63: 100 | D63: 80 | E63: =IF(Config!$C$5="Минимальная",MIN(IF(B63:D63<>0,B63:D63,"")),MAX(B63,C63,D63)) -> 80
A64: почемуже.рф | B64: 160 | C64: 150 | D64: 100 | E64: =IF(Config!$C$5="Минимальная",MIN(IF(B64:D64<>0,B64:D64,"")),MAX(B64,C64,D64)) -> 100
A65: праздник-клаб.рф | B65: 180 | C65: 40 | D65: 50 | E65: =IF(Config!$C$5="Минимальная",MIN(IF(B65:D65<>0,B65:D65,"")),MAX(B65,C65,D65)) -> 40
A66: пропалатки.рф | B66: 500 | C66: 250 | D66: 110 | E66: =IF(Config!$C$5="Минимальная",MIN(IF(B66:D66<>0,B66:D66,"")),MAX(B66,C66,D66)) -> 110
A67: ребенокгений.рф | B67: 220 | C67: 50 | D67: 80 | E67: =IF(Config!$C$5="Минимальная",MIN(IF(B67:D67<>0,B67:D67,"")),MAX(B67,C67,D67)) -> 50
A68: родимдома.рф | B68: 240 | C68: 180 | D68: 70 | E68: =IF(Config!$C$5="Минимальная",MIN(IF(B68:D68<>0,B68:D68,"")),MAX(B68,C68,D68)) -> 70
A69: рэпер.рф | B69: 200 | C69: 150 | D69: 70 | E69: =IF(Config!$C$5="Минимальная",MIN(IF(B69:D69<>0,B69:D69,"")),MAX(B69,C69,D69)) -> 70
A70: р-просторы.рф | B70: 220 | C70: 95 | D70: 44 | E70: =IF(Config!$C$5="Минимальная",MIN(IF(B70:D70<>0,B70:D70,"")),MAX(B70,C70,D70)) -> 44
A71: самодельное.рф | B71: 200 | C71: 130 | D71: 120 | E71: =IF(Config!$C$5="Минимальная",MIN(IF(B71:D71<>0,B71:D71,"")),MAX(B71,C71,D71)) -> 120
A72: самые-горящие-туры.рф | B72: 250 | C72: 160 | D72: 118 | E72: =IF(Config!$C$5="Минимальная",MIN(IF(B72:D72<>0,B72:D72,"")),MAX(B72,C72,D72)) -> 118
A73: смипозиция.рф | B73: 220 | C73: 80 | D73: 80 | E73: =IF(Config!$C$5="Минимальная",MIN(IF(B73:D73<>0,B73:D73,"")),MAX(B73,C73,D73)) -> 80
A74: софт777.рф | B74: 245 | C74: 165 | D74: 58 | E74: =IF(Config!$C$5="Минимальная",MIN(IF(B74:D74<>0,B74:D74,"")),MAX(B74,C74,D74)) -> 58
A75: стартап2012.рф | B75: 220 | C75: 80 | D75: 80 | E75: =IF(Config!$C$5="Минимальная",MIN(IF(B75:D75<>0,B75:D75,"")),MAX(B75,C75,D75)) -> 80
A76: тамбов-откровения.рф | B76: 220 | C76: 95 | D76: 44 | E76: =IF(Config!$C$5="Минимальная",MIN(IF(B76:D76<>0,B76:D76,"")),MAX(B76,C76,D76)) -> 44
A77: твой-успех-екб.рф | B77: 100 | C77: 70 | D77: 50 | E77: =IF(Config!$C$5="Минимальная",MIN(IF(B77:D77<>0,B77:D77,"")),MAX(B77,C77,D77)) -> 50
A78: трутаон.рф | B78: 180 | C78: 70 | D78: 70 | E78: =IF(Config!$C$5="Минимальная",MIN(IF(B78:D78<>0,B78:D78,"")),MAX(B78,C78,D78)) -> 70
A79: удивимир.рф | B79: 500 | C79: 300 | D79: 400 | E79: =IF(Config!$C$5="Минимальная",MIN(IF(B79:D79<>0,B79:D79,"")),MAX(B79,C79,D79)) -> 300
A80: умный-малыш66.рф | B80: 245 | C80: 165 | D80: 58 | E80: =IF(Config!$C$5="Минимальная",MIN(IF(B80:D80<>0,B80:D80,"")),MAX(B80,C80,D80)) -> 58
A81: флористикаподарки.рф | B81: 220 | C81: 95 | D81: 44 | E81: =IF(Config!$C$5="Минимальная",MIN(IF(B81:D81<>0,B81:D81,"")),MAX(B81,C81,D81)) -> 44
A82: хабспиртпром.рф | B82: 220 | C82: 95 | D82: 44 | E82: =IF(Config!$C$5="Минимальная",MIN(IF(B82:D82<>0,B82:D82,"")),MAX(B82,C82,D82)) -> 44
A83: хорошаяжизнь.рф | B83: 220 | C83: 95 | D83: 44 | E83: =IF(Config!$C$5="Минимальная",MIN(IF(B83:D83<>0,B83:D83,"")),MAX(B83,C83,D83)) -> 44
A84: цит-пикалево.рф | B84: 220 | C84: 95 | D84: 44 | E84: =IF(Config!$C$5="Минимальная",MIN(IF(B84:D84<>0,B84:D84,"")),MAX(B84,C84,D84)) -> 44
A85: цпт45.рф | B85: 220 | C85: 80 | D85: 80 | E85: =IF(Config!$C$5="Минимальная",MIN(IF(B85:D85<>0,B85:D85,"")),MAX(B85,C85,D85)) -> 80
A86: шагаяпоканату.рф | B86: 220 | C86: 95 | D86: 44 | E86: =IF(Config!$C$5="Минимальная",MIN(IF(B86:D86<>0,B86:D86,"")),MAX(B86,C86,D86)) -> 44
A87: школа-86.рф | B87: 220 | C87: 95 | D87: 44 | E87: =IF(Config!$C$5="Минимальная",MIN(IF(B87:D87<>0,B87:D87,"")),MAX(B87,C87,D87)) -> 44
A88: экспедициячнм.рф | B88: 220 | C88: 95 | D88: 44 | E88: =IF(Config!$C$5="Минимальная",MIN(IF(B88:D88<>0,B88:D88,"")),MAX(B88,C88,D88)) -> 44
A89: эксперт-сибирь.рф | B89: 220 | C89: 95 | D89: 44 | E89: =IF(Config!$C$5="Минимальная",MIN(IF(B89:D89<>0,B89:D89,"")),MAX(B89,C89,D89)) -> 44
A90: эмальпосуда.рф | B90: 220 | C90: 95 | D90: 44 | E90: =IF(Config!$C$5="Минимальная",MIN(IF(B90:D90<>0,B90:D90,"")),MAX(B90,C90,D90)) -> 44
A91: энциклопедиябыта.рф | B91: 200 | C91: 150 | D91: 100 | E91: =IF(Config!$C$5="Минимальная",MIN(IF(B91:D91<>0,B91:D91,"")),MAX(B91,C91,D91)) -> 100
A92: яиспорт.рф | B92: 220 | C92: 95 | D92: 44 | E92: =IF(Config!$C$5="Минимальная",MIN(IF(B92:D92<>0,B92:D92,"")),MAX(B92,C92,D92)) -> 44
A93: яна-ужегова.рф | B93: 200 | C93: 50 | D93: 50 | E93: =IF(Config!$C$5="Минимальная",MIN(IF(B93:D93<>0,B93:D93,"")),MAX(B93,C93,D93)) -> 50
A94: 001mercury.ru | B94: 245 | C94: 165 | D94: 58 | E94: =IF(Config!$C$5="Минимальная",MIN(IF(B94:D94<>0,B94:D94,"")),MAX(B94,C94,D94)) -> 58
A95: 007.dmrexpress.ru | B95: 650 | C95: 800 | D95: 700 | E95: =IF(Config!$C$5="Минимальная",MIN(IF(B95:D95<>0,B95:D95,"")),MAX(B95,C95,D95)) -> 650
A96: 015.by | B96: 400 | C96: 399 | D96: 274 | E96: =IF(Config!$C$5="Минимальная",MIN(IF(B96:D96<>0,B96:D96,"")),MAX(B96,C96,D96)) -> 274
A97: 016.by | B97: 189 | C97: 149 | D97: 149 | E97: =IF(Config!$C$5="Минимальная",MIN(IF(B97:D97<>0,B97:D97,"")),MAX(B97,C97,D97)) -> 149
A98: 021.by | B98: 189 | C98: 149 | D98: 149 | E98: =IF(Config!$C$5="Минимальная",MIN(IF(B98:D98<>0,B98:D98,"")),MAX(B98,C98,D98)) -> 149
A99: 0214.by | B99: 380 | C99: 650 | D99: 230 | E99: =IF(Config!$C$5="Минимальная",MIN(IF(B99:D99<>0,B99:D99,"")),MAX(B99,C99,D99)) -> 230
A100: 022.by | B100: 189 | C100: 149 | D100: 149 | E100: =IF(Config!$C$5="Минимальная",MIN(IF(B100:D100<>0,B100:D100,"")),MAX(B100,C100,D100)) -> 149
A101: 023.by | B101: 189 | C101: 149 | D101: 149 | E101: =IF(Config!$C$5="Минимальная",MIN(IF(B101:D101<>0,B101:D101,"")),MAX(B101,C101,D101)) -> 149
A102: 02teplo.ru | B102: 800 | C102: 1300 | D102: 1050 | E102: =IF(Config!$C$5="Минимальная",MIN(IF(B102:D102<>0,B102:D102,"")),MAX(B102,C102,D102)) -> 800
A103: 02u.ru | B103: 120 | C103: 100 | D103: 60 | E103: =IF(Config!$C$5="Минимальная",MIN(IF(B103:D103<>0,B103:D103,"")),MAX(B103,C103,D103)) -> 60
A104: 0332.ua | B104: 549 | C104: 449 | D104: 249 | E104: =IF(Config!$C$5="Минимальная",MIN(IF(B104:D104<>0,B104:D104,"")),MAX(B104,C104,D104)) -> 249
A105: 0362.ua | B105: 349 | C105: 389 | D105: 249 | E105: =IF(Config!$C$5="Минимальная",MIN(IF(B105:D105<>0,B105:D105,"")),MAX(B105,C105,D105)) -> 249
A106: 0412.ua | B106: 399 | C106: 379 | D106: 309 | E106: =IF(Config!$C$5="Минимальная",MIN(IF(B106:D106<>0,B106:D106,"")),MAX(B106,C106,D106)) -> 309
A107: 0462.ua | B107: 249 | C107: 249 | D107: 149 | E107: =IF(Config!$C$5="Минимальная",MIN(IF(B107:D107<>0,B107:D107,"")),MAX(B107,C107,D107)) -> 149
A108: 048.ua | B108: 449 | C108: 519 | D108: 569 | E108: =IF(Config!$C$5="Минимальная",MIN(IF(B108:D108<>0,B108:D108,"")),MAX(B108,C108,D108)) -> 449
A109: 0512.com.ua | B109: 669 | C109: 569 | D109: 459 | E109: =IF(Config!$C$5="Минимальная",MIN(IF(B109:D109<>0,B109:D109,"")),MAX(B109,C109,D109)) -> 459
A110: 0522.ua | B110: 349 | C110: 389 | D110: 329 | E110: =IF(Config!$C$5="Минимальная",MIN(IF(B110:D110<>0,B110:D110,"")),MAX(B110,C110,D110)) -> 329
A111: 0532.ua | B111: 509 | C111: 339 | D111: 262 | E111: =IF(Config!$C$5="Минимальная",MIN(IF(B111:D111<>0,B111:D111,"")),MAX(B111,C111,D111)) -> 262
A112: 05366.com.ua | B112: 471 | C112: 207 | D112: 300 | E112: =IF(Config!$C$5="Минимальная",MIN(IF(B112:D112<>0,B112:D112,"")),MAX(B112,C112,D112)) -> 207
A113: 0542.ua | B113: 379 | C113: 399 | D113: 300 | E113: =IF(Config!$C$5="Минимальная",MIN(IF(B113:D113<>0,B113:D113,"")),MAX(B113,C113,D113)) -> 300
A114: 0552.ua | B114: 389 | C114: 409 | D114: 309 | E114: =IF(Config!$C$5="Минимальная",MIN(IF(B114:D114<>0,B114:D114,"")),MAX(B114,C114,D114)) -> 309
A115: 056.ua | B115: 659 | C115: 669 | D115: 429 | E115: =IF(Config!$C$5="Минимальная",MIN(IF(B115:D115<>0,B115:D115,"")),MAX(B115,C115,D115)) -> 429
A116: 0564.ua | B116: 509 | C116: 559 | D116: 359 | E116: =IF(Config!$C$5="Минимальная",MIN(IF(B116:D116<>0,B116:D116,"")),MAX(B116,C116,D116)) -> 359
A117: 057.ua | B117: 489 | C117: 449 | D117: 449 | E117: =IF(Config!$C$5="Минимальная",MIN(IF(B117:D117<>0,B117:D117,"")),MAX(B117,C117,D117)) -> 449
A118: 061.ua | B118: 719 | C118: 559 | D118: 419 | E118: =IF(Config!$C$5="Минимальная",MIN(IF(B118:D118<>0,B118:D118,"")),MAX(B118,C118,D118)) -> 419
A119: 06153.com.ua | B119: 442 | C119: 286 | D119: 270 | E119: =IF(Config!$C$5="Минимальная",MIN(IF(B119:D119<>0,B119:D119,"")),MAX(B119,C119,D119)) -> 270
A120: 062.ua | B120: 490 | C120: 450 | D120: 450 | E120: =IF(Config!$C$5="Минимальная",MIN(IF(B120:D120<>0,B120:D120,"")),MAX(B120,C120,D120)) -> 450
A121: 0623.com.ua | B121: 368 | C121: 368 | D121: 287 | E121: =IF(Config!$C$5="Минимальная",MIN(IF(B121:D121<>0,B121:D121,"")),MAX(B121,C121,D121)) -> 287
A122: 06239.com.ua | B122: 379 | C122: 379 | D122: 287 | E122: =IF(Config!$C$5="Минимальная",MIN(IF(B122:D122<>0,B122:D122,"")),MAX(B122,C122,D122)) -> 287
A123: 06242.com.ua | B123: 419 | C123: 519 | D123: 429 | E123: =IF(Config!$C$5="Минимальная",MIN(IF(B123:D123<>0,B123:D123,"")),MAX(B123,C123,D123)) -> 419
A124: 06252.com.ua | B124: 249 | C124: 269 | D124: 149 | E124: =IF(Config!$C$5="Минимальная",MIN(IF(B124:D124<>0,B124:D124,"")),MAX(B124,C124,D124)) -> 149
A125: 06254.in.ua | B125: 229 | C125: 149 | D125: 149 | E125: =IF(Config!$C$5="Минимальная",MIN(IF(B125:D125<>0,B125:D125,"")),MAX(B125,C125,D125)) -> 149
A126: 06255.com.ua | B126: 189 | C126: 149 | D126: 149 | E126: =IF(Config!$C$5="Минимальная",MIN(IF(B126:D126<>0,B126:D126,"")),MAX(B126,C126,D126)) -> 149
A127: 06257.in.ua | B127: 189 | C127: 149 | D127: 149 | E127: =IF(Config!$C$5="Минимальная",MIN(IF(B127:D127<>0,B127:D127,"")),MAX(B127,C127,D127)) -> 149
A128: 0629.com.ua | B128: 879 | C128: 859 | D128: 679 | E128: =IF(Config!$C$5="Минимальная",MIN(IF(B128:D128<>0,B128:D128,"")),MAX(B128,C128,D128)) -> 679
A129: 0642.ua | B129: 579 | C129: 709 | D129: 569 | E129: =IF(Config!$C$5="Минимальная",MIN(IF(B129:D129<>0,B129:D129,"")),MAX(B129,C129,D129)) -> 569
A130: 06432.in.ua | B130: 249 | C130: 249 | D130: 149 | E130: =IF(Config!$C$5="Минимальная",MIN(IF(B130:D130<>0,B130:D130,"")),MAX(B130,C130,D130)) -> 149
A131: 0652.ua | B131: 489 | C131: 549 | D131: 509 | E131: =IF(Config!$C$5="Минимальная",MIN(IF(B131:D131<>0,B131:D131,"")),MAX(B131,C131,D131)) -> 489
A132: 0654.com.ua | B132: 489 | C132: 429 | D132: 449 | E132: =IF(Config!$C$5="Минимальная",MIN(IF(B132:D132<>0,B132:D132,"")),MAX(B132,C132,D132)) -> 429
A133: 06562.com.ua | B133: 189 | C133: 149 | D133: 149 | E133: =IF(Config!$C$5="Минимальная",MIN(IF(B133:D133<>0,B133:D133,"")),MAX(B133,C133,D133)) -> 149
A134: 0692.ua | B134: 449 | C134: 549 | D134: 419 | E134: =IF(Config!$C$5="Минимальная",MIN(IF(B134:D134<>0,B134:D134,"")),MAX(B134,C134,D134)) -> 419
A135: 09-news.ru | B135: 420 | C135: 550 | D135: 310 | E135: =IF(Config!$C$5="Минимальная",MIN(IF(B135:D135<>0,B135:D135,"")),MAX(B135,C135,D135)) -> 310
A136: 0chan.ru | B136: 374 | C136: 200 | D136: 109 | E136: =IF(Config!$C$5="Минимальная",MIN(IF(B136:D136<>0,B136:D136,"")),MAX(B136,C136,D136)) -> 109
A137: 0chen-interesno.livejournal.com | B137: 500 | C137: 175 | D137: 300 | E137: =IF(Config!$C$5="Минимальная",MIN(IF(B137:D137<>0,B137:D137,"")),MAX(B137,C137,D137)) -> 175
A138: 0planete.ru | B138: 180 | C138: 50 | D138: 50 | E138: =IF(Config!$C$5="Минимальная",MIN(IF(B138:D138<>0,B138:D138,"")),MAX(B138,C138,D138)) -> 50
A139: 0sporte.ru | B139: 330 | C139: 200 | D139: 120 | E139: =IF(Config!$C$5="Минимальная",MIN(IF(B139:D139<>0,B139:D139,"")),MAX(B139,C139,D139)) -> 120
A140: 0x0c.ru | B140: 180 | C140: 49 | D140: 29 | E140: =IF(Config!$C$5="Минимальная",MIN(IF(B140:D140<>0,B140:D140,"")),MAX(B140,C140,D140)) -> 29
A141: 1жж.рф | B141: 150 | C141: 25 | D141: 50 | E141: =IF(Config!$C$5="Минимальная",MIN(IF(B141:D141<>0,B141:D141,"")),MAX(B141,C141,D141)) -> 25
A142: 1рав.рф | B142: 190 | C142: 80 | D142: 70 | E142: =IF(Config!$C$5="Минимальная",MIN(IF(B142:D142<>0,B142:D142,"")),MAX(B142,C142,D142)) -> 70
A143: 1-elektrostal.ru | B143: 550 | C143: 800 | D143: 380 | E143: =IF(Config!$C$5="Минимальная",MIN(IF(B143:D143<>0,B143:D143,"")),MAX(B143,C143,D143)) -> 380
A144: 1-film-online.com | B144: 650 | C144: 0 | D144: 320 | E144: =IF(Config!$C$5="Минимальная",MIN(IF(B144:D144<>0,B144:D144,"")),MAX(B144,C144,D144)) -> 320
A145: 100-auto.com | B145: 70 | C145: 25 | D145: 21 | E145: =IF(Config!$C$5="Минимальная",MIN(IF(B145:D145<>0,B145:D145,"")),MAX(B145,C145,D145)) -> 21
A146: 100.ua | B146: 160 | C146: 260 | D146: 130 | E146: =IF(Config!$C$5="Минимальная",MIN(IF(B146:D146<>0,B146:D146,"")),MAX(B146,C146,D146)) -> 130
A147: 10000subscribers.ru | B147: 231 | C147: 123 | D147: 30 | E147: =IF(Config!$C$5="Минимальная",MIN(IF(B147:D147<>0,B147:D147,"")),MAX(B147,C147,D147)) -> 30
A148: 1000designs.ru | B148: 290 | C148: 550 | D148: 250 | E148: =IF(Config!$C$5="Минимальная",MIN(IF(B148:D148<>0,B148:D148,"")),MAX(B148,C148,D148)) -> 250
A149: 1000proektov.ru | B149: 378 | C149: 298 | D149: 278 | E149: =IF(Config!$C$5="Минимальная",MIN(IF(B149:D149<>0,B149:D149,"")),MAX(B149,C149,D149)) -> 278
A150: 1001-sovetov.ru | B150: 100 | C150: 70 | D150: 25 | E150: =IF(Config!$C$5="Минимальная",MIN(IF(B150:D150<>0,B150:D150,"")),MAX(B150,C150,D150)) -> 25
A151: 1001eda.com | B151: 6000 | C151: 6000 | D151: 2940 | E151: =IF(Config!$C$5="Минимальная",MIN(IF(B151:D151<>0,B151:D151,"")),MAX(B151,C151,D151)) -> 2940
A152: 1001fact.info | B152: 225 | C152: 160 | D152: 120 | E152: =IF(Config!$C$5="Минимальная",MIN(IF(B152:D152<>0,B152:D152,"")),MAX(B152,C152,D152)) -> 120
A153: 1001istoria.livejournal.com | B153: 850 | C153: 550 | D153: 115 | E153: =IF(Config!$C$5="Минимальная",MIN(IF(B153:D153<>0,B153:D153,"")),MAX(B153,C153,D153)) -> 115
A154: 1001recept.info | B154: 50 | C154: 30 | D154: 15 | E154: =IF(Config!$C$5="Минимальная",MIN(IF(B154:D154<>0,B154:D154,"")),MAX(B154,C154,D154)) -> 15
A155: 100500.in.ua | B155: 160 | C155: 60 | D155: 60 | E155: =IF(Config!$C$5="Минимальная",MIN(IF(B155:D155<>0,B155:D155,"")),MAX(B155,C155,D155)) -> 60
A156: 100500domov.ru | B156: 290 | C156: 650 | D156: 550 | E156: =IF(Config!$C$5="Минимальная",MIN(IF(B156:D156<>0,B156:D156,"")),MAX(B156,C156,D156)) -> 290
A157: 100jelanii.ru | B157: 2000 | C157: 3000 | D157: 1000 | E157: =IF(Config!$C$5="Минимальная",MIN(IF(B157:D157<>0,B157:D157,"")),MAX(B157,C157,D157)) -> 1000
A158: 100menu.com | B158: 220 | C158: 160 | D158: 110 | E158: =IF(Config!$C$5="Минимальная",MIN(IF(B158:D158<>0,B158:D158,"")),MAX(B158,C158,D158)) -> 110
A159: 100player.ru | B159: 190 | C159: 100 | D159: 75 | E159: =IF(Config!$C$5="Минимальная",MIN(IF(B159:D159<>0,B159:D159,"")),MAX(B159,C159,D159)) -> 75
A160: 100sharov.ru | B160: 220 | C160: 95 | D160: 44 | E160: =IF(Config!$C$5="Минимальная",MIN(IF(B160:D160<>0,B160:D160,"")),MAX(B160,C160,D160)) -> 44
A161: 100svoih.ru | B161: 220 | C161: 95 | D161: 44 | E161: =IF(Config!$C$5="Минимальная",MIN(IF(B161:D161<>0,B161:D161,"")),MAX(B161,C161,D161)) -> 44
A162: 101recept.net | B162: 250 | C162: 150 | D162: 120 | E162: =IF(Config!$C$5="Минимальная",MIN(IF(B162:D162<>0,B162:D162,"")),MAX(B162,C162,D162)) -> 120
A163: 1071g.ru | B163: 235 | C163: 235 | D163: 199 | E163: =IF(Config!$C$5="Минимальная",MIN(IF(B163:D163<>0,B163:D163,"")),MAX(B163,C163,D163)) -> 199
A164: 10cars.ru | B164: 250 | C164: 250 | D164: 250 | E164: =IF(Config!$C$5="Минимальная",MIN(IF(B164:D164<>0,B164:D164,"")),MAX(B164,C164,D164)) -> 250
A165: 111999.ru | B165: 900 | C165: 500 | D165: 350 | E165: =IF(Config!$C$5="Минимальная",MIN(IF(B165:D165<>0,B165:D165,"")),MAX(B165,C165,D165)) -> 350
A166: 1181ds.ru | B166: 220 | C166: 95 | D166: 44 | E166: =IF(Config!$C$5="Минимальная",MIN(IF(B166:D166<>0,B166:D166,"")),MAX(B166,C166,D166)) -> 44
A167: 123-box.ru | B167: 0 | C167: 0 | D167: 100 | E167: =IF(Config!$C$5="Минимальная",MIN(IF(B167:D167<>0,B167:D167,"")),MAX(B167,C167,D167)) -> 100
A168: 123ks.ru | B168: 250 | C168: 170 | D168: 130 | E168: =IF(Config!$C$5="Минимальная",MIN(IF(B168:D168<>0,B168:D168,"")),MAX(B168,C168,D168)) -> 130
A169: 12m-ekolife.ru | B169: 220 | C169: 95 | D169: 44 | E169: =IF(Config!$C$5="Минимальная",MIN(IF(B169:D169<>0,B169:D169,"")),MAX(B169,C169,D169)) -> 44
A170: 12ruble.livejournal.com | B170: 50 | C170: 30 | D170: 25 | E170: =IF(Config!$C$5="Минимальная",MIN(IF(B170:D170<>0,B170:D170,"")),MAX(B170,C170,D170)) -> 25
A171: 1323.ru | B171: 220 | C171: 95 | D171: 44 | E171: =IF(Config!$C$5="Минимальная",MIN(IF(B171:D171<>0,B171:D171,"")),MAX(B171,C171,D171)) -> 44
A172: 134.su | B172: 410 | C172: 700 | D172: 320 | E172: =IF(Config!$C$5="Минимальная",MIN(IF(B172:D172<>0,B172:D172,"")),MAX(B172,C172,D172)) -> 320
A173: 13doors.ru | B173: 300 | C173: 200 | D173: 150 | E173: =IF(Config!$C$5="Минимальная",MIN(IF(B173:D173<>0,B173:D173,"")),MAX(B173,C173,D173)) -> 150
A174: 13vainamoinen.livejournal.com | B174: 500 | C174: 450 | D174: 120 | E174: =IF(Config!$C$5="Минимальная",MIN(IF(B174:D174<>0,B174:D174,"")),MAX(B174,C174,D174)) -> 120
A175: 15-news.ru | B175: 550 | C175: 550 | D175: 300 | E175: =IF(Config!$C$5="Минимальная",MIN(IF(B175:D175<>0,B175:D175,"")),MAX(B175,C175,D175)) -> 300
A176: 153chel.ru | B176: 220 | C176: 95 | D176: 44 | E176: =IF(Config!$C$5="Минимальная",MIN(IF(B176:D176<>0,B176:D176,"")),MAX(B176,C176,D176)) -> 44
A177: 155skidok.ru | B177: 245 | C177: 165 | D177: 68 | E177: =IF(Config!$C$5="Минимальная",MIN(IF(B177:D177<>0,B177:D177,"")),MAX(B177,C177,D177)) -> 68
A178: 164.ru | B178: 1700 | C178: 2050 | D178: 1750 | E178: =IF(Config!$C$5="Минимальная",MIN(IF(B178:D178<>0,B178:D178,"")),MAX(B178,C178,D178)) -> 1700
A179: 168school.ru | B179: 240 | C179: 170 | D179: 30 | E179: =IF(Config!$C$5="Минимальная",MIN(IF(B179:D179<>0,B179:D179,"")),MAX(B179,C179,D179)) -> 30
A180: 16bit.fm | B180: 440 | C180: 600 | D180: 550 | E180: =IF(Config!$C$5="Минимальная",MIN(IF(B180:D180<>0,B180:D180,"")),MAX(B180,C180,D180)) -> 440
A181: 16vik09.livejournal.com | B181: 600 | C181: 400 | D181: 200 | E181: =IF(Config!$C$5="Минимальная",MIN(IF(B181:D181<>0,B181:D181,"")),MAX(B181,C181,D181)) -> 200
A182: 183mz.ru | B182: 220 | C182: 95 | D182: 44 | E182: =IF(Config!$C$5="Минимальная",MIN(IF(B182:D182<>0,B182:D182,"")),MAX(B182,C182,D182)) -> 44
A183: 1865.msk.ru | B183: 240 | C183: 205 | D183: 115 | E183: =IF(Config!$C$5="Минимальная",MIN(IF(B183:D183<>0,B183:D183,"")),MAX(B183,C183,D183)) -> 115
A184: 192khz.ru | B184: 220 | C184: 95 | D184: 44 | E184: =IF(Config!$C$5="Минимальная",MIN(IF(B184:D184<>0,B184:D184,"")),MAX(B184,C184,D184)) -> 44
A185: 19minjust.ru | B185: 149 | C185: 89 | D185: 49 | E185: =IF(Config!$C$5="Минимальная",MIN(IF(B185:D185<>0,B185:D185,"")),MAX(B185,C185,D185)) -> 49
A186: 19rus.info | B186: 900 | C186: 900 | D186: 900 | E186: =IF(Config!$C$5="Минимальная",MIN(IF(B186:D186<>0,B186:D186,"")),MAX(B186,C186,D186)) -> 900
A187: 19viv69.livejournal.com | B187: 2500 | C187: 1050 | D187: 750 | E187: =IF(Config!$C$5="Минимальная",MIN(IF(B187:D187<>0,B187:D187,"")),MAX(B187,C187,D187)) -> 750
A188: 1alizee.ru | B188: 195 | C188: 95 | D188: 95 | E188: =IF(Config!$C$5="Минимальная",MIN(IF(B188:D188<>0,B188:D188,"")),MAX(B188,C188,D188)) -> 95
A189: 1bizz.ru | B189: 500 | C189: 350 | D189: 200 | E189: =IF(Config!$C$5="Минимальная",MIN(IF(B189:D189<>0,B189:D189,"")),MAX(B189,C189,D189)) -> 200
A190: 1brick.ru | B190: 123 | C190: 80 | D190: 55 | E190: =IF(Config!$C$5="Минимальная",MIN(IF(B190:D190<>0,B190:D190,"")),MAX(B190,C190,D190)) -> 55
A191: 1c-vlg.ru | B191: 220 | C191: 95 | D191: 44 | E191: =IF(Config!$C$5="Минимальная",MIN(IF(B191:D191<>0,B191:D191,"")),MAX(B191,C191,D191)) -> 44
A192: 1c-vrn.ru | B192: 220 | C192: 95 | D192: 44 | E192: =IF(Config!$C$5="Минимальная",MIN(IF(B192:D192<>0,B192:D192,"")),MAX(B192,C192,D192)) -> 44
A193: 1capital.ru | B193: 350 | C193: 350 | D193: 350 | E193: =IF(Config!$C$5="Минимальная",MIN(IF(B193:D193<>0,B193:D193,"")),MAX(B193,C193,D193)) -> 350
A194: 1crimeatour.com | B194: 100 | C194: 30 | D194: 24 | E194: =IF(Config!$C$5="Минимальная",MIN(IF(B194:D194<>0,B194:D194,"")),MAX(B194,C194,D194)) -> 24
A195: 1csr.ru | B195: 230 | C195: 150 | D195: 95 | E195: =IF(Config!$C$5="Минимальная",MIN(IF(B195:D195<>0,B195:D195,"")),MAX(B195,C195,D195)) -> 95
A196: 1cworld.com | B196: 220 | C196: 95 | D196: 44 | E196: =IF(Config!$C$5="Минимальная",MIN(IF(B196:D196<>0,B196:D196,"")),MAX(B196,C196,D196)) -> 44
A197: 1dnevnik-ufa.ru | B197: 201 | C197: 121 | D197: 30 | E197: =IF(Config!$C$5="Минимальная",MIN(IF(B197:D197<>0,B197:D197,"")),MAX(B197,C197,D197)) -> 30
A198: 1farmingsimulator.ru | B198: 200 | C198: 121 | D198: 74 | E198: =IF(Config!$C$5="Минимальная",MIN(IF(B198:D198<>0,B198:D198,"")),MAX(B198,C198,D198)) -> 74
A199: 1gl-chel.ru | B199: 220 | C199: 95 | D199: 44 | E199: =IF(Config!$C$5="Минимальная",MIN(IF(B199:D199<>0,B199:D199,"")),MAX(B199,C199,D199)) -> 44
A200: 1infobiznes.ru | B200: 220 | C200: 95 | D200: 44 | E200: =IF(Config!$C$5="Минимальная",MIN(IF(B200:D200<>0,B200:D200,"")),MAX(B200,C200,D200)) -> 44
... 15888 more rows

Sheet PR.Sape
A1: URL | B1: Цена новости | C1: Цена статьи | D1: Цена в архиве | E1: Цена обзора | F1: Формула
A2: акак.рф | B2: 158.89 | C2: 140.56 | D2: 244.44 | E2: 244.44 | F2: =IF(Config!$C$6="Минимальная",MIN(IF(B2:E2<>0,B2:E2,"")),MAX(B2,C2,D2,E2)) -> 140.56
A3: аукцион74.рф | B3: 366.67 | C3: 244.44 | D3: 244.44 | E3: 366.67 | F3: =IF(Config!$C$6="Минимальная",MIN(IF(B3:E3<>0,B3:E3,"")),MAX(B3,C3,D3,E3)) -> 244.44
A4: байтрик.рф | B4: 48.89 | C4: 116.11 | D4: 299.44 | E4: 268.89 | F4: =IF(Config!$C$6="Минимальная",MIN(IF(B4:E4<>0,B4:E4,"")),MAX(B4,C4,D4,E4)) -> 48.89
A5: бегущий.рф | B5: 61.11 | C5: 97.78 | D5: 61.11 | E5: 146.67 | F5: =IF(Config!$C$6="Минимальная",MIN(IF(B5:E5<>0,B5:E5,"")),MAX(B5,C5,D5,E5)) -> 61.11
A6: будь-здоров-не-кашляй.рф | B6: 171.11 | C6: 244.44 | D6: 171.11 | E6: 366.67 | F6: =IF(Config!$C$6="Минимальная",MIN(IF(B6:E6<>0,B6:E6,"")),MAX(B6,C6,D6,E6)) -> 171.11
A7: вилла-фортуна.рф | B7: 107.56 | C7: 134.44 | D7: 0 | E7: 267.67 | F7: =IF(Config!$C$6="Минимальная",MIN(IF(B7:E7<>0,B7:E7,"")),MAX(B7,C7,D7,E7)) -> 107.56
A8: воронеж-кухня.рф | B8: 48.89 | C8: 201.67 | D8: 366.67 | E8: 299.44 | F8: =IF(Config!$C$6="Минимальная",MIN(IF(B8:E8<>0,B8:E8,"")),MAX(B8,C8,D8,E8)) -> 48.89
A9: выберипетербург.рф | B9: 48.89 | C9: 201.67 | D9: 366.67 | E9: 299.44 | F9: =IF(Config!$C$6="Минимальная",MIN(IF(B9:E9<>0,B9:E9,"")),MAX(B9,C9,D9,E9)) -> 48.89
A10: выбираюсочи.рф | B10: 48.89 | C10: 116.11 | D10: 299.44 | E10: 268.89 | F10: =IF(Config!$C$6="Минимальная",MIN(IF(B10:E10<>0,B10:E10,"")),MAX(B10,C10,D10,E10)) -> 48.89
A11: дачаткачева.рф | B11: 117.94 | C11: 213.89 | D11: 427.78 | E11: 336.11 | F11: =IF(Config!$C$6="Минимальная",MIN(IF(B11:E11<>0,B11:E11,"")),MAX(B11,C11,D11,E11)) -> 117.94
A12: двери-ннов.рф | B12: 48.89 | C12: 116.11 | D12: 299.44 | E12: 268.89 | F12: =IF(Config!$C$6="Минимальная",MIN(IF(B12:E12<>0,B12:E12,"")),MAX(B12,C12,D12,E12)) -> 48.89
A13: дитис24.рф | B13: 48.89 | C13: 116.11 | D13: 299.44 | E13: 268.89 | F13: =IF(Config!$C$6="Минимальная",MIN(IF(B13:E13<>0,B13:E13,"")),MAX(B13,C13,D13,E13)) -> 48.89
A14: доктор-эндокринолог.рф | B14: 64.78 | C14: 201.67 | D14: 366.67 | E14: 299.44 | F14: =IF(Config!$C$6="Минимальная",MIN(IF(B14:E14<>0,B14:E14,"")),MAX(B14,C14,D14,E14)) -> 64.78
A15: домаизбруса24.рф | B15: 48.89 | C15: 201.67 | D15: 366.67 | E15: 299.44 | F15: =IF(Config!$C$6="Минимальная",MIN(IF(B15:E15<>0,B15:E15,"")),MAX(B15,C15,D15,E15)) -> 48.89
A16: жнвлп.рф | B16: 127.11 | C16: 174.78 | D16: 0 | E16: 267.67 | F16: =IF(Config!$C$6="Минимальная",MIN(IF(B16:E16<>0,B16:E16,"")),MAX(B16,C16,D16,E16)) -> 127.11
A17: зазсаратов.рф | B17: 733.33 | C17: 611.11 | D17: 611.11 | E17: 855.56 | F17: =IF(Config!$C$6="Минимальная",MIN(IF(B17:E17<>0,B17:E17,"")),MAX(B17,C17,D17,E17)) -> 611.11
A18: интеркамень.рф | B18: 53.78 | C18: 116.11 | D18: 299.44 | E18: 268.89 | F18: =IF(Config!$C$6="Минимальная",MIN(IF(B18:E18<>0,B18:E18,"")),MAX(B18,C18,D18,E18)) -> 53.78
A19: ислам-россия.рф | B19: 53.17 | C19: 116.11 | D19: 299.44 | E19: 268.89 | F19: =IF(Config!$C$6="Минимальная",MIN(IF(B19:E19<>0,B19:E19,"")),MAX(B19,C19,D19,E19)) -> 53.17
A20: каксделатьсвоимируками.рф | B20: 231 | C20: 231 | D20: 231 | E20: 231 | F20: =IF(Config!$C$6="Минимальная",MIN(IF(B20:E20<>0,B20:E20,"")),MAX(B20,C20,D20,E20)) -> 231
A21: кафе-эдем.рф | B21: 48.89 | C21: 116.11 | D21: 299.44 | E21: 268.89 | F21: =IF(Config!$C$6="Минимальная",MIN(IF(B21:E21<>0,B21:E21,"")),MAX(B21,C21,D21,E21)) -> 48.89
A22: кинотанец.рф | B22: 48.89 | C22: 116.11 | D22: 299.44 | E22: 268.89 | F22: =IF(Config!$C$6="Минимальная",MIN(IF(B22:E22<>0,B22:E22,"")),MAX(B22,C22,D22,E22)) -> 48.89
A23: кмв-ремонт.рф | B23: 122.22 | C23: 122.22 | D23: 122.22 | E23: 122.22 | F23: =IF(Config!$C$6="Минимальная",MIN(IF(B23:E23<>0,B23:E23,"")),MAX(B23,C23,D23,E23)) -> 122.22
A24: красносельск-арм.рф | B24: 122.22 | C24: 61.11 | D24: 122.22 | E24: 366.67 | F24: =IF(Config!$C$6="Минимальная",MIN(IF(B24:E24<>0,B24:E24,"")),MAX(B24,C24,D24,E24)) -> 61.11
A25: круизыпобайкалу.рф | B25: 48.89 | C25: 116.11 | D25: 299.44 | E25: 268.89 | F25: =IF(Config!$C$6="Минимальная",MIN(IF(B25:E25<>0,B25:E25,"")),MAX(B25,C25,D25,E25)) -> 48.89
A26: лекарственные-растения.рф | B26: 91.67 | C26: 122.22 | D26: 73.33 | E26: 227.33 | F26: =IF(Config!$C$6="Минимальная",MIN(IF(B26:E26<>0,B26:E26,"")),MAX(B26,C26,D26,E26)) -> 73.33
A27: лучший.su | B27: 144.22 | C27: 144.22 | D27: 144.22 | E27: 299.44 | F27: =IF(Config!$C$6="Минимальная",MIN(IF(B27:E27<>0,B27:E27,"")),MAX(B27,C27,D27,E27)) -> 144.22
A28: малое-предпринимательство.рф | B28: 244.44 | C28: 488.89 | D28: 183.33 | E28: 733.33 | F28: =IF(Config!$C$6="Минимальная",MIN(IF(B28:E28<>0,B28:E28,"")),MAX(B28,C28,D28,E28)) -> 183.33
A29: мастер-портал.рф | B29: 171.11 | C29: 122.22 | D29: 150.33 | E29: 305.56 | F29: =IF(Config!$C$6="Минимальная",MIN(IF(B29:E29<>0,B29:E29,"")),MAX(B29,C29,D29,E29)) -> 122.22
A30: мегавебстудия.рф | B30: 48.89 | C30: 116.11 | D30: 299.44 | E30: 268.89 | F30: =IF(Config!$C$6="Минимальная",MIN(IF(B30:E30<>0,B30:E30,"")),MAX(B30,C30,D30,E30)) -> 48.89
A31: мегадикобраз.рф | B31: 53.78 | C31: 116.11 | D31: 299.44 | E31: 268.89 | F31: =IF(Config!$C$6="Минимальная",MIN(IF(B31:E31<>0,B31:E31,"")),MAX(B31,C31,D31,E31)) -> 53.78
A32: мегасейф.рф | B32: 48.89 | C32: 116.11 | D32: 299.44 | E32: 268.89 | F32: =IF(Config!$C$6="Минимальная",MIN(IF(B32:E32<>0,B32:E32,"")),MAX(B32,C32,D32,E32)) -> 48.89
A33: мегасумки.рф | B33: 48.89 | C33: 116.11 | D33: 299.44 | E33: 268.89 | F33: =IF(Config!$C$6="Минимальная",MIN(IF(B33:E33<>0,B33:E33,"")),MAX(B33,C33,D33,E33)) -> 48.89
A34: медынин.рф | B34: 48.89 | C34: 116.11 | D34: 299.44 | E34: 268.89 | F34: =IF(Config!$C$6="Минимальная",MIN(IF(B34:E34<>0,B34:E34,"")),MAX(B34,C34,D34,E34)) -> 48.89
A35: минисадик66.рф | B35: 48.89 | C35: 116.11 | D35: 299.44 | E35: 268.89 | F35: =IF(Config!$C$6="Минимальная",MIN(IF(B35:E35<>0,B35:E35,"")),MAX(B35,C35,D35,E35)) -> 48.89
A36: моймассаж.рф | B36: 53.78 | C36: 116.11 | D36: 299.44 | E36: 268.89 | F36: =IF(Config!$C$6="Минимальная",MIN(IF(B36:E36<>0,B36:E36,"")),MAX(B36,C36,D36,E36)) -> 53.78
A37: м-фурнитура.рф | B37: 244.44 | C37: 183.33 | D37: 183.33 | E37: 305.56 | F37: =IF(Config!$C$6="Минимальная",MIN(IF(B37:E37<>0,B37:E37,"")),MAX(B37,C37,D37,E37)) -> 183.33
A38: нашамамакрасноярск.рф | B38: 53.78 | C38: 116.11 | D38: 299.44 | E38: 268.89 | F38: =IF(Config!$C$6="Минимальная",MIN(IF(B38:E38<>0,B38:E38,"")),MAX(B38,C38,D38,E38)) -> 53.78
A39: нашедело.рф | B39: 53.78 | C39: 26.89 | D39: 0 | E39: 67.22 | F39: =IF(Config!$C$6="Минимальная",MIN(IF(B39:E39<>0,B39:E39,"")),MAX(B39,C39,D39,E39)) -> 26.89
A40: наш.com.ua | B40: 182.11 | C40: 183.33 | D40: 182.11 | E40: 242 | F40: =IF(Config!$C$6="Минимальная",MIN(IF(B40:E40<>0,B40:E40,"")),MAX(B40,C40,D40,E40)) -> 182.11
A41: на-диету.рф | B41: 141.78 | C41: 166.22 | D41: 0 | E41: 190.67 | F41: =IF(Config!$C$6="Минимальная",MIN(IF(B41:E41<>0,B41:E41,"")),MAX(B41,C41,D41,E41)) -> 141.78
A42: новостипланеты.рф | B42: 107.56 | C42: 134.44 | D42: 0 | E42: 267.67 | F42: =IF(Config!$C$6="Минимальная",MIN(IF(B42:E42<>0,B42:E42,"")),MAX(B42,C42,D42,E42)) -> 107.56
A43: овир.рф | B43: 427.78 | C43: 305.56 | D43: 305.56 | E43: 488.89 | F43: =IF(Config!$C$6="Минимальная",MIN(IF(B43:E43<>0,B43:E43,"")),MAX(B43,C43,D43,E43)) -> 305.56
A44: отдых-в-крыму.in.ua | B44: 200.44 | C44: 267.67 | D44: 0 | E44: 267.67 | F44: =IF(Config!$C$6="Минимальная",MIN(IF(B44:E44<>0,B44:E44,"")),MAX(B44,C44,D44,E44)) -> 200.44
A45: офицеру.рф | B45: 51.33 | C45: 201.67 | D45: 366.67 | E45: 299.44 | F45: =IF(Config!$C$6="Минимальная",MIN(IF(B45:E45<>0,B45:E45,"")),MAX(B45,C45,D45,E45)) -> 51.33
A46: о-женском.рф | B46: 200.44 | C46: 267.67 | D46: 0 | E46: 400.89 | F46: =IF(Config!$C$6="Минимальная",MIN(IF(B46:E46<>0,B46:E46,"")),MAX(B46,C46,D46,E46)) -> 200.44
A47: пдпланета.рф | B47: 48.89 | C47: 201.67 | D47: 366.67 | E47: 299.44 | F47: =IF(Config!$C$6="Минимальная",MIN(IF(B47:E47<>0,B47:E47,"")),MAX(B47,C47,D47,E47)) -> 48.89
A48: перевалы.рф | B48: 97.78 | C48: 97.78 | D48: 97.78 | E48: 146.67 | F48: =IF(Config!$C$6="Минимальная",MIN(IF(B48:E48<>0,B48:E48,"")),MAX(B48,C48,D48,E48)) -> 97.78
A49: плитковед.рф | B49: 182.11 | C49: 194.33 | D49: 183.33 | E49: 292.11 | F49: =IF(Config!$C$6="Минимальная",MIN(IF(B49:E49<>0,B49:E49,"")),MAX(B49,C49,D49,E49)) -> 182.11
A50: плэн-чита.рф | B50: 48.89 | C50: 116.11 | D50: 299.44 | E50: 268.89 | F50: =IF(Config!$C$6="Минимальная",MIN(IF(B50:E50<>0,B50:E50,"")),MAX(B50,C50,D50,E50)) -> 48.89
A51: посудадляресторана.рф | B51: 244.44 | C51: 0 | D51: 0 | E51: 0 | F51: =IF(Config!$C$6="Минимальная",MIN(IF(B51:E51<>0,B51:E51,"")),MAX(B51,C51,D51,E51)) -> 244.44
A52: потолок.нет.рф | B52: 200.44 | C52: 227.33 | D52: 0 | E52: 334.89 | F52: =IF(Config!$C$6="Минимальная",MIN(IF(B52:E52<>0,B52:E52,"")),MAX(B52,C52,D52,E52)) -> 200.44
A53: почемуже.рф | B53: 122.22 | C53: 134.44 | D53: 171.11 | E53: 256.67 | F53: =IF(Config!$C$6="Минимальная",MIN(IF(B53:E53<>0,B53:E53,"")),MAX(B53,C53,D53,E53)) -> 122.22
A54: развлекай.рф | B54: 116.11 | C54: 116.11 | D54: 85.56 | E54: 226.11 | F54: =IF(Config!$C$6="Минимальная",MIN(IF(B54:E54<>0,B54:E54,"")),MAX(B54,C54,D54,E54)) -> 85.56
A55: рэпер.рф | B55: 94.11 | C55: 200.44 | D55: 0 | E55: 267.67 | F55: =IF(Config!$C$6="Минимальная",MIN(IF(B55:E55<>0,B55:E55,"")),MAX(B55,C55,D55,E55)) -> 94.11
A56: р-просторы.рф | B56: 48.89 | C56: 116.11 | D56: 299.44 | E56: 268.89 | F56: =IF(Config!$C$6="Минимальная",MIN(IF(B56:E56<>0,B56:E56,"")),MAX(B56,C56,D56,E56)) -> 48.89
A57: самодельное.рф | B57: 161.33 | C57: 174.78 | D57: 0 | E57: 267.67 | F57: =IF(Config!$C$6="Минимальная",MIN(IF(B57:E57<>0,B57:E57,"")),MAX(B57,C57,D57,E57)) -> 161.33
A58: селобурятии.рф | B58: 53.78 | C58: 116.11 | D58: 299.44 | E58: 268.89 | F58: =IF(Config!$C$6="Минимальная",MIN(IF(B58:E58<>0,B58:E58,"")),MAX(B58,C58,D58,E58)) -> 53.78
A59: спайдеры.рф | B59: 391.11 | C59: 488.89 | D59: 305.56 | E59: 733.33 | F59: =IF(Config!$C$6="Минимальная",MIN(IF(B59:E59<>0,B59:E59,"")),MAX(B59,C59,D59,E59)) -> 305.56
A60: спастинастю.рф | B60: 53.78 | C60: 116.11 | D60: 299.44 | E60: 268.89 | F60: =IF(Config!$C$6="Минимальная",MIN(IF(B60:E60<>0,B60:E60,"")),MAX(B60,C60,D60,E60)) -> 53.78
A61: спб2020.рф | B61: 53.78 | C61: 116.11 | D61: 299.44 | E61: 268.89 | F61: =IF(Config!$C$6="Минимальная",MIN(IF(B61:E61<>0,B61:E61,"")),MAX(B61,C61,D61,E61)) -> 53.78
A62: стартап2012.рф | B62: 107.56 | C62: 107.56 | D62: 0 | E62: 294.56 | F62: =IF(Config!$C$6="Минимальная",MIN(IF(B62:E62<>0,B62:E62,"")),MAX(B62,C62,D62,E62)) -> 107.56
A63: тамбов-откровения.рф | B63: 48.89 | C63: 116.11 | D63: 299.44 | E63: 268.89 | F63: =IF(Config!$C$6="Минимальная",MIN(IF(B63:E63<>0,B63:E63,"")),MAX(B63,C63,D63,E63)) -> 48.89
A64: творческийпортал.рф | B64: 121 | C64: 61.11 | D64: 183.33 | E64: 244.44 | F64: =IF(Config!$C$6="Минимальная",MIN(IF(B64:E64<>0,B64:E64,"")),MAX(B64,C64,D64,E64)) -> 61.11
A65: тк-мускат.рф | B65: 66 | C65: 201.67 | D65: 366.67 | E65: 299.44 | F65: =IF(Config!$C$6="Минимальная",MIN(IF(B65:E65<>0,B65:E65,"")),MAX(B65,C65,D65,E65)) -> 66
A66: уборкапомещений.рф | B66: 342.22 | C66: 244.44 | D66: 317.78 | E66: 488.89 | F66: =IF(Config!$C$6="Минимальная",MIN(IF(B66:E66<>0,B66:E66,"")),MAX(B66,C66,D66,E66)) -> 244.44
A67: удмуртия-онлайн.рф | B67: 366.67 | C67: 292.11 | D67: 275 | E67: 495 | F67: =IF(Config!$C$6="Минимальная",MIN(IF(B67:E67<>0,B67:E67,"")),MAX(B67,C67,D67,E67)) -> 275
A68: умный-малыш66.рф | B68: 48.89 | C68: 201.67 | D68: 366.67 | E68: 299.44 | F68: =IF(Config!$C$6="Минимальная",MIN(IF(B68:E68<>0,B68:E68,"")),MAX(B68,C68,D68,E68)) -> 48.89
A69: уфа-работа.рф | B69: 166.22 | C69: 213.89 | D69: 0 | E69: 275 | F69: =IF(Config!$C$6="Минимальная",MIN(IF(B69:E69<>0,B69:E69,"")),MAX(B69,C69,D69,E69)) -> 166.22
A70: фестиваль-невест.рф | B70: 89.22 | C70: 201.67 | D70: 366.67 | E70: 299.44 | F70: =IF(Config!$C$6="Минимальная",MIN(IF(B70:E70<>0,B70:E70,"")),MAX(B70,C70,D70,E70)) -> 89.22
A71: фок-арена.рф | B71: 92.28 | C71: 201.67 | D71: 366.67 | E71: 299.44 | F71: =IF(Config!$C$6="Минимальная",MIN(IF(B71:E71<>0,B71:E71,"")),MAX(B71,C71,D71,E71)) -> 92.28
A72: хорошаяжизнь.рф | B72: 48.89 | C72: 116.11 | D72: 299.44 | E72: 268.89 | F72: =IF(Config!$C$6="Минимальная",MIN(IF(B72:E72<>0,B72:E72,"")),MAX(B72,C72,D72,E72)) -> 48.89
A73: школа409.рф | B73: 53.78 | C73: 116.11 | D73: 299.44 | E73: 268.89 | F73: =IF(Config!$C$6="Минимальная",MIN(IF(B73:E73<>0,B73:E73,"")),MAX(B73,C73,D73,E73)) -> 53.78
A74: экспедициячнм.рф | B74: 48.89 | C74: 116.11 | D74: 299.44 | E74: 268.89 | F74: =IF(Config!$C$6="Минимальная",MIN(IF(B74:E74<>0,B74:E74,"")),MAX(B74,C74,D74,E74)) -> 48.89
A75: эксперт-сибирь.рф | B75: 48.89 | C75: 116.11 | D75: 299.44 | E75: 268.89 | F75: =IF(Config!$C$6="Минимальная",MIN(IF(B75:E75<>0,B75:E75,"")),MAX(B75,C75,D75,E75)) -> 48.89
A76: экспресс-волга-лизинг.рф | B76: 1038.89 | C76: 855.56 | D76: 855.56 | E76: 1161.11 | F76: =IF(Config!$C$6="Минимальная",MIN(IF(B76:E76<>0,B76:E76,"")),MAX(B76,C76,D76,E76)) -> 855.56
A77: энергоидея.рф | B77: 326.33 | C77: 268.89 | D77: 436.33 | E77: 326.33 | F77: =IF(Config!$C$6="Минимальная",MIN(IF(B77:E77<>0,B77:E77,"")),MAX(B77,C77,D77,E77)) -> 268.89
A78: энциклопедиябыта.рф | B78: 134.44 | C78: 200.44 | D78: 0 | E78: 267.67 | F78: =IF(Config!$C$6="Минимальная",MIN(IF(B78:E78<>0,B78:E78,"")),MAX(B78,C78,D78,E78)) -> 134.44
A79: юхл.рф | B79: 97.78 | C79: 61.11 | D79: 97.78 | E79: 171.11 | F79: =IF(Config!$C$6="Минимальная",MIN(IF(B79:E79<>0,B79:E79,"")),MAX(B79,C79,D79,E79)) -> 61.11
A80: яиспорт.рф | B80: 48.89 | C80: 116.11 | D80: 299.44 | E80: 268.89 | F80: =IF(Config!$C$6="Минимальная",MIN(IF(B80:E80<>0,B80:E80,"")),MAX(B80,C80,D80,E80)) -> 48.89
A81: 007.dmrexpress.ru | B81: 635.56 | C81: 611.11 | D81: 488.89 | E81: 733.33 | F81: =IF(Config!$C$6="Минимальная",MIN(IF(B81:E81<>0,B81:E81,"")),MAX(B81,C81,D81,E81)) -> 488.89
A82: 00j.org | B82: 207.78 | C82: 195.56 | D82: 146.67 | E82: 427.78 | F82: =IF(Config!$C$6="Минимальная",MIN(IF(B82:E82<>0,B82:E82,"")),MAX(B82,C82,D82,E82)) -> 146.67
A83: 0214.by | B83: 220 | C83: 366.67 | D83: 244.44 | E83: 611.11 | F83: =IF(Config!$C$6="Минимальная",MIN(IF(B83:E83<>0,B83:E83,"")),MAX(B83,C83,D83,E83)) -> 220
A84: 0368.ru | B84: 53.78 | C84: 116.11 | D84: 299.44 | E84: 268.89 | F84: =IF(Config!$C$6="Минимальная",MIN(IF(B84:E84<>0,B84:E84,"")),MAX(B84,C84,D84,E84)) -> 53.78
A85: 07kbr.ru | B85: 397.22 | C85: 598.89 | D85: 348.33 | E85: 696.67 | F85: =IF(Config!$C$6="Минимальная",MIN(IF(B85:E85<>0,B85:E85,"")),MAX(B85,C85,D85,E85)) -> 348.33
A86: 09-news.ru | B86: 293.33 | C86: 403.33 | D86: 268.89 | E86: 491.33 | F86: =IF(Config!$C$6="Минимальная",MIN(IF(B86:E86<>0,B86:E86,"")),MAX(B86,C86,D86,E86)) -> 268.89
A87: 0sporte.ru | B87: 161.33 | C87: 267.67 | D87: 0 | E87: 441.22 | F87: =IF(Config!$C$6="Минимальная",MIN(IF(B87:E87<>0,B87:E87,"")),MAX(B87,C87,D87,E87)) -> 161.33
A88: 1-elektrostal.ru | B88: 366.67 | C88: 509.67 | D88: 122.22 | E88: 733.33 | F88: =IF(Config!$C$6="Минимальная",MIN(IF(B88:E88<>0,B88:E88,"")),MAX(B88,C88,D88,E88)) -> 122.22
A89: 100чудес.рф | B89: 243.22 | C89: 0 | D89: 218.78 | E89: 0 | F89: =IF(Config!$C$6="Минимальная",MIN(IF(B89:E89<>0,B89:E89,"")),MAX(B89,C89,D89,E89)) -> 218.78
A90: 1000designs.ru | B90: 238.33 | C90: 275 | D90: 158.89 | E90: 513.33 | F90: =IF(Config!$C$6="Минимальная",MIN(IF(B90:E90<>0,B90:E90,"")),MAX(B90,C90,D90,E90)) -> 158.89
A91: 1001chudo.ru | B91: 397.22 | C91: 556.11 | D91: 238.33 | E91: 794.44 | F91: =IF(Config!$C$6="Минимальная",MIN(IF(B91:E91<>0,B91:E91,"")),MAX(B91,C91,D91,E91)) -> 238.33
A92: 100500domov.ru | B92: 487.67 | C92: 281.11 | D92: 268.89 | E92: 609.89 | F92: =IF(Config!$C$6="Минимальная",MIN(IF(B92:E92<>0,B92:E92,"")),MAX(B92,C92,D92,E92)) -> 268.89
A93: 100menu.com | B93: 147.89 | C93: 213.89 | D93: 0 | E93: 294.56 | F93: =IF(Config!$C$6="Минимальная",MIN(IF(B93:E93<>0,B93:E93,"")),MAX(B93,C93,D93,E93)) -> 147.89
A94: 100room.ru | B94: 64.78 | C94: 201.67 | D94: 366.67 | E94: 299.44 | F94: =IF(Config!$C$6="Минимальная",MIN(IF(B94:E94<>0,B94:E94,"")),MAX(B94,C94,D94,E94)) -> 64.78
A95: 102doska.ru | B95: 53.78 | C95: 116.11 | D95: 299.44 | E95: 268.89 | F95: =IF(Config!$C$6="Минимальная",MIN(IF(B95:E95<>0,B95:E95,"")),MAX(B95,C95,D95,E95)) -> 53.78
A96: 1181ds.ru | B96: 48.89 | C96: 116.11 | D96: 299.44 | E96: 268.89 | F96: =IF(Config!$C$6="Минимальная",MIN(IF(B96:E96<>0,B96:E96,"")),MAX(B96,C96,D96,E96)) -> 48.89
A97: 123-box.ru | B97: 122.22 | C97: 0 | D97: 0 | E97: 0 | F97: =IF(Config!$C$6="Минимальная",MIN(IF(B97:E97<>0,B97:E97,"")),MAX(B97,C97,D97,E97)) -> 122.22
A98: 123ks.ru | B98: 174.78 | C98: 227.33 | D98: 0 | E98: 334.89 | F98: =IF(Config!$C$6="Минимальная",MIN(IF(B98:E98<>0,B98:E98,"")),MAX(B98,C98,D98,E98)) -> 174.78
A99: 12m-ekolife.ru | B99: 48.89 | C99: 116.11 | D99: 299.44 | E99: 268.89 | F99: =IF(Config!$C$6="Минимальная",MIN(IF(B99:E99<>0,B99:E99,"")),MAX(B99,C99,D99,E99)) -> 48.89
A100: 13-13.com | B100: 158.89 | C100: 232.22 | D100: 157.67 | E100: 354.44 | F100: =IF(Config!$C$6="Минимальная",MIN(IF(B100:E100<>0,B100:E100,"")),MAX(B100,C100,D100,E100)) -> 157.67
A101: 134.su | B101: 305.56 | C101: 391.11 | D101: 440 | E101: 647.78 | F101: =IF(Config!$C$6="Минимальная",MIN(IF(B101:E101<>0,B101:E101,"")),MAX(B101,C101,D101,E101)) -> 305.56
A102: 1456.рф | B102: 64.78 | C102: 116.11 | D102: 122.22 | E102: 268.89 | F102: =IF(Config!$C$6="Минимальная",MIN(IF(B102:E102<>0,B102:E102,"")),MAX(B102,C102,D102,E102)) -> 64.78
A103: 15-news.ru | B103: 287.22 | C103: 488.89 | D103: 281.11 | E103: 499.89 | F103: =IF(Config!$C$6="Минимальная",MIN(IF(B103:E103<>0,B103:E103,"")),MAX(B103,C103,D103,E103)) -> 281.11
A104: 155skidok.ru | B104: 165 | C104: 201.67 | D104: 366.67 | E104: 299.44 | F104: =IF(Config!$C$6="Минимальная",MIN(IF(B104:E104<>0,B104:E104,"")),MAX(B104,C104,D104,E104)) -> 165
A105: 1600x1200.net | B105: 119.78 | C105: 119.78 | D105: 119.78 | E105: 183.33 | F105: =IF(Config!$C$6="Минимальная",MIN(IF(B105:E105<>0,B105:E105,"")),MAX(B105,C105,D105,E105)) -> 119.78
A106: 164.ru | B106: 1686.67 | C106: 1650 | D106: 0 | E106: 1955.56 | F106: =IF(Config!$C$6="Минимальная",MIN(IF(B106:E106<>0,B106:E106,"")),MAX(B106,C106,D106,E106)) -> 1650
A107: 1716evrika.ru | B107: 53.78 | C107: 116.11 | D107: 299.44 | E107: 268.89 | F107: =IF(Config!$C$6="Минимальная",MIN(IF(B107:E107<>0,B107:E107,"")),MAX(B107,C107,D107,E107)) -> 53.78
A108: 17ya.ru | B108: 53.78 | C108: 116.11 | D108: 299.44 | E108: 268.89 | F108: =IF(Config!$C$6="Минимальная",MIN(IF(B108:E108<>0,B108:E108,"")),MAX(B108,C108,D108,E108)) -> 53.78
A109: 183mz.ru | B109: 48.89 | C109: 116.11 | D109: 299.44 | E109: 268.89 | F109: =IF(Config!$C$6="Минимальная",MIN(IF(B109:E109<>0,B109:E109,"")),MAX(B109,C109,D109,E109)) -> 48.89
A110: 19rus.info | B110: 855.56 | C110: 855.56 | D110: 855.56 | E110: 855.56 | F110: =IF(Config!$C$6="Минимальная",MIN(IF(B110:E110<>0,B110:E110,"")),MAX(B110,C110,D110,E110)) -> 855.56
A111: 1bizz.ru | B111: 267.67 | C111: 468.11 | D111: 0 | E111: 668.56 | F111: =IF(Config!$C$6="Минимальная",MIN(IF(B111:E111<>0,B111:E111,"")),MAX(B111,C111,D111,E111)) -> 267.67
A112: 1c-vrn.ru | B112: 48.89 | C112: 116.11 | D112: 299.44 | E112: 268.89 | F112: =IF(Config!$C$6="Минимальная",MIN(IF(B112:E112<>0,B112:E112,"")),MAX(B112,C112,D112,E112)) -> 48.89
A113: 1cworld.com | B113: 48.89 | C113: 116.11 | D113: 299.44 | E113: 268.89 | F113: =IF(Config!$C$6="Минимальная",MIN(IF(B113:E113<>0,B113:E113,"")),MAX(B113,C113,D113,E113)) -> 48.89
A114: 1gl-chel.ru | B114: 48.89 | C114: 116.11 | D114: 299.44 | E114: 268.89 | F114: =IF(Config!$C$6="Минимальная",MIN(IF(B114:E114<>0,B114:E114,"")),MAX(B114,C114,D114,E114)) -> 48.89
A115: 1infobiznes.ru | B115: 48.89 | C115: 116.11 | D115: 299.44 | E115: 268.89 | F115: =IF(Config!$C$6="Минимальная",MIN(IF(B115:E115<>0,B115:E115,"")),MAX(B115,C115,D115,E115)) -> 48.89
A116: 1istochnik.ru | B116: 458.33 | C116: 366.67 | D116: 0 | E116: 550 | F116: =IF(Config!$C$6="Минимальная",MIN(IF(B116:E116<>0,B116:E116,"")),MAX(B116,C116,D116,E116)) -> 366.67
A117: 1lats.com | B117: 254.22 | C117: 227.33 | D117: 0 | E117: 441.22 | F117: =IF(Config!$C$6="Минимальная",MIN(IF(B117:E117<>0,B117:E117,"")),MAX(B117,C117,D117,E117)) -> 227.33
A118: 1liked.ru | B118: 48.89 | C118: 201.67 | D118: 366.67 | E118: 299.44 | F118: =IF(Config!$C$6="Минимальная",MIN(IF(B118:E118<>0,B118:E118,"")),MAX(B118,C118,D118,E118)) -> 48.89
A119: 1list.org | B119: 266.44 | C119: 399.67 | D119: 0 | E119: 399.67 | F119: =IF(Config!$C$6="Минимальная",MIN(IF(B119:E119<>0,B119:E119,"")),MAX(B119,C119,D119,E119)) -> 266.44
A120: 1pragmatist.livejournal.com | B120: 243.22 | C120: 243.22 | D120: 243.22 | E120: 243.22 | F120: =IF(Config!$C$6="Минимальная",MIN(IF(B120:E120<>0,B120:E120,"")),MAX(B120,C120,D120,E120)) -> 243.22
A121: 1vc0.ru | B121: 107.56 | C121: 255.44 | D121: 0 | E121: 389.89 | F121: =IF(Config!$C$6="Минимальная",MIN(IF(B121:E121<>0,B121:E121,"")),MAX(B121,C121,D121,E121)) -> 107.56
A122: 1zao.ru | B122: 68.44 | C122: 201.67 | D122: 366.67 | E122: 299.44 | F122: =IF(Config!$C$6="Минимальная",MIN(IF(B122:E122<>0,B122:E122,"")),MAX(B122,C122,D122,E122)) -> 68.44
A123: 1zoo.kh.ua | B123: 275 | C123: 400.89 | D123: 0 | E123: 400.89 | F123: =IF(Config!$C$6="Минимальная",MIN(IF(B123:E123<>0,B123:E123,"")),MAX(B123,C123,D123,E123)) -> 275
A124: 2.0chan.ru | B124: 48.89 | C124: 201.67 | D124: 366.67 | E124: 299.44 | F124: =IF(Config!$C$6="Минимальная",MIN(IF(B124:E124<>0,B124:E124,"")),MAX(B124,C124,D124,E124)) -> 48.89
A125: 20-30.ru | B125: 53.78 | C125: 116.11 | D125: 299.44 | E125: 268.89 | F125: =IF(Config!$C$6="Минимальная",MIN(IF(B125:E125<>0,B125:E125,"")),MAX(B125,C125,D125,E125)) -> 53.78
A126: 20-line.ru | B126: 48.89 | C126: 116.11 | D126: 299.44 | E126: 268.89 | F126: =IF(Config!$C$6="Минимальная",MIN(IF(B126:E126<>0,B126:E126,"")),MAX(B126,C126,D126,E126)) -> 48.89
A127: 2012god.ru | B127: 733.33 | C127: 561 | D127: 611.11 | E127: 793.22 | F127: =IF(Config!$C$6="Минимальная",MIN(IF(B127:E127<>0,B127:E127,"")),MAX(B127,C127,D127,E127)) -> 561
A128: 2012konecsveta.ru | B128: 57.44 | C128: 201.67 | D128: 366.67 | E128: 299.44 | F128: =IF(Config!$C$6="Минимальная",MIN(IF(B128:E128<>0,B128:E128,"")),MAX(B128,C128,D128,E128)) -> 57.44
A129: 2084.pro | B129: 267.67 | C129: 267.67 | D129: 0 | E129: 267.67 | F129: =IF(Config!$C$6="Минимальная",MIN(IF(B129:E129<>0,B129:E129,"")),MAX(B129,C129,D129,E129)) -> 267.67
A130: 20bit.ru | B130: 122.22 | C130: 146.67 | D130: 158.89 | E130: 232.22 | F130: =IF(Config!$C$6="Минимальная",MIN(IF(B130:E130<>0,B130:E130,"")),MAX(B130,C130,D130,E130)) -> 122.22
A131: 2147722.ru | B131: 53.78 | C131: 116.11 | D131: 299.44 | E131: 268.89 | F131: =IF(Config!$C$6="Минимальная",MIN(IF(B131:E131<>0,B131:E131,"")),MAX(B131,C131,D131,E131)) -> 53.78
A132: 21portal.com | B132: 147.89 | C132: 200.44 | D132: 0 | E132: 308 | F132: =IF(Config!$C$6="Минимальная",MIN(IF(B132:E132<>0,B132:E132,"")),MAX(B132,C132,D132,E132)) -> 147.89
A133: 222auto.com | B133: 174.78 | C133: 267.67 | D133: 0 | E133: 267.67 | F133: =IF(Config!$C$6="Минимальная",MIN(IF(B133:E133<>0,B133:E133,"")),MAX(B133,C133,D133,E133)) -> 174.78
A134: 22momot.ucoz.com | B134: 162.56 | C134: 255.44 | D134: 0 | E134: 385 | F134: =IF(Config!$C$6="Минимальная",MIN(IF(B134:E134<>0,B134:E134,"")),MAX(B134,C134,D134,E134)) -> 162.56
A135: 22woman.tk | B135: 123.44 | C135: 161.33 | D135: 0 | E135: 293.33 | F135: =IF(Config!$C$6="Минимальная",MIN(IF(B135:E135<>0,B135:E135,"")),MAX(B135,C135,D135,E135)) -> 123.44
A136: 23rus.org | B136: 336.11 | C136: 382.56 | D136: 229.78 | E136: 535.33 | F136: =IF(Config!$C$6="Минимальная",MIN(IF(B136:E136<>0,B136:E136,"")),MAX(B136,C136,D136,E136)) -> 229.78
A137: 24italy.ru | B137: 305.56 | C137: 366.67 | D137: 220 | E137: 488.89 | F137: =IF(Config!$C$6="Минимальная",MIN(IF(B137:E137<>0,B137:E137,"")),MAX(B137,C137,D137,E137)) -> 220
A138: 24master.ru | B138: 305.56 | C138: 330 | D138: 305.56 | E138: 916.67 | F138: =IF(Config!$C$6="Минимальная",MIN(IF(B138:E138<>0,B138:E138,"")),MAX(B138,C138,D138,E138)) -> 305.56
A139: 24rus.ru | B139: 1833.33 | C139: 2444.44 | D139: 1350.56 | E139: 2811.11 | F139: =IF(Config!$C$6="Минимальная",MIN(IF(B139:E139<>0,B139:E139,"")),MAX(B139,C139,D139,E139)) -> 1350.56
A140: 26-news.ru | B140: 292.11 | C140: 397.22 | D140: 292.11 | E140: 499.89 | F140: =IF(Config!$C$6="Минимальная",MIN(IF(B140:E140<>0,B140:E140,"")),MAX(B140,C140,D140,E140)) -> 292.11
A141: 26.ru | B141: 1222.22 | C141: 1222.22 | D141: 0 | E141: 1588.89 | F141: =IF(Config!$C$6="Минимальная",MIN(IF(B141:E141<>0,B141:E141,"")),MAX(B141,C141,D141,E141)) -> 1222.22
A142: 27-auto.ru | B142: 66.61 | C142: 201.67 | D142: 366.67 | E142: 299.44 | F142: =IF(Config!$C$6="Минимальная",MIN(IF(B142:E142<>0,B142:E142,"")),MAX(B142,C142,D142,E142)) -> 66.61
A143: 2902050.ru | B143: 216.33 | C143: 216.33 | D143: 216.33 | E143: 365.44 | F143: =IF(Config!$C$6="Минимальная",MIN(IF(B143:E143<>0,B143:E143,"")),MAX(B143,C143,D143,E143)) -> 216.33
A144: 2bip.ru | B144: 48.89 | C144: 116.11 | D144: 299.44 | E144: 268.89 | F144: =IF(Config!$C$6="Минимальная",MIN(IF(B144:E144<>0,B144:E144,"")),MAX(B144,C144,D144,E144)) -> 48.89
A145: 2flirt.se | B145: 152.78 | C145: 91.67 | D145: 91.67 | E145: 183.33 | F145: =IF(Config!$C$6="Минимальная",MIN(IF(B145:E145<>0,B145:E145,"")),MAX(B145,C145,D145,E145)) -> 91.67
A146: 2hokage.ru | B146: 48.89 | C146: 0 | D146: 0 | E146: 0 | F146: =IF(Config!$C$6="Минимальная",MIN(IF(B146:E146<>0,B146:E146,"")),MAX(B146,C146,D146,E146)) -> 48.89
A147: 2lemoney.ru | B147: 52.56 | C147: 201.67 | D147: 366.67 | E147: 299.44 | F147: =IF(Config!$C$6="Минимальная",MIN(IF(B147:E147<>0,B147:E147,"")),MAX(B147,C147,D147,E147)) -> 52.56
A148: 2sim.by | B148: 399.67 | C148: 366.67 | D148: 499.89 | E148: 990 | F148: =IF(Config!$C$6="Минимальная",MIN(IF(B148:E148<>0,B148:E148,"")),MAX(B148,C148,D148,E148)) -> 366.67
A149: 2tw.ru | B149: 125.89 | C149: 201.67 | D149: 366.67 | E149: 299.44 | F149: =IF(Config!$C$6="Минимальная",MIN(IF(B149:E149<>0,B149:E149,"")),MAX(B149,C149,D149,E149)) -> 125.89
A150: 2worldwar.at.ua | B150: 183.33 | C150: 122.22 | D150: 122.22 | E150: 244.44 | F150: =IF(Config!$C$6="Минимальная",MIN(IF(B150:E150<>0,B150:E150,"")),MAX(B150,C150,D150,E150)) -> 122.22
A151: 3-dollar-mail.com | B151: 48.89 | C151: 201.67 | D151: 366.67 | E151: 299.44 | F151: =IF(Config!$C$6="Минимальная",MIN(IF(B151:E151<>0,B151:E151,"")),MAX(B151,C151,D151,E151)) -> 48.89
A152: 30reklama.ru | B152: 97.78 | C152: 201.67 | D152: 366.67 | E152: 299.44 | F152: =IF(Config!$C$6="Минимальная",MIN(IF(B152:E152<>0,B152:E152,"")),MAX(B152,C152,D152,E152)) -> 97.78
A153: 33glaz.ru | B153: 53.78 | C153: 116.11 | D153: 299.44 | E153: 268.89 | F153: =IF(Config!$C$6="Минимальная",MIN(IF(B153:E153<>0,B153:E153,"")),MAX(B153,C153,D153,E153)) -> 53.78
A154: 360.nagava.ru | B154: 122.22 | C154: 366.67 | D154: 122.22 | E154: 611.11 | F154: =IF(Config!$C$6="Минимальная",MIN(IF(B154:E154<>0,B154:E154,"")),MAX(B154,C154,D154,E154)) -> 122.22
A155: 365news.biz | B155: 495 | C155: 452.22 | D155: 452.22 | E155: 495 | F155: =IF(Config!$C$6="Минимальная",MIN(IF(B155:E155<>0,B155:E155,"")),MAX(B155,C155,D155,E155)) -> 452.22
A156: 38del.ru | B156: 427.78 | C156: 427.78 | D156: 366.67 | E156: 855.56 | F156: =IF(Config!$C$6="Минимальная",MIN(IF(B156:E156<>0,B156:E156,"")),MAX(B156,C156,D156,E156)) -> 366.67
A157: 39.ru | B157: 286 | C157: 397.22 | D157: 238.33 | E157: 556.11 | F157: =IF(Config!$C$6="Минимальная",MIN(IF(B157:E157<>0,B157:E157,"")),MAX(B157,C157,D157,E157)) -> 238.33
A158: 39rus.org | B158: 427.78 | C158: 305.56 | D158: 158.89 | E158: 488.89 | F158: =IF(Config!$C$6="Минимальная",MIN(IF(B158:E158<>0,B158:E158,"")),MAX(B158,C158,D158,E158)) -> 158.89
A159: 3asave.ru | B159: 48.89 | C159: 201.67 | D159: 366.67 | E159: 299.44 | F159: =IF(Config!$C$6="Минимальная",MIN(IF(B159:E159<>0,B159:E159,"")),MAX(B159,C159,D159,E159)) -> 48.89
A160: 3dkadr.ru | B160: 48.89 | C160: 116.11 | D160: 299.44 | E160: 268.89 | F160: =IF(Config!$C$6="Минимальная",MIN(IF(B160:E160<>0,B160:E160,"")),MAX(B160,C160,D160,E160)) -> 48.89
A161: 3dp.su | B161: 200.44 | C161: 267.67 | D161: 0 | E161: 0 | F161: =IF(Config!$C$6="Минимальная",MIN(IF(B161:E161<>0,B161:E161,"")),MAX(B161,C161,D161,E161)) -> 200.44
A162: 3dtop.net | B162: 158.89 | C162: 0 | D162: 158.89 | E162: 0 | F162: =IF(Config!$C$6="Минимальная",MIN(IF(B162:E162<>0,B162:E162,"")),MAX(B162,C162,D162,E162)) -> 158.89
A163: 3o6yx.livejournal.com | B163: 267.67 | C163: 400.89 | D163: 0 | E163: 535.33 | F163: =IF(Config!$C$6="Минимальная",MIN(IF(B163:E163<>0,B163:E163,"")),MAX(B163,C163,D163,E163)) -> 267.67
A164: 3oomir.ru | B164: 249.33 | C164: 231 | D164: 243.22 | E164: 299.44 | F164: =IF(Config!$C$6="Минимальная",MIN(IF(B164:E164<>0,B164:E164,"")),MAX(B164,C164,D164,E164)) -> 231
A165: 3rest.ru | B165: 48.89 | C165: 116.11 | D165: 299.44 | E165: 268.89 | F165: =IF(Config!$C$6="Минимальная",MIN(IF(B165:E165<>0,B165:E165,"")),MAX(B165,C165,D165,E165)) -> 48.89
A166: 3s-tour.net | B166: 48.89 | C166: 116.11 | D166: 299.44 | E166: 268.89 | F166: =IF(Config!$C$6="Минимальная",MIN(IF(B166:E166<>0,B166:E166,"")),MAX(B166,C166,D166,E166)) -> 48.89
A167: 3travel.ru | B167: 113.67 | C167: 134.44 | D167: 0 | E167: 200.44 | F167: =IF(Config!$C$6="Минимальная",MIN(IF(B167:E167<>0,B167:E167,"")),MAX(B167,C167,D167,E167)) -> 113.67
A168: 3vallees-hotel.com | B168: 198 | C168: 198 | D168: 244.44 | E168: 298.22 | F168: =IF(Config!$C$6="Минимальная",MIN(IF(B168:E168<>0,B168:E168,"")),MAX(B168,C168,D168,E168)) -> 198
A169: 3wwar.ru | B169: 183.33 | C169: 183.33 | D169: 183.33 | E169: 611.11 | F169: =IF(Config!$C$6="Минимальная",MIN(IF(B169:E169<>0,B169:E169,"")),MAX(B169,C169,D169,E169)) -> 183.33
A170: 44kw.com | B170: 134.44 | C170: 0 | D170: 0 | E170: 0 | F170: =IF(Config!$C$6="Минимальная",MIN(IF(B170:E170<>0,B170:E170,"")),MAX(B170,C170,D170,E170)) -> 134.44
A171: 4732.ru | B171: 64.78 | C171: 201.67 | D171: 366.67 | E171: 299.44 | F171: =IF(Config!$C$6="Минимальная",MIN(IF(B171:E171<>0,B171:E171,"")),MAX(B171,C171,D171,E171)) -> 64.78
A172: 478822.ru | B172: 243.22 | C172: 231 | D172: 231 | E172: 299.44 | F172: =IF(Config!$C$6="Минимальная",MIN(IF(B172:E172<>0,B172:E172,"")),MAX(B172,C172,D172,E172)) -> 231
A173: 4baby.ua | B173: 916.67 | C173: 794.44 | D173: 695.44 | E173: 977.78 | F173: =IF(Config!$C$6="Минимальная",MIN(IF(B173:E173<>0,B173:E173,"")),MAX(B173,C173,D173,E173)) -> 695.44
A174: 4c-studio.ru | B174: 53.78 | C174: 116.11 | D174: 299.44 | E174: 268.89 | F174: =IF(Config!$C$6="Минимальная",MIN(IF(B174:E174<>0,B174:E174,"")),MAX(B174,C174,D174,E174)) -> 53.78
A175: 4e4evica.ru | B175: 267.67 | C175: 468.11 | D175: 0 | E175: 668.56 | F175: =IF(Config!$C$6="Минимальная",MIN(IF(B175:E175<>0,B175:E175,"")),MAX(B175,C175,D175,E175)) -> 267.67
A176: 4eshir.ru | B176: 122.22 | C176: 161.33 | D176: 0 | E176: 282.33 | F176: =IF(Config!$C$6="Минимальная",MIN(IF(B176:E176<>0,B176:E176,"")),MAX(B176,C176,D176,E176)) -> 122.22
A177: 4i5.ru | B177: 232.22 | C177: 213.89 | D177: 232.22 | E177: 365.44 | F177: =IF(Config!$C$6="Минимальная",MIN(IF(B177:E177<>0,B177:E177,"")),MAX(B177,C177,D177,E177)) -> 213.89
A178: 4lapi.com.ua | B178: 121 | C178: 0 | D178: 0 | E178: 267.67 | F178: =IF(Config!$C$6="Минимальная",MIN(IF(B178:E178<>0,B178:E178,"")),MAX(B178,C178,D178,E178)) -> 121
A179: 4medical.in | B179: 67.22 | C179: 134.44 | D179: 0 | E179: 200.44 | F179: =IF(Config!$C$6="Минимальная",MIN(IF(B179:E179<>0,B179:E179,"")),MAX(B179,C179,D179,E179)) -> 67.22
A180: 4moscow.ru | B180: 1779.56 | C180: 1779.56 | D180: 1779.56 | E180: 1779.56 | F180: =IF(Config!$C$6="Минимальная",MIN(IF(B180:E180<>0,B180:E180,"")),MAX(B180,C180,D180,E180)) -> 1779.56
A181: 4room-bel.ru | B181: 53.78 | C181: 116.11 | D181: 299.44 | E181: 268.89 | F181: =IF(Config!$C$6="Минимальная",MIN(IF(B181:E181<>0,B181:E181,"")),MAX(B181,C181,D181,E181)) -> 53.78
A182: 4steny.com | B182: 161.33 | C182: 248.11 | D182: 0 | E182: 314.11 | F182: =IF(Config!$C$6="Минимальная",MIN(IF(B182:E182<>0,B182:E182,"")),MAX(B182,C182,D182,E182)) -> 161.33
A183: 4tonews.ru | B183: 57.44 | C183: 201.67 | D183: 366.67 | E183: 299.44 | F183: =IF(Config!$C$6="Минимальная",MIN(IF(B183:E183<>0,B183:E183,"")),MAX(B183,C183,D183,E183)) -> 57.44
A184: 4y5.ru | B184: 161.33 | C184: 200.44 | D184: 0 | E184: 267.67 | F184: =IF(Config!$C$6="Минимальная",MIN(IF(B184:E184<>0,B184:E184,"")),MAX(B184,C184,D184,E184)) -> 161.33
A185: 4ygeca.com | B185: 550 | C185: 427.78 | D185: 427.78 | E185: 611.11 | F185: =IF(Config!$C$6="Минимальная",MIN(IF(B185:E185<>0,B185:E185,"")),MAX(B185,C185,D185,E185)) -> 427.78
A186: 51rus.org | B186: 305.56 | C186: 305.56 | D186: 183.33 | E186: 427.78 | F186: =IF(Config!$C$6="Минимальная",MIN(IF(B186:E186<>0,B186:E186,"")),MAX(B186,C186,D186,E186)) -> 183.33
A187: 5200km.ru | B187: 53.78 | C187: 116.11 | D187: 299.44 | E187: 268.89 | F187: =IF(Config!$C$6="Минимальная",MIN(IF(B187:E187<>0,B187:E187,"")),MAX(B187,C187,D187,E187)) -> 53.78
A188: 55med.ru | B188: 464.44 | C188: 440 | D188: 268.89 | E188: 672.22 | F188: =IF(Config!$C$6="Минимальная",MIN(IF(B188:E188<>0,B188:E188,"")),MAX(B188,C188,D188,E188)) -> 268.89
A189: 55study.ru | B189: 427.78 | C189: 403.33 | D189: 268.89 | E189: 647.78 | F189: =IF(Config!$C$6="Минимальная",MIN(IF(B189:E189<>0,B189:E189,"")),MAX(B189,C189,D189,E189)) -> 268.89
A190: 56.ru | B190: 1222.22 | C190: 1222.22 | D190: 0 | E190: 1588.89 | F190: =IF(Config!$C$6="Минимальная",MIN(IF(B190:E190<>0,B190:E190,"")),MAX(B190,C190,D190,E190)) -> 1222.22
A191: 5car.ru | B191: 535.33 | C191: 668.56 | D191: 0 | E191: 668.56 | F191: =IF(Config!$C$6="Минимальная",MIN(IF(B191:E191<>0,B191:E191,"")),MAX(B191,C191,D191,E191)) -> 535.33
A192: 5kino.ru | B192: 59.28 | C192: 201.67 | D192: 366.67 | E192: 299.44 | F192: =IF(Config!$C$6="Минимальная",MIN(IF(B192:E192<>0,B192:E192,"")),MAX(B192,C192,D192,E192)) -> 59.28
A193: 5oborotov.kz | B193: 173.56 | C193: 193.11 | D193: 156.44 | E193: 310.44 | F193: =IF(Config!$C$6="Минимальная",MIN(IF(B193:E193<>0,B193:E193,"")),MAX(B193,C193,D193,E193)) -> 156.44
A194: 5port.by | B194: 134.44 | C194: 134.44 | D194: 134.44 | E194: 134.44 | F194: =IF(Config!$C$6="Минимальная",MIN(IF(B194:E194<>0,B194:E194,"")),MAX(B194,C194,D194,E194)) -> 134.44
A195: 5sotok.ru | B195: 366.67 | C195: 427.78 | D195: 366.67 | E195: 733.33 | F195: =IF(Config!$C$6="Минимальная",MIN(IF(B195:E195<>0,B195:E195,"")),MAX(B195,C195,D195,E195)) -> 366.67
A196: 5vysota.ru | B196: 366.67 | C196: 330 | D196: 244.44 | E196: 488.89 | F196: =IF(Config!$C$6="Минимальная",MIN(IF(B196:E196<>0,B196:E196,"")),MAX(B196,C196,D196,E196)) -> 244.44
A197: 7162665.ru | B197: 66 | C197: 201.67 | D197: 366.67 | E197: 299.44 | F197: =IF(Config!$C$6="Минимальная",MIN(IF(B197:E197<>0,B197:E197,"")),MAX(B197,C197,D197,E197)) -> 66
A198: 7604870.ru | B198: 51.33 | C198: 201.67 | D198: 366.67 | E198: 299.44 | F198: =IF(Config!$C$6="Минимальная",MIN(IF(B198:E198<>0,B198:E198,"")),MAX(B198,C198,D198,E198)) -> 51.33
A199: 7d.org.ua | B199: 1112.22 | C199: 782.22 | D199: 330 | E199: 733.33 | F199: =IF(Config!$C$6="Минимальная",MIN(IF(B199:E199<>0,B199:E199,"")),MAX(B199,C199,D199,E199)) -> 330
A200: 7dim.ru | B200: 113.67 | C200: 134.44 | D200: 0 | E200: 254.22 | F200: =IF(Config!$C$6="Минимальная",MIN(IF(B200:E200<>0,B200:E200,"")),MAX(B200,C200,D200,E200)) -> 113.67
... 9826 more rows

Sheet Miralinks
A1: URL | B1: Цена
A2: v-stroim.ru | B2: 200000
A3: finam.ru | B3: 88000
A4: km.ru | B4: 54000
A5: aif.ru | B5: 45000
A6: finam.info | B6: 34000
A7: ruformator.ru | B7: 34000
A8: mossiling.ru | B8: 32000
A9: pravda.ru | B9: 31500
A10: informugra.ru | B10: 30000
A11: kakprosto.ru | B11: 30000
A12: ugra-tv.ru | B12: 30000
A13: znak.com | B13: 30000
A14: justlady.ru | B14: 29000
A15: finamauto.ru | B15: 28000
A16: bonaen.ru | B16: 27000
A17: 1prime.ru | B17: 25000
A18: chel.ru | B18: 20000
A19: fedpress.ru | B19: 20000
A20: hardnsoft.ru | B20: 20000
A21: uralpolit.ru | B21: 20000
A22: kiev.pravda.com.ua | B22: 17300
A23: autochel.ru | B23: 17000
A24: mkisrael.co.il | B24: 17000
A25: mk-kz.kz | B25: 17000
A26: adigea.aif.ru | B26: 16600
A27: chelyabinsk.ru | B27: 16000
A28: lady.pravda.ru | B28: 16000
A29: medpulse.ru | B29: 16000
A30: missus.ru | B30: 16000
A31: Moneytimes.ru | B31: 16000
A32: yoki.ru | B32: 16000
A33: newsinfo.ru | B33: 15750
A34: partofstyle.com | B34: 15640.1
A35: kommersant.ru | B35: 15000
A36: she.ngs.ru | B36: 15000
A37: domchel.ru | B37: 14500
A38: mychel.ru | B38: 14000
A39: amerikanki.com | B39: 13900
A40: 2074.ru | B40: 13500
A41: spb.mk.ru | B41: 13000
A42: dp.ru | B42: 12000
A43: rusrep.ru | B43: 12000
A44: gdeetotdom.ru | B44: 11900
A45: mr7.ru | B45: 11840
A46: e-kazan.ru | B46: 11500
A47: Champion.com.ua | B47: 11250
A48: tabloid.pravda.com.ua | B48: 11250
A49: eer.ru | B49: 11100
A50: tsn.ua | B50: 11000
A51: aif.ua | B51: 10360
A52: 59.ru | B52: 10000
A53: 63.ru | B53: 10000
A54: club-rf.ru | B54: 10000
A55: ru.tsn.ua | B55: 10000
A56: vrntimes.ru | B56: 9999
A57: e1.ru | B57: 9900
A58: unian.net | B58: 9700
A59: amobil.ru | B59: 9500
A60: mosmedclinic.ru | B60: 9250
A61: 19rus.info | B61: 9000
A62: chelny-izvest.ru | B62: 9000
A63: fedorovmedcenter.ru | B63: 9000
A64: glavbukh.ru | B64: 8900
A65: news.ngs.ru | B65: 8800
A66: comments.ua | B66: 8750
A67: 73online.ru | B67: 8600
A68: calend.ru | B68: 8500
A69: kp.ru | B69: 8500
A70: rosbalt.ru | B70: 8500
A71: vopros-remont.ru | B71: 8200
A72: best-stroy.ru | B72: 8000
A73: focus.ua | B73: 8000
A74: newsko.ru | B74: 8000
A75: ngs24.ru | B75: 8000
A76: astrakhan.ru | B76: 7971.3
A77: news.tut.by | B77: 7955
A78: restate.ru | B78: 7900
A79: tatar-inform.ru | B79: 7900
A80: intdate.ru | B80: 7600
A81: Mk.ru | B81: 7600
A82: cheldiplom.ru | B82: 7500
A83: delo.ua | B83: 7500
A84: gazeta.ua | B84: 7500
A85: podrobnosti.ua | B85: 7500
A86: v102.ru | B86: 7500
A87: bankir.ru | B87: 7400
A88: pokerpublic.net | B88: 7400
A89: promobud.ua | B89: 7400
A90: hwp.ru | B90: 7388
A91: avtovzglyad.ru | B91: 7300
A92: ohotniki.ru | B92: 7300
A93: womanhit.ru | B93: 7300
A94: doctor63.ru | B94: 7200
A95: dengi.ua | B95: 7000
A96: shkolazhizni.ru | B96: 7000
A97: yugopolis.ru | B97: 7000
A98: sotovik.ru | B98: 6938.8
A99: akdi.ru | B99: 6900
A100: business-class.su | B100: 6900
A101: kaksozdatsvojblog.com | B101: 6900
A102: nsk.sibnovosti.ru | B102: 6900
A103: prm.ru | B103: 6900
A104: interfax.com.ua | B104: 6500
A105: ukrinform.ua | B105: 6500
A106: dprealty.ru | B106: 6300
A107: glavred.info | B107: 6200
A108: arh.aif.ru | B108: 6000
A109: auto.samara24.ru | B109: 6000
A110: cheldoctor.ru | B110: 6000
A111: dosug.samara24.ru | B111: 6000
A112: equipnet.ru | B112: 6000
A113: gorod.samara24.ru | B113: 6000
A114: hab.aif.ru | B114: 6000
A115: irk.aif.ru | B115: 6000
A116: kianews.com.ua | B116: 6000
A117: krsk.aif.ru | B117: 6000
A118: lady.samara24.ru | B118: 6000
A119: mashportal.ru | B119: 6000
A120: rabota.samara24.ru | B120: 6000
A121: realty.samara24.ru | B121: 6000
A122: rzn.aif.ru | B122: 6000
A123: tonkosti.ru | B123: 6000
A124: udm.aif.ru | B124: 6000
A125: vl.aif.ru | B125: 6000
A126: topnews.ru | B126: 5920
A127: 100dorog.ru | B127: 5900
A128: automobili.ru | B128: 5900
A129: epravda.com.ua | B129: 5900
A130: gazeta-unp.ru | B130: 5900
A131: Life.pravda.com.ua | B131: 5900
A132: peterburg2.ru | B132: 5900
A133: rnk.ru | B133: 5900
A134: spb.aif.ru | B134: 5900
A135: vchera.com | B135: 5900
A136: ladytoday.ru | B136: 5700
A137: auto.tut.by | B137: 5600
A138: kharkov.ua | B138: 5566.6
A139: ukranews.com | B139: 5550
A140: computerra.ru | B140: 5500
A141: grani.ru | B141: 5500
A142: ulpressa.ru | B142: 5500
A143: kp.ua | B143: 5400
A144: skuky.net | B144: 5290
A145: news.vdv-s.ru | B145: 5200
A146: ngs22.ru | B146: 5200
A147: dostavkaturov.ru | B147: 5000
A148: eizvestia.com | B148: 5000
A149: estateline.ru | B149: 5000
A150: facenews.ua | B150: 5000
A151: fakty.ua | B151: 5000
A152: for-ua.com | B152: 5000
A153: mobile-testing.ru | B153: 5000
A154: mptron.com | B154: 5000
A155: piter.tv | B155: 5000
A156: printer-spb.ru | B156: 5000
A157: stroitelstvosovety.ru | B157: 5000
A158: subscribe.ru | B158: 5000
A159: vashdom.ru | B159: 5000
A160: vashgorod.ru | B160: 5000
A161: womanclinics.ru | B161: 5000
A162: medicus.ru | B162: 4999
A163: 110km.ru | B163: 4900
A164: allnw.ru | B164: 4900
A165: cars.ru | B165: 4900
A166: fd.ru | B166: 4900
A167: gd.ru | B167: 4900
A168: lawyercom.ru | B168: 4900
A169: newsarmenia.ru | B169: 4900
A170: otraslychet.ru | B170: 4900
A171: pitomec.ru | B171: 4900
A172: tourout.ru | B172: 4900
A173: vakant.ru | B173: 4900
A174: zarplata-online.ru | B174: 4900
A175: raexpert.ru | B175: 4771.2
A176: monobit.ru | B176: 4755.2
A177: greensector.ru | B177: 4750
A178: rosinvest.com | B178: 4700
A179: nalogplan.ru | B179: 4500
A180: news.online.ua | B180: 4500
A181: ruscable.ru | B181: 4500
A182: klerk.ru | B182: 4499
A183: med2000.ru | B183: 4480
A184: pkr1hand.com | B184: 4440
A185: 102doctora.ru | B185: 4400
A186: 72afisha.ru | B186: 4400
A187: 86.ru | B187: 4400
A188: ngs38.ru | B188: 4400
A189: ngs42.ru | B189: 4400
A190: ngs70.ru | B190: 4400
A191: tolyatty.ru | B191: 4400
A192: travel.samara24.ru | B192: 4400
A193: 89.ru | B193: 4350
A194: 45.ru | B194: 4300
A195: expert-ural.com | B195: 4300
A196: irk.ru | B196: 4300
A197: eprussia.ru | B197: 4200
A198: lieman.ru | B198: 4200
A199: obozrevatel.com | B199: 4200
A200: penzanews.ru | B200: 4200
... 14972 more rows

Sheet FreeSite
A1: Не оплачиваемые: | B1: ХЗ как по нормальному сделать
A2: dmoz.org | B2: 1
A3: top100.rambler.ru | B3: 1
A4: top.mail.ru | B4: 1
A5: maps.yandex.ru | B5: 1
A6: openstat.ru | B6: 1

Sheet В автобиржах
A1: Сайт в автобирже | B1: ХЗ как по нормальному сделать
A2: удмуртия-онлайн.рф | B2: 1
A3: уборкапомещений.рф | B3: 1
A4: zvintsov.ru | B4: 1
A5: zooterra.org | B5: 1
A6: zooprim.ru | B6: 1
A7: zoodrug.ua | B7: 1
A8: zoob.info | B8: 1
A9: zoo4you.ru | B9: 1
A10: zoo.by | B10: 1
A11: z-obektiv.com | B11: 1
A12: znakkachestva.ru | B12: 1
A13: zipservice.com.ua | B13: 1
A14: zimnij-turizm.ru | B14: 1
A15: zhzh.info | B15: 1
A16: zemlvetl.info | B16: 1
A17: zel-veter.ru | B17: 1
A18: zelezki.ru | B18: 1
A19: zeddy.ru | B19: 1
A20: zdorovih.net | B20: 1
A21: zdorovaja-zhizn.ru | B21: 1
A22: zaykinsait.ru | B22: 1
A23: zavodi.ua | B23: 1
A24: zavodarsenal.kiev.ua | B24: 1
A25: zavet.ru | B25: 1
A26: zarubezhom.info | B26: 1
A27: zarinsk.ru | B27: 1
A28: zapraudu.info | B28: 1
A29: zamok.by | B29: 1
A30: zalmanrus.ru | B30: 1
A31: zakyiv.com | B31: 1
A32: zagranpassport.net.ua | B32: 1
A33: zacepilo.net | B33: 1
A34: zabygrom.com | B34: 1
A35: yuriblog.ru | B35: 1
A36: ysadba.org | B36: 1
A37: yourwayauto.ru | B37: 1
A38: you-family.com | B38: 1
A39: youcapital.ru | B39: 1
A40: yo-car.net | B40: 1
A41: yerkramas.org | B41: 1
A42: yarsk.ru | B42: 1
A43: yaprofy.ru | B43: 1
A44: yaom.ru | B44: 1
A45: yaokino.ru | B45: 1
A46: yantara.ru | B46: 1
A47: yalta-kik.com | B47: 1
A48: yachts-clubs.ru | B48: 1
A49: yachaynik.ru | B49: 1
A50: yablog.org.ua | B50: 1
A51: ya.kg | B51: 1
A52: xyz.org.ua | B52: 1
A53: xxmuz.ru | B53: 1
A54: xx-arena.ru | B54: 1
A55: xudeem-pravilno.ru | B55: 1
A56: xtgamers.com | B56: 1
A57: xroniki-nauki.ru | B57: 1
A58: x-mineral.ru | B58: 1
A59: xlremont.ru | B59: 1
A60: x-files.org.ua | B60: 1
A61: xepcoh.info | B61: 1
A62: xdtp.ru | B62: 1
A63: x-coders.net | B63: 1
A64: xarchevnya.ru | B64: 1
A65: www3.ru | B65: 1
A66: wrcoc.org | B66: 1
A67: wp-info.ru | B67: 1
A68: wpandyou.ru | B68: 1
A69: wowlol.ru | B69: 1
A70: worldturne.com | B70: 1
A71: worldoffootball.ru | B71: 1
A72: worldmp3.ws | B72: 1
A73: worldboxing.ru | B73: 1
A74: world-atlas.ru | B74: 1
A75: world.fedpress.ru | B75: 1
A76: wordscience.org | B76: 1
A77: woodforlife.ru | B77: 1
A78: womir.ru | B78: 1
A79: womanstreet.ru | B79: 1
A80: womanshine.net | B80: 1
A81: womankino.ru | B81: 1
A82: woman-fitnes.ru | B82: 1
A83: womancentr.ru | B83: 1
A84: wmr1000.ru | B84: 1
A85: wmbook.com | B85: 1
A86: wkusno.org | B86: 1
A87: wintechbel.com | B87: 1
A88: winphonelive.ru | B88: 1
A89: wificenter.ru | B89: 1
A90: wht.by | B90: 1
A91: wglife.com.ua | B91: 1
A92: westernfilm.ru | B92: 1
A93: westcrimea.info | B93: 1
A94: wertep.com | B94: 1
A95: wellness-oriflame.ru | B95: 1
A96: welcomenn.ru | B96: 1
A97: wek.com.ua | B97: 1
A98: weila.ru | B98: 1
A99: wedal.ru | B99: 1
A100: web-zoopark.ru | B100: 1
A101: webtourist.ru | B101: 1
A102: websmi.by | B102: 1
A103: webmasta.org | B103: 1
A104: Web-management.ru | B104: 1
A105: webkev.com | B105: 1
A106: web-creator.org | B106: 1
A107: webclub.ru | B107: 1
A108: webavangard.com.ua | B108: 1
A109: weaponplace.ru | B109: 1
A110: wdhd.ru | B110: 1
A111: wdgt.ru | B111: 1
A112: wcf2010.ru | B112: 1
A113: wattvolt.ru | B113: 1
A114: wassilykandinsky.ru | B114: 1
A115: waspzone.ru | B115: 1
A116: warbirds.ru | B116: 1
A117: wapstat.info | B117: 1
A118: w2w.com.ua | B118: 1
A119: vzyatochnikam.net | B119: 1
A120: vzhelezke.ru | B120: 1
A121: vzglyadzagran.ru | B121: 1
A122: vyazat.ru | B122: 1
A123: vw-club.ag | B123: 1
A124: vumo.ru | B124: 1
A125: vturme.ru | B125: 1
A126: vstu.net | B126: 1
A127: vsozial.ru | B127: 1
A128: vsmarte.com | B128: 1
A129: vseznaniya.ru | B129: 1
A130: vse-v-inete.ru | B130: 1
A131: vsestihi.ru | B131: 1
A132: vseomebeli.net | B132: 1
A133: vsekonkursy.ru | B133: 1
A134: vsekommentarii.com | B134: 1
A135: vsekolesa.com | B135: 1
A136: vscolu.ru | B136: 1
A137: vsar.ru | B137: 1
A138: vrninfo.ru | B138: 1
A139: vplenukrasoti.ru | B139: 1
A140: v-pisarevka.com | B140: 1
A141: vpautine.com | B141: 1
A142: vp39.ru | B142: 1
A143: vostok-sibir.ru | B143: 1
A144: voronezh.rosfirm.ru | B144: 1
A145: vorobus.com | B145: 1
A146: vooryjenie.ru | B146: 1
A147: volynki.ru | B147: 1
A148: volt220.ru | B148: 1
A149: volley4all.net | B149: 1
A150: volkovysk.org | B150: 1
A151: volga-astrakhan.ru | B151: 1
A152: vokrug-mira.net | B152: 1
A153: vninform.ru | B153: 1
A154: vliga.dp.ua | B154: 1
A155: vladivostok-eparhia.ru | B155: 1
A156: vladimironline.ru | B156: 1
A157: vkus-zdorovya.ru | B157: 1
A158: vkusom.ru | B158: 1
A159: vkusnyj-shashlyk.ru | B159: 1
A160: vkusnyashechka.com | B160: 1
A161: vkusnyasha.ru | B161: 1
A162: vkusnovsem.org | B162: 1
A163: vkusnovo.ru | B163: 1
A164: vk-smi.ru | B164: 1
A165: vkonline.ru | B165: 1
A166: vkfan.ru | B166: 1
A167: vkarpaty.org.ua | B167: 1
A168: vkalach.ru | B168: 1
A169: vizd.ru | B169: 1
A170: vitamarg.com | B170: 1
A171: visotki.com | B171: 1
A172: vise.im | B172: 1
A173: visages.ru | B173: 1
A174: virtualstroy.ru | B174: 1
A175: virtual.brest.by | B175: 1
A176: viptrophy.com | B176: 1
A177: vipkazan.ru | B177: 1
A178: vip-barnaul.ru | B178: 1
A179: vinoclub.ru | B179: 1
A180: vindor.com.ua | B180: 1
A181: video-cinema.net | B181: 1
A182: vidania.ru | B182: 1
A183: vid.cn.ua | B183: 1
A184: vibor-center.ru | B184: 1
A185: vhill.ru | B185: 1
A186: vg-village.ru | B186: 1
A187: vestya.ru | B187: 1
A188: vesti.ee | B188: 1
A189: vesna-akadem.ru | B189: 1
A190: veselyj-dachnik.com | B190: 1
A191: veresfan.org.ua | B191: 1
A192: venture-biz.ru | B192: 1
A193: velobarnaul.ru | B193: 1
A194: velo.kg | B194: 1
A195: vedlozero.ru | B195: 1
A196: vdonetske.info | B196: 1
A197: vbalkhashe.kz | B197: 1
A198: vaztt.ru | B198: 1
A199: vashsochi.ru | B199: 1
A200: vashe-pitanie.ru | B200: 1
... 7185 more rows
